Workbook

Sheet Original FM
A2: Financial Model
F3: 2008 | G3: =F3+1 -> 2009 | H3: 2010 | I3: 2011 | J3: 2012 | K3: 2013 | L3: 2014 | M3: 2015 | N3: 2016 | O3: 2017 | P3: 2018 | Q3: 2019 | R3: 2020 | S3: 2021 | T3: 2022 | U3: 2023 | V3: 2024 | W3: 2025
B4: Production
C5: Gross Energy | D5: MWH | G5: 150000 | H5: =G5*0.985 -> 147750 | I5: =H5*0.985 -> 145533.75 | J5: 143350.7437 | K5: 141200.4826 | L5: 139082.4754 | M5: 136996.2382 | N5: 134941.2947 | O5: 132917.1752 | P5: 130923.4176 | Q5: 128959.5663 | R5: 127025.1728 | S5: 125119.7953 | T5: 123242.9983 | U5: 121394.3533 | V5: 119573.438 | W5: 117779.8365
C6: Energy for Outage | D6: MWH | G6: =G5*0.08 -> 12000 | H6: =H5*0.08 -> 11820 | I6: 11642.7 | J6: 11468.0595 | K6: 11296.03861 | L6: 11126.59803 | M6: 10959.69906 | N6: 10795.30357 | O6: 10633.37402 | P6: 10473.87341 | Q6: 10316.76531 | R6: 10162.01383 | S6: 10009.58362 | T6: 9859.439866 | U6: 9711.548268 | V6: 9565.875044 | W6: 9422.386918
C7: Net Energy | D7: MWH | G7: =G5-G6 -> 138000 | H7: 135930 | I7: 133891.05 | J7: 131882.6842 | K7: 129904.444 | L7: 127955.8773 | M7: 126036.5392 | N7: 124145.9911 | O7: 122283.8012 | P7: 120449.5442 | Q7: 118642.801 | R7: 116863.159 | S7: 115110.2116 | T7: 113383.5585 | U7: 111682.8051 | V7: 110007.563 | W7: 108357.4496
B9: Revenue and Expense
C10: Price of Energy | D10: RM/MWH | G10: 150 | H10: =G10*1.02 -> 153 | I10: =H10*1.02 -> 156.06 | J10: 159.1812 | K10: 162.364824 | L10: 165.6121205 | M10: 168.9243629 | N10: 172.3028501 | O10: 175.7489072 | P10: 179.2638853 | Q10: 182.849163 | R10: 186.5061463 | S10: 190.2362692 | T10: 194.0409946 | U10: 197.9218145 | V10: 201.8802507 | W10: 205.9178558
C11: Revenue | D11: RM 000's | G11: =G10*G7/1000 -> 20700 | H11: =H10*H7/1000 -> 20797.29 | I11: 20895.03726 | J11: 20993.24394 | K11: 21091.91218 | L11: 21191.04417 | M11: 21290.64208 | N11: 21390.7081 | O11: 21491.24443 | P11: 21592.25327 | Q11: 21693.73686 | R11: 21795.69743 | S11: 21898.13721 | T11: 22001.05845 | U11: 22104.46343 | V11: 22208.3544 | W11: 22312.73367
C13: Royalty Expense | D13: RM 000's | G13: =G11*0.09 -> 1863 | H13: =H11*0.09 -> 1871.7561 | I13: 1880.553354 | J13: 1889.391954 | K13: 1898.272097 | L13: 1907.193975 | M13: 1916.157787 | N13: 1925.163729 | O13: 1934.211998 | P13: 1943.302795 | Q13: 1952.436318 | R13: 1961.612769 | S13: 1970.832349 | T13: 1980.095261 | U13: 1989.401708 | V13: 1998.751896 | W13: 2008.14603
C14: Labour at Plant - Operations | D14: RM 000's | G14: 3200 | H14: =G14*1.015 -> 3248 | I14: =H14*1.015 -> 3296.72 | J14: 3346.1708 | K14: 3396.363362 | L14: 3447.308812 | M14: 3499.018445 | N14: 3551.503721 | O14: 3604.776277 | P14: 3658.847921 | Q14: 3713.73064 | R14: 3769.4366 | S14: 3825.978149 | T14: 3883.367821 | U14: 3941.618338 | V14: 4000.742613 | W14: 4060.753752
C15: Materials for Maintenance | D15: RM 000's | G15: 800 | H15: =G15*0.98 -> 784 | I15: =H15*0.98 -> 768.32 | J15: 752.9536 | K15: 737.894528 | L15: 723.1366374 | M15: 708.6739047 | N15: 694.5004266 | O15: 680.6104181 | P15: 666.9982097 | Q15: 653.6582455 | R15: 640.5850806 | S15: 627.773379 | T15: 615.2179114 | U15: 602.9135532 | V15: 590.8552821 | W15: 579.0381765
C16: Labour for Maintenance | D16: RM 000's | G16: 2500 | H16: =G16*1.01 -> 2525 | I16: =H16*1.01 -> 2550.25 | J16: 2575.7525 | K16: 2601.510025 | L16: 2627.525125 | M16: 2653.800377 | N16: 2680.33838 | O16: 2707.141764 | P16: 2734.213182 | Q16: 2761.555314 | R16: 2789.170867 | S16: 2817.062575 | T16: 2845.233201 | U16: 2873.685533 | V16: 2902.422388 | W16: 2931.446612
C17: Other Admin Expense | D17: RM 000's | G17: 750 | H17: =G17*1.005 -> 753.75 | I17: =H17*1.005 -> 757.51875 | J17: 761.3063437 | K17: 765.1128755 | L17: 768.9384398 | M17: 772.783132 | N17: 776.6470477 | O17: 780.5302829 | P17: 784.4329344 | Q17: 788.355099 | R17: 792.2968745 | S17: 796.2583589 | T17: 800.2396507 | U17: 804.2408489 | V17: 808.2620532 | W17: 812.3033635
C18: Insurance Expense | D18: RM 000's | G18: 1300 | H18: =G18 -> 1300 | I18: =H18 -> 1300 | J18: 1300 | K18: 1300 | L18: 1300 | M18: 1300 | N18: 1300 | O18: 1300 | P18: 1300 | Q18: 1300 | R18: 1300 | S18: 1300 | T18: 1300 | U18: 1300 | V18: 1300 | W18: 1300
C19: Total Expense | D19: RM 000's | G19: =SUM(G13:G18) -> 10413 | H19: =SUM(H13:H18) -> 10482.5061 | I19: 10553.3621 | J19: 10625.5752 | K19: 10699.15289 | L19: 10774.10299 | M19: 10850.43365 | N19: 10928.1533 | O19: 11007.27074 | P19: 11087.79504 | Q19: 11169.73562 | R19: 11253.10219 | S19: 11337.90481 | T19: 11424.15384 | U19: 11511.85998 | V19: 11601.03423 | W19: 11691.68793
C21: EBITDA | G21: =G11-G19 -> 10287 | H21: =H11-H19 -> 10314.7839 | I21: 10341.67516 | J21: 10367.66874 | K21: 10392.7593 | L21: 10416.94118 | M21: 10440.20843 | N21: 10462.55479 | O21: 10483.97368 | P21: 10504.45823 | Q21: 10524.00125 | R21: 10542.59524 | S21: 10560.2324 | T21: 10576.90461 | U21: 10592.60344 | V21: 10607.32017 | W21: 10621.04573
C22: Initial Capital Expenditure | D22: RM 000's | F22: 100000
C23: On-Going Capital Expenditure | D23: RM 000's | G23: 0 | H23: =G23 -> 0 | I23: =H23 -> 0 | J23: 0 | K23: 0 | L23: 0 | M23: 0 | N23: 0 | O23: 0 | P23: 0 | Q23: 0 | R23: 0 | S23: 0 | T23: 0 | U23: 0 | V23: 0 | W23: 0
C24: Project Cash Flow | F24: =F21-F22 -> -100000 | G24: =G21-G23 -> 10287 | H24: =H21-H23 -> 10314.7839 | I24: 10341.67516 | J24: 10367.66874 | K24: 10392.7593 | L24: 10416.94118 | M24: 10440.20843 | N24: 10462.55479 | O24: 10483.97368 | P24: 10504.45823 | Q24: 10524.00125 | R24: 10542.59524 | S24: 10560.2324 | T24: 10576.90461 | U24: 10592.60344 | V24: 10607.32017 | W24: 10621.04573
C25: Pre-Tax Project IRR | F25: =IRR(24:24) -> 0.07274127413
C27: Debt % | F27: 0.8
C28: Interest Rate | F28: 0.036
C29: Debt Tenure | F29: 15
A31: Debt Schedule
C32: Debt Financing | D32: RM 000's | F32: =F27*F22 -> 80000
C34: Opening balance | D34: RM 000's | G34: =F36 -> 80000 | H34: 74666.66667 | I34: 69333.33333 | J34: 64000 | K34: 58666.66667 | L34: 53333.33333 | M34: 48000 | N34: 42666.66667 | O34: 37333.33333 | P34: 32000 | Q34: 26666.66667 | R34: 21333.33333 | S34: 16000 | T34: 10666.66667 | U34: 5333.333333 | V34: 0 | W34: 0
C35: Debt Repayment | D35: RM 000's | G35: =MIN($F$36/$F$29,G34) -> 5333.333333 | H35: 5333.333333 | I35: 5333.333333 | J35: 5333.333333 | K35: 5333.333333 | L35: 5333.333333 | M35: 5333.333333 | N35: 5333.333333 | O35: 5333.333333 | P35: 5333.333333 | Q35: 5333.333333 | R35: 5333.333333 | S35: 5333.333333 | T35: 5333.333333 | U35: 5333.333333 | V35: 0 | W35: 0
C36: Closing balance | D36: RM 000's | F36: =F32 -> 80000 | G36: =G34-G35 -> 74666.66667 | H36: 69333.33333 | I36: 64000 | J36: 58666.66667 | K36: 53333.33333 | L36: 48000 | M36: 42666.66667 | N36: 37333.33333 | O36: 32000 | P36: 26666.66667 | Q36: 21333.33333 | R36: 16000 | S36: 10666.66667 | T36: 5333.333333 | U36: 0 | V36: 0 | W36: 0
C38: Interest expense | D38: RM 000's | G38: =G34*$F$28 -> 2880 | H38: 2688 | I38: 2496 | J38: 2304 | K38: 2112 | L38: 1920 | M38: 1728 | N38: 1536 | O38: 1344 | P38: 1152 | Q38: 960 | R38: 768 | S38: 576 | T38: 384 | U38: 192 | V38: 0 | W38: 0
A40: Accounting Analysis
B41: Profit and Loss
C42: EBITDA | D42: RM 000's | G42: =G21 -> 10287 | H42: 10314.7839 | I42: 10341.67516 | J42: 10367.66874 | K42: 10392.7593 | L42: 10416.94118 | M42: 10440.20843 | N42: 10462.55479 | O42: 10483.97368 | P42: 10504.45823 | Q42: 10524.00125 | R42: 10542.59524 | S42: 10560.2324 | T42: 10576.90461 | U42: 10592.60344 | V42: 10607.32017 | W42: 10621.04573
C43: Depreciation | D43: RM 000's | G43: =$F$22/17 -> 5882.352941 | H43: 5882.352941 | I43: 5882.352941 | J43: 5882.352941 | K43: 5882.352941 | L43: 5882.352941 | M43: 5882.352941 | N43: 5882.352941 | O43: 5882.352941 | P43: 5882.352941 | Q43: 5882.352941 | R43: 5882.352941 | S43: 5882.352941 | T43: 5882.352941 | U43: 5882.352941 | V43: 5882.352941 | W43: 5882.352941
C44: EBIT | G44: =G42-G43 -> 4404.647059 | H44: 4432.430959 | I44: 4459.322218 | J44: 4485.315799 | K44: 4510.406356 | L44: 4534.58824 | M44: 4557.855493 | N44: 4580.201852 | O44: 4601.620744 | P44: 4622.105291 | Q44: 4641.648307 | R44: 4660.242297 | S44: 4677.879454 | T44: 4694.551665 | U44: 4710.250502 | V44: 4724.967229 | W44: 4738.692793
C45: Interest | D45: RM 000's | G45: =G38 -> 2880 | H45: 2688 | I45: 2496 | J45: 2304 | K45: 2112 | L45: 1920 | M45: 1728 | N45: 1536 | O45: 1344 | P45: 1152 | Q45: 960 | R45: 768 | S45: 576 | T45: 384 | U45: 192 | V45: 0 | W45: 0
C46: EBT=PAT | D46: RM 000's | G46: =G44-G45 -> 1524.647059 | H46: 1744.430959 | I46: 1963.322218 | J46: 2181.315799 | K46: 2398.406356 | L46: 2614.58824 | M46: 2829.855493 | N46: 3044.201852 | O46: 3257.620744 | P46: 3470.105291 | Q46: 3681.648307 | R46: 3892.242297 | S46: 4101.879454 | T46: 4310.551665 | U46: 4518.250502 | V46: 4724.967229 | W46: 4738.692793
B48: Cashflow Statement
C49: EBITDA | D49: RM 000's | G49: =G42 -> 10287 | H49: 10314.7839 | I49: 10341.67516 | J49: 10367.66874 | K49: 10392.7593 | L49: 10416.94118 | M49: 10440.20843 | N49: 10462.55479 | O49: 10483.97368 | P49: 10504.45823 | Q49: 10524.00125 | R49: 10542.59524 | S49: 10560.2324 | T49: 10576.90461 | U49: 10592.60344 | V49: 10607.32017 | W49: 10621.04573
C50: Debt Service | D50: RM 000's | G50: =G35+G45 -> 8213.333333 | H50: 8021.333333 | I50: 7829.333333 | J50: 7637.333333 | K50: 7445.333333 | L50: 7253.333333 | M50: 7061.333333 | N50: 6869.333333 | O50: 6677.333333 | P50: 6485.333333 | Q50: 6293.333333 | R50: 6101.333333 | S50: 5909.333333 | T50: 5717.333333 | U50: 5525.333333 | V50: 0 | W50: 0
C51: Dividend | G51: =G49-G50 -> 2073.666667 | H51: 2293.450567 | I51: 2512.341826 | J51: 2730.335407 | K51: 2947.425964 | L51: 3163.607848 | M51: 3378.875101 | N51: 3593.221459 | O51: 3806.640352 | P51: 4019.124899 | Q51: 4230.667915 | R51: 4441.261904 | S51: 4650.899062 | T51: 4859.571273 | U51: 5067.27011 | V51: 10607.32017 | W51: 10621.04573
C52: Equity Cashflow | D52: RM 000's | F52: =-F22+F36 -> -20000 | G52: =G51 -> 2073.666667 | H52: 2293.450567 | I52: 2512.341826 | J52: 2730.335407 | K52: 2947.425964 | L52: 3163.607848 | M52: 3378.875101 | N52: 3593.221459 | O52: 3806.640352 | P52: 4019.124899 | Q52: 4230.667915 | R52: 4441.261904 | S52: 4650.899062 | T52: 4859.571273 | U52: 5067.27011 | V52: 10607.32017 | W52: 10621.04573
C53: Equity IRR | F53: =IRR(52:52) -> 0.1502195432
A55: Accounting Analysis - B&S
B56: Assets
C57: Net Plant Balance | D57: RM 000's | F57: =F22 -> 100000 | G57: =F57-G43 -> 94117.64706 | H57: 88235.29412 | I57: 82352.94118 | J57: 76470.58824 | K57: 70588.23529 | L57: 64705.88235 | M57: 58823.52941 | N57: 52941.17647 | O57: 47058.82353 | P57: 41176.47059 | Q57: 35294.11765 | R57: 29411.76471 | S57: 23529.41176 | T57: 17647.05882 | U57: 11764.70588 | V57: 5882.352941 | W57: 0
B59: Liability & Capital
C60: Borrowings | D60: RM 000's | F60: =F36 -> 80000 | G60: 74666.66667 | H60: 69333.33333 | I60: 64000 | J60: 58666.66667 | K60: 53333.33333 | L60: 48000 | M60: 42666.66667 | N60: 37333.33333 | O60: 32000 | P60: 26666.66667 | Q60: 21333.33333 | R60: 16000 | S60: 10666.66667 | T60: 5333.333333 | U60: 0 | V60: 0 | W60: 0
C61: Equity Capital | D61: RM 000's | F61: =F22-F36 -> 20000 | G61: =F61+G46-G51 -> 19450.98039 | H61: 18901.96078 | I61: 18352.94118 | J61: 17803.92157 | K61: 17254.90196 | L61: 16705.88235 | M61: 16156.86275 | N61: 15607.84314 | O61: 15058.82353 | P61: 14509.80392 | Q61: 13960.78431 | R61: 13411.76471 | S61: 12862.7451 | T61: 12313.72549 | U61: 11764.70588 | V61: 5882.352941 | W61: 0
C62: Total liabilities & Capital | D62: RM 000's | F62: =SUM(F60:F61) -> 100000 | G62: 94117.64706 | H62: 88235.29412 | I62: 82352.94118 | J62: 76470.58824 | K62: 70588.23529 | L62: 64705.88235 | M62: 58823.52941 | N62: 52941.17647 | O62: 47058.82353 | P62: 41176.47059 | Q62: 35294.11765 | R62: 29411.76471 | S62: 23529.41176 | T62: 17647.05882 | U62: 11764.70588 | V62: 5882.352941 | W62: 0
F64: =F57-F62 -> 0 | G64: 0 | H64: 0 | I64: 0 | J64: 0 | K64: 0 | L64: 0 | M64: 0 | N64: 0 | O64: 0 | P64: 0 | Q64: 0 | R64: 0 | S64: 0 | T64: 0 | U64: 0 | V64: 0 | W64: 0
C65: Balance Test | F65: =ROUND(F64,2)=0 -> TRUE | G65: TRUE | H65: TRUE | I65: TRUE | J65: TRUE | K65: TRUE | L65: TRUE | M65: TRUE | N65: TRUE | O65: TRUE | P65: TRUE | Q65: TRUE | R65: TRUE | S65: TRUE | T65: TRUE | U65: TRUE | V65: TRUE | W65: TRUE
C66: Aggregate Test | F66: =AND(F65:W65) -> TRUE
C68: Return on Assets (ROA) | G68: =G44/F57 -> 0.04404647059 | H68: 0.04709457894 | I68: 0.05053898514 | J68: 0.05446454899 | K68: 0.05898223697 | L68: 0.06424000007 | M68: 0.0704395849 | N68: 0.07786343148 | O68: 0.08691950294 | P68: 0.09821973744 | Q68: 0.1127257446 | R68: 0.1320401984 | S68: 0.1590479014 | T68: 0.1995184458 | U68: 0.2669141951 | V68: 0.4016222145 | W68: 0.8055777748
C69: Return on Equity (ROE) | G69: =G46/F61 -> 0.07623235294 | H69: 0.08968344647 | I69: 0.1038687066 | J69: 0.1188537454 | K69: 0.1347122513 | L69: 0.151527273 | M69: 0.1693927584 | N69: 0.1884154059 | O69: 0.2087169069 | P69: 0.2304366795 | Q69: 0.2537352212 | R69: 0.2787982544 | S69: 0.3058418891 | T69: 0.3351191081 | U69: 0.3669279867 | V69: 0.4016222145 | W69: 0.8055777748
C70: DSCR
A77: Alternative Accounting | G77: 1 | H77: =G77+1 -> 2 | I77: =H77+1 -> 3 | J77: 4 | K77: 5 | L77: 6 | M77: 7 | N77: 8 | O77: 9 | P77: 10 | Q77: 11 | R77: 12 | S77: 13 | T77: 14 | U77: 15 | V77: 16 | W77: 17
C79: Depreciation PPMT | E79: =F25 -> 0.07274127413 | G79: =PPMT($E$79,G77,17,-1) -> 0.03163699761 | H79: 0.03393831312 | I79: 0.03640702926 | J79: 0.03905532295 | K79: 0.04189625691 | L79: 0.04494384402 | M79: 0.04821311649 | N79: 0.05172020002 | O79: 0.05548239327 | P79: 0.05951825324 | Q79: 0.06384768682 | R79: 0.06849204891 | S79: 0.07347424781 | T79: 0.07881885821 | U79: 0.08455224239 | V79: 0.09070268023 | W79: 0.09730050875
C82: Alternative Deprecation | F82: =F57 -> 100000 | G82: =$F$82*G79 -> 3163.699761 | H82: 3393.831312 | I82: 3640.702926 | J82: 3905.532295 | K82: 4189.625691 | L82: 4494.384402 | M82: 4821.311649 | N82: 5172.020002 | O82: 5548.239327 | P82: 5951.825324 | Q82: 6384.768682 | R82: 6849.204891 | S82: 7347.424781 | T82: 7881.885821 | U82: 8455.224239 | V82: 9070.268023 | W82: 9730.050875
C84: EBIT | G84: =G49-G82 -> 7123.300239 | H84: =H49-H82 -> 6920.952588 | I84: 6700.972233 | J84: 6462.136445 | K84: 6203.133607 | L84: 5922.55678 | M84: 5618.896785 | N84: 5290.534791 | O84: 4935.734358 | P84: 4552.632908 | Q84: 4139.232567 | R84: 3693.390347 | S84: 3212.807614 | T84: 2695.018785 | U84: 2137.379205 | V84: 1537.052147 | W84: 890.9948588
C85: Net Plant | F85: =F82 -> 100000 | G85: =F85-G82 -> 96836.30024 | H85: 93442.46893 | I85: 89801.766 | J85: 85896.23371 | K85: 81706.60802 | L85: 77212.22361 | M85: 72390.91196 | N85: 67218.89196 | O85: 61670.65264 | P85: 55718.82731 | Q85: 49334.05863 | R85: 42484.85374 | S85: 35137.42896 | T85: 27255.54314 | U85: 18800.3189 | V85: 9730.050875 | W85: 0
C87: Return on Capital | G87: =G84/F85 -> 0.07123300239 | H87: =H84/G85 -> 0.07147064242 | I87: 0.07171227719 | J87: 0.07196001518 | K87: 0.07221659599 | L87: 0.07248565231 | M87: 0.0727721146 | N87: 0.07308285871 | O87: 0.07342778517 | P87: 0.07382170795 | Q87: 0.07428786223 | R87: 0.07486491989 | S87: 0.07562242379 | T87: 0.07669937342 | U87: 0.07841998211 | V87: 0.08175670613 | W87: 0.09157144913
G89: 0 | H89: =G89+1 -> 1 | I89: =H89+1 -> 2 | J89: 3 | K89: 4 | L89: 5 | M89: 6 | N89: 7 | O89: 8 | P89: 9 | Q89: 10 | R89: 11 | S89: 12 | T89: 13 | U89: 14 | V89: 15 | W89: 16
G90: 17 | H90: =G90-1 -> 16 | I90: =H90-1 -> 15 | J90: 14 | K90: 13 | L90: 12 | M90: 11 | N90: 10 | O90: 9 | P90: 8 | Q90: 7 | R90: 6 | S90: 5 | T90: 4 | U90: 3 | V90: 2 | W90: 1
C91: Depreciation Rate on Remaining Balance | H91: =PPMT($E$79,H77-H89,H90,-1) -> 0.03504709808 | I91: 0.03896197273 | J91: 0.04349059567 | K91: 0.04877542949 | L91: 0.05500637599 | M91: 0.06244233651 | N91: 0.0714457086 | O91: 0.08253988075 | P91: 0.0965098482 | Q91: 0.1145890714 | R91: 0.1388331932 | S91: 0.1729422167 | T91: 0.2243159518 | U91: 0.3102203539 | V91: 0.4824528814 | W91: 1
C92: Economic Depreciation | H92: =H91*G85 -> 3393.831312 | I92: =I91*H85 -> 3640.702926 | J92: 3905.532295 | K92: 4189.625691 | L92: 4494.384402 | M92: 4821.311649 | N92: 5172.020002 | O92: 5548.239327 | P92: 5951.825324 | Q92: 6384.768682 | R92: 6849.204891 | S92: 7347.424781 | T92: 7881.885821 | U92: 8455.224239 | V92: 9070.268023 | W92: 9730.050875

Sheet Alternative Performance Measure
A1: Summary
C2: Life | D2: 30 | F2: Initial EBITDA | H2: 95 | J2: IRR | L2: ='Alternative Performance Measure'!D18 -> 0.1263108902 | N2: WAROIC (IRR) | P2: ='Alternative Performance Measure'!D56 -> 0.1263108902
C3: Depreciation Life | D3: 20 | F3: Growth Rate | H3: =T3/1000 -> 0.04 | J3: Mult with Re-invest | L3: ='Alternative Performance Measure'!F75 -> 35.4607975 | N3: WAROIC (WACC) | P3: ='Alternative Performance Measure'!D62 -> 0.183163655 | S3: 75 | T3: 40
C4: Cap Exp Period | D4: 0 | F4: What A Crock of Crap (WACC) | H4: =S3/1000 -> 0.075 | J4: MIRR | L4: ='Alternative Performance Measure'!D20 -> 0.08787511342 | N4: NPV | P4: ='Alternative Performance Measure'!D21 -> 659.2930383
C5: Depreciation Adjustment | D5: 0.99 | F5: Investment | H5: 1000 | J5: Mult with WACC | L5: ='Alternative Performance Measure'!F84 -> 14.95994227 | N5: NPV/Investment | P5: ='Alternative Performance Measure'!D22 -> 1.659293038
C6: Disc Rate =IRR | D6: FALSE | N6: Payback
C8: Period | G8: 0 | H8: 1 | I8: 2 | J8: 3 | K8: 4 | L8: 5 | M8: 6 | N8: 7 | O8: 8 | P8: 9 | Q8: 10 | R8: 11 | S8: 12 | T8: 13 | U8: 14 | V8: 15 | W8: 16 | X8: 17 | Y8: 18 | Z8: 19 | AA8: 20 | AB8: 21 | AC8: 22 | AD8: 23 | AE8: 24 | AF8: 25 | AG8: 26 | AH8: 27 | AI8: 28 | AJ8: 29 | AK8: 30 | AL8: 31 | AM8: 32 | AN8: 33 | AO8: 34 | AP8: 35 | AQ8: 36 | AR8: 37 | AS8: 38 | AT8: 39 | AU8: 40 | AV8: 41 | AW8: 42 | AX8: 43 | AY8: 44 | AZ8: 45
C9: Life Flag | D9: ='Alternative Performance Measure'!D2 -> 30 | G9: =AND(G8>0,G8<=$D$9)*1 -> 0 | H9: 1 | I9: 1 | J9: 1 | K9: 1 | L9: 1 | M9: 1 | N9: 1 | O9: 1 | P9: 1 | Q9: 1 | R9: 1 | S9: 1 | T9: 1 | U9: 1 | V9: 1 | W9: 1 | X9: 1 | Y9: 1 | Z9: 1 | AA9: 1 | AB9: 1 | AC9: 1 | AD9: 1 | AE9: 1 | AF9: 1 | AG9: 1 | AH9: 1 | AI9: 1 | AJ9: 1 | AK9: 1 | AL9: 0 | AM9: 0 | AN9: 0 | AO9: 0 | AP9: 0 | AQ9: 0 | AR9: 0 | AS9: 0 | AT9: 0 | AU9: 0 | AV9: 0 | AW9: 0 | AX9: 0 | AY9: 0 | AZ9: 0
C10: Construction | D10: ='Alternative Performance Measure'!D4 -> 0 | G10: =(G8=$D$10)*1 -> 1 | H10: =(H8=$D$10)*1 -> 0 | I10: 0 | J10: 0 | K10: 0 | L10: 0 | M10: 0 | N10: 0 | O10: 0 | P10: 0 | Q10: 0 | R10: 0 | S10: 0 | T10: 0 | U10: 0 | V10: 0 | W10: 0 | X10: 0 | Y10: 0 | Z10: 0 | AA10: 0 | AB10: 0 | AC10: 0 | AD10: 0 | AE10: 0 | AF10: 0 | AG10: 0 | AH10: 0 | AI10: 0 | AJ10: 0 | AK10: 0 | AL10: 0 | AM10: 0 | AN10: 0 | AO10: 0 | AP10: 0 | AQ10: 0 | AR10: 0 | AS10: 0 | AT10: 0 | AU10: 0 | AV10: 0 | AW10: 0 | AX10: 0 | AY10: 0 | AZ10: 0
C11: Start | D11: 1 | G11: =(G8=$D$11)*1 -> 0 | H11: =(H8=$D$11)*1 -> 1 | I11: 0 | J11: 0 | K11: 0 | L11: 0 | M11: 0 | N11: 0 | O11: 0 | P11: 0 | Q11: 0 | R11: 0 | S11: 0 | T11: 0 | U11: 0 | V11: 0 | W11: 0 | X11: 0 | Y11: 0 | Z11: 0 | AA11: 0 | AB11: 0 | AC11: 0 | AD11: 0 | AE11: 0 | AF11: 0 | AG11: 0 | AH11: 0 | AI11: 0 | AJ11: 0 | AK11: 0 | AL11: 0 | AM11: 0 | AN11: 0 | AO11: 0 | AP11: 0 | AQ11: 0 | AR11: 0 | AS11: 0 | AT11: 0 | AU11: 0 | AV11: 0 | AW11: 0 | AX11: 0 | AY11: 0 | AZ11: 0
A13: Cash Flow Starting Point and Traditional Measures
C14: Cap Exp | D14: ='Alternative Performance Measure'!H5 -> 1000 | G14: =$D$14*G10 -> 1000 | H14: =$D$14*H10 -> 0 | I14: 0 | J14: 0 | K14: 0 | L14: 0 | M14: 0 | N14: 0 | O14: 0 | P14: 0 | Q14: 0 | R14: 0 | S14: 0 | T14: 0 | U14: 0 | V14: 0 | W14: 0 | X14: 0 | Y14: 0 | Z14: 0 | AA14: 0 | AB14: 0 | AC14: 0 | AD14: 0 | AE14: 0 | AF14: 0 | AG14: 0 | AH14: 0 | AI14: 0 | AJ14: 0 | AK14: 0 | AL14: 0 | AM14: 0 | AN14: 0 | AO14: 0 | AP14: 0 | AQ14: 0 | AR14: 0 | AS14: 0 | AT14: 0 | AU14: 0 | AV14: 0 | AW14: 0 | AX14: 0 | AY14: 0 | AZ14: 0
C15: EBITDA | D15: ='Alternative Performance Measure'!H2 -> 95 | E15: ='Alternative Performance Measure'!H3 -> 0.04 | G15: =IF(G11,$D$15,F15*(1+$E$15))*G9 -> 0 | H15: 95 | I15: 98.8 | J15: 102.752 | K15: 106.86208 | L15: 111.1365632 | M15: 115.5820257 | N15: 120.2053068 | O15: 125.013519 | P15: 130.0140598 | Q15: 135.2146222 | R15: 140.6232071 | S15: 146.2481353 | T15: 152.0980608 | U15: 158.1819832 | V15: 164.5092625 | W15: 171.089633 | X15: 177.9332183 | Y15: 185.0505471 | Z15: 192.452569 | AA15: 200.1506717 | AB15: 208.1566986 | AC15: 216.4829665 | AD15: 225.1422852 | AE15: 234.1479766 | AF15: 243.5138957 | AG15: 253.2544515 | AH15: 263.3846296 | AI15: 273.9200147 | AJ15: 284.8768153 | AK15: 296.2718879 | AL15: 0 | AM15: 0 | AN15: 0 | AO15: 0 | AP15: 0 | AQ15: 0 | AR15: 0 | AS15: 0 | AT15: 0 | AU15: 0 | AV15: 0 | AW15: 0 | AX15: 0 | AY15: 0 | AZ15: 0
C16: Free Cash Flow | G16: =G15-G14 -> -1000 | H16: =H15-H14 -> 95 | I16: 98.8 | J16: 102.752 | K16: 106.86208 | L16: 111.1365632 | M16: 115.5820257 | N16: 120.2053068 | O16: 125.013519 | P16: 130.0140598 | Q16: 135.2146222 | R16: 140.6232071 | S16: 146.2481353 | T16: 152.0980608 | U16: 158.1819832 | V16: 164.5092625 | W16: 171.089633 | X16: 177.9332183 | Y16: 185.0505471 | Z16: 192.452569 | AA16: 200.1506717 | AB16: 208.1566986 | AC16: 216.4829665 | AD16: 225.1422852 | AE16: 234.1479766 | AF16: 243.5138957 | AG16: 253.2544515 | AH16: 263.3846296 | AI16: 273.9200147 | AJ16: 284.8768153 | AK16: 296.2718879 | AL16: 0 | AM16: 0 | AN16: 0 | AO16: 0 | AP16: 0 | AQ16: 0 | AR16: 0 | AS16: 0 | AT16: 0 | AU16: 0 | AV16: 0 | AW16: 0 | AX16: 0 | AY16: 0 | AZ16: 0
C18: IRR | D18: =IRR(16:16) -> 0.1263108902
C19: Discount Rate | D19: =IF(D6,D18,H4) -> 0.075
C20: MIRR | D20: =MIRR(G16:AZ16,D19,D19) -> 0.08787511342
C21: NPV | D21: =NPV(D19,16:16) -> 659.2930383
C22: Investment | D22: =(D21+D14)/D14 -> 1.659293038
A25: ROIC and WACC
B26: Calculation and Epsolon Depreciation Over Life
C27: Plant Balance | D27: ='Alternative Performance Measure'!D5 -> 0.99 | G27: =F27+G14*$D$27 -> 990 | H27: =G27+H14*$D$27 -> 990 | I27: 990 | J27: 990 | K27: 990 | L27: 990 | M27: 990 | N27: 990 | O27: 990 | P27: 990 | Q27: 990 | R27: 990 | S27: 990 | T27: 990 | U27: 990 | V27: 990 | W27: 990 | X27: 990 | Y27: 990 | Z27: 990 | AA27: 990 | AB27: 990 | AC27: 990 | AD27: 990 | AE27: 990 | AF27: 990 | AG27: 990 | AH27: 990 | AI27: 990 | AJ27: 990 | AK27: 990 | AL27: 990 | AM27: 990 | AN27: 990 | AO27: 990 | AP27: 990 | AQ27: 990 | AR27: 990 | AS27: 990 | AT27: 990 | AU27: 990 | AV27: 990 | AW27: 990 | AX27: 990 | AY27: 990 | AZ27: 990
C29: Base Depreciation Rate | D29: ='Alternative Performance Measure'!D3 -> 20 | G29: =1/$D$29*G9 -> 0 | H29: 0.05 | I29: 0.05 | J29: 0.05 | K29: 0.05 | L29: 0.05 | M29: 0.05 | N29: 0.05 | O29: 0.05 | P29: 0.05 | Q29: 0.05 | R29: 0.05 | S29: 0.05 | T29: 0.05 | U29: 0.05 | V29: 0.05 | W29: 0.05 | X29: 0.05 | Y29: 0.05 | Z29: 0.05 | AA29: 0.05 | AB29: 0.05 | AC29: 0.05 | AD29: 0.05 | AE29: 0.05 | AF29: 0.05 | AG29: 0.05 | AH29: 0.05 | AI29: 0.05 | AJ29: 0.05 | AK29: 0.05 | AL29: 0 | AM29: 0 | AN29: 0 | AO29: 0 | AP29: 0 | AQ29: 0 | AR29: 0 | AS29: 0 | AT29: 0 | AU29: 0 | AV29: 0 | AW29: 0 | AX29: 0 | AY29: 0 | AZ29: 0
C30: Base Depreciation | G30: =MIN(G29*G27,F32) -> 0 | H30: =MIN(H29*H27,G32) -> 49.5 | I30: 49.5 | J30: 49.5 | K30: 49.5 | L30: 49.5 | M30: 49.5 | N30: 49.5 | O30: 49.5 | P30: 49.5 | Q30: 49.5 | R30: 49.5 | S30: 49.5 | T30: 49.5 | U30: 49.5 | V30: 49.5 | W30: 49.5 | X30: 49.5 | Y30: 49.5 | Z30: 49.5 | AA30: 49.5 | AB30: 0 | AC30: 0 | AD30: 0 | AE30: 0 | AF30: 0 | AG30: 0 | AH30: 0 | AI30: 0 | AJ30: 0 | AK30: 0 | AL30: 0 | AM30: 0 | AN30: 0 | AO30: 0 | AP30: 0 | AQ30: 0 | AR30: 0 | AS30: 0 | AT30: 0 | AU30: 0 | AV30: 0 | AW30: 0 | AX30: 0 | AY30: 0 | AZ30: 0
C31: Accumulated Depreciation | G31: =F31+G30 -> 0 | H31: =G31+H30 -> 49.5 | I31: 99 | J31: 148.5 | K31: 198 | L31: 247.5 | M31: 297 | N31: 346.5 | O31: 396 | P31: 445.5 | Q31: 495 | R31: 544.5 | S31: 594 | T31: 643.5 | U31: 693 | V31: 742.5 | W31: 792 | X31: 841.5 | Y31: 891 | Z31: 940.5 | AA31: 990 | AB31: 990 | AC31: 990 | AD31: 990 | AE31: 990 | AF31: 990 | AG31: 990 | AH31: 990 | AI31: 990 | AJ31: 990 | AK31: 990 | AL31: 990 | AM31: 990 | AN31: 990 | AO31: 990 | AP31: 990 | AQ31: 990 | AR31: 990 | AS31: 990 | AT31: 990 | AU31: 990 | AV31: 990 | AW31: 990 | AX31: 990 | AY31: 990 | AZ31: 990
C32: Net Plant | G32: =G27-G31 -> 990 | H32: 940.5 | I32: 891 | J32: 841.5 | K32: 792 | L32: 742.5 | M32: 693 | N32: 643.5 | O32: 594 | P32: 544.5 | Q32: 495 | R32: 445.5 | S32: 396 | T32: 346.5 | U32: 297 | V32: 247.5 | W32: 198 | X32: 148.5 | Y32: 99 | Z32: 49.5 | AA32: 0 | AB32: 0 | AC32: 0 | AD32: 0 | AE32: 0 | AF32: 0 | AG32: 0 | AH32: 0 | AI32: 0 | AJ32: 0 | AK32: 0 | AL32: 0 | AM32: 0 | AN32: 0 | AO32: 0 | AP32: 0 | AQ32: 0 | AR32: 0 | AS32: 0 | AT32: 0 | AU32: 0 | AV32: 0 | AW32: 0 | AX32: 0 | AY32: 0 | AZ32: 0
C34: Balance | D34: =1-D27 -> 0.01 | E34: ='Alternative Performance Measure'!H5 -> 1000 | G34: =D14-G27 -> 10 | H34: ='Alternative Performance Measure'!G34 -> 10 | I34: ='Alternative Performance Measure'!H34 -> 10 | J34: ='Alternative Performance Measure'!I34 -> 10 | K34: ='Alternative Performance Measure'!J34 -> 10 | L34: ='Alternative Performance Measure'!K34 -> 10 | M34: ='Alternative Performance Measure'!L34 -> 10 | N34: ='Alternative Performance Measure'!M34 -> 10 | O34: ='Alternative Performance Measure'!N34 -> 10 | P34: ='Alternative Performance Measure'!O34 -> 10 | Q34: ='Alternative Performance Measure'!P34 -> 10 | R34: ='Alternative Performance Measure'!Q34 -> 10 | S34: ='Alternative Performance Measure'!R34 -> 10 | T34: ='Alternative Performance Measure'!S34 -> 10 | U34: ='Alternative Performance Measure'!T34 -> 10 | V34: ='Alternative Performance Measure'!U34 -> 10 | W34: ='Alternative Performance Measure'!V34 -> 10 | X34: ='Alternative Performance Measure'!W34 -> 10 | Y34: ='Alternative Performance Measure'!X34 -> 10 | Z34: ='Alternative Performance Measure'!Y34 -> 10 | AA34: ='Alternative Performance Measure'!Z34 -> 10 | AB34: ='Alternative Performance Measure'!AA34 -> 10 | AC34: ='Alternative Performance Measure'!AB34 -> 10 | AD34: ='Alternative Performance Measure'!AC34 -> 10 | AE34: ='Alternative Performance Measure'!AD34 -> 10 | AF34: ='Alternative Performance Measure'!AE34 -> 10 | AG34: ='Alternative Performance Measure'!AF34 -> 10 | AH34: ='Alternative Performance Measure'!AG34 -> 10 | AI34: ='Alternative Performance Measure'!AH34 -> 10 | AJ34: ='Alternative Performance Measure'!AI34 -> 10 | AK34: ='Alternative Performance Measure'!AJ34 -> 10 | AL34: ='Alternative Performance Measure'!AK34 -> 10 | AM34: ='Alternative Performance Measure'!AL34 -> 10 | AN34: ='Alternative Performance Measure'!AM34 -> 10 | AO34: ='Alternative Performance Measure'!AN34 -> 10 | AP34: ='Alternative Performance Measure'!AO34 -> 10 | AQ34: ='Alternative Performance Measure'!AP34 -> 10 | AR34: ='Alternative Performance Measure'!AQ34 -> 10 | AS34: ='Alternative Performance Measure'!AR34 -> 10 | AT34: ='Alternative Performance Measure'!AS34 -> 10 | AU34: ='Alternative Performance Measure'!AT34 -> 10 | AV34: ='Alternative Performance Measure'!AU34 -> 10 | AW34: ='Alternative Performance Measure'!AV34 -> 10 | AX34: ='Alternative Performance Measure'!AW34 -> 10 | AY34: ='Alternative Performance Measure'!AX34 -> 10 | AZ34: ='Alternative Performance Measure'!AY34 -> 10
C35: Extra Depreciation | D35: ='Alternative Performance Measure'!D2 -> 30 | G35: =1/$D$35*G9 -> 0 | H35: 0.03333333333 | I35: 0.03333333333 | J35: 0.03333333333 | K35: 0.03333333333 | L35: 0.03333333333 | M35: 0.03333333333 | N35: 0.03333333333 | O35: 0.03333333333 | P35: 0.03333333333 | Q35: 0.03333333333 | R35: 0.03333333333 | S35: 0.03333333333 | T35: 0.03333333333 | U35: 0.03333333333 | V35: 0.03333333333 | W35: 0.03333333333 | X35: 0.03333333333 | Y35: 0.03333333333 | Z35: 0.03333333333 | AA35: 0.03333333333 | AB35: 0.03333333333 | AC35: 0.03333333333 | AD35: 0.03333333333 | AE35: 0.03333333333 | AF35: 0.03333333333 | AG35: 0.03333333333 | AH35: 0.03333333333 | AI35: 0.03333333333 | AJ35: 0.03333333333 | AK35: 0.03333333333 | AL35: 0 | AM35: 0 | AN35: 0 | AO35: 0 | AP35: 0 | AQ35: 0 | AR35: 0 | AS35: 0 | AT35: 0 | AU35: 0 | AV35: 0 | AW35: 0 | AX35: 0 | AY35: 0 | AZ35: 0
C36: Extra Depreciation | G36: =MIN(F38,G35*G34) -> 0 | H36: =MIN(G38,H35*H34) -> 0.3333333333 | I36: 0.3333333333 | J36: 0.3333333333 | K36: 0.3333333333 | L36: 0.3333333333 | M36: 0.3333333333 | N36: 0.3333333333 | O36: 0.3333333333 | P36: 0.3333333333 | Q36: 0.3333333333 | R36: 0.3333333333 | S36: 0.3333333333 | T36: 0.3333333333 | U36: 0.3333333333 | V36: 0.3333333333 | W36: 0.3333333333 | X36: 0.3333333333 | Y36: 0.3333333333 | Z36: 0.3333333333 | AA36: 0.3333333333 | AB36: 0.3333333333 | AC36: 0.3333333333 | AD36: 0.3333333333 | AE36: 0.3333333333 | AF36: 0.3333333333 | AG36: 0.3333333333 | AH36: 0.3333333333 | AI36: 0.3333333333 | AJ36: 0.3333333333 | AK36: 0.3333333333 | AL36: 0 | AM36: 0 | AN36: 0 | AO36: 0 | AP36: 0 | AQ36: 0 | AR36: 0 | AS36: 0 | AT36: 0 | AU36: 0 | AV36: 0 | AW36: 0 | AX36: 0 | AY36: 0 | AZ36: 0
C37: Accumulated Depreciation | G37: =F37+G36 -> 0 | H37: =G37+H36 -> 0.3333333333 | I37: 0.6666666667 | J37: 1 | K37: 1.333333333 | L37: 1.666666667 | M37: 2 | N37: 2.333333333 | O37: 2.666666667 | P37: 3 | Q37: 3.333333333 | R37: 3.666666667 | S37: 4 | T37: 4.333333333 | U37: 4.666666667 | V37: 5 | W37: 5.333333333 | X37: 5.666666667 | Y37: 6 | Z37: 6.333333333 | AA37: 6.666666667 | AB37: 7 | AC37: 7.333333333 | AD37: 7.666666667 | AE37: 8 | AF37: 8.333333333 | AG37: 8.666666667 | AH37: 9 | AI37: 9.333333333 | AJ37: 9.666666667 | AK37: 10 | AL37: 10 | AM37: 10 | AN37: 10 | AO37: 10 | AP37: 10 | AQ37: 10 | AR37: 10 | AS37: 10 | AT37: 10 | AU37: 10 | AV37: 10 | AW37: 10 | AX37: 10 | AY37: 10 | AZ37: 10
C38: Net Plant | G38: =G34-G37 -> 10 | H38: =H34-H37 -> 9.666666667 | I38: 9.333333333 | J38: 9 | K38: 8.666666667 | L38: 8.333333333 | M38: 8 | N38: 7.666666667 | O38: 7.333333333 | P38: 7 | Q38: 6.666666667 | R38: 6.333333333 | S38: 6 | T38: 5.666666667 | U38: 5.333333333 | V38: 5 | W38: 4.666666667 | X38: 4.333333333 | Y38: 4 | Z38: 3.666666667 | AA38: 3.333333333 | AB38: 3 | AC38: 2.666666667 | AD38: 2.333333333 | AE38: 2 | AF38: 1.666666667 | AG38: 1.333333333 | AH38: 1 | AI38: 0.6666666667 | AJ38: 0.3333333333 | AK38: 0 | AL38: 0 | AM38: 0 | AN38: 0 | AO38: 0 | AP38: 0 | AQ38: 0 | AR38: 0 | AS38: 0 | AT38: 0 | AU38: 0 | AV38: 0 | AW38: 0 | AX38: 0 | AY38: 0 | AZ38: 0
C40: Total Depreciation | G40: =G30+G36 -> 0 | H40: =H30+H36 -> 49.83333333 | I40: 49.83333333 | J40: 49.83333333 | K40: 49.83333333 | L40: 49.83333333 | M40: 49.83333333 | N40: 49.83333333 | O40: 49.83333333 | P40: 49.83333333 | Q40: 49.83333333 | R40: 49.83333333 | S40: 49.83333333 | T40: 49.83333333 | U40: 49.83333333 | V40: 49.83333333 | W40: 49.83333333 | X40: 49.83333333 | Y40: 49.83333333 | Z40: 49.83333333 | AA40: 49.83333333 | AB40: 0.3333333333 | AC40: 0.3333333333 | AD40: 0.3333333333 | AE40: 0.3333333333 | AF40: 0.3333333333 | AG40: 0.3333333333 | AH40: 0.3333333333 | AI40: 0.3333333333 | AJ40: 0.3333333333 | AK40: 0.3333333333 | AL40: 0 | AM40: 0 | AN40: 0 | AO40: 0 | AP40: 0 | AQ40: 0 | AR40: 0 | AS40: 0 | AT40: 0 | AU40: 0 | AV40: 0 | AW40: 0 | AX40: 0 | AY40: 0 | AZ40: 0
C41: Total Net Investment | G41: =G38+G32 -> 1000 | H41: =H38+H32 -> 950.1666667 | I41: 900.3333333 | J41: 850.5 | K41: 800.6666667 | L41: 750.8333333 | M41: 701 | N41: 651.1666667 | O41: 601.3333333 | P41: 551.5 | Q41: 501.6666667 | R41: 451.8333333 | S41: 402 | T41: 352.1666667 | U41: 302.3333333 | V41: 252.5 | W41: 202.6666667 | X41: 152.8333333 | Y41: 103 | Z41: 53.16666667 | AA41: 3.333333333 | AB41: 3 | AC41: 2.666666667 | AD41: 2.333333333 | AE41: 2 | AF41: 1.666666667 | AG41: 1.333333333 | AH41: 1 | AI41: 0.6666666667 | AJ41: 0.3333333333 | AK41: 0 | AL41: 0 | AM41: 0 | AN41: 0 | AO41: 0 | AP41: 0 | AQ41: 0 | AR41: 0 | AS41: 0 | AT41: 0 | AU41: 0 | AV41: 0 | AW41: 0 | AX41: 0 | AY41: 0 | AZ41: 0
C43: EBITDA | G43: ='Alternative Performance Measure'!G15 -> 0 | H43: ='Alternative Performance Measure'!H15 -> 95 | I43: ='Alternative Performance Measure'!I15 -> 98.8 | J43: ='Alternative Performance Measure'!J15 -> 102.752 | K43: ='Alternative Performance Measure'!K15 -> 106.86208 | L43: ='Alternative Performance Measure'!L15 -> 111.1365632 | M43: ='Alternative Performance Measure'!M15 -> 115.5820257 | N43: ='Alternative Performance Measure'!N15 -> 120.2053068 | O43: ='Alternative Performance Measure'!O15 -> 125.013519 | P43: ='Alternative Performance Measure'!P15 -> 130.0140598 | Q43: ='Alternative Performance Measure'!Q15 -> 135.2146222 | R43: ='Alternative Performance Measure'!R15 -> 140.6232071 | S43: ='Alternative Performance Measure'!S15 -> 146.2481353 | T43: ='Alternative Performance Measure'!T15 -> 152.0980608 | U43: ='Alternative Performance Measure'!U15 -> 158.1819832 | V43: ='Alternative Performance Measure'!V15 -> 164.5092625 | W43: ='Alternative Performance Measure'!W15 -> 171.089633 | X43: ='Alternative Performance Measure'!X15 -> 177.9332183 | Y43: ='Alternative Performance Measure'!Y15 -> 185.0505471 | Z43: ='Alternative Performance Measure'!Z15 -> 192.452569 | AA43: ='Alternative Performance Measure'!AA15 -> 200.1506717 | AB43: ='Alternative Performance Measure'!AB15 -> 208.1566986 | AC43: ='Alternative Performance Measure'!AC15 -> 216.4829665 | AD43: ='Alternative Performance Measure'!AD15 -> 225.1422852 | AE43: ='Alternative Performance Measure'!AE15 -> 234.1479766 | AF43: ='Alternative Performance Measure'!AF15 -> 243.5138957 | AG43: ='Alternative Performance Measure'!AG15 -> 253.2544515 | AH43: ='Alternative Performance Measure'!AH15 -> 263.3846296 | AI43: ='Alternative Performance Measure'!AI15 -> 273.9200147 | AJ43: ='Alternative Performance Measure'!AJ15 -> 284.8768153 | AK43: ='Alternative Performance Measure'!AK15 -> 296.2718879 | AL43: ='Alternative Performance Measure'!AL15 -> 0 | AM43: ='Alternative Performance Measure'!AM15 -> 0 | AN43: ='Alternative Performance Measure'!AN15 -> 0 | AO43: ='Alternative Performance Measure'!AO15 -> 0 | AP43: ='Alternative Performance Measure'!AP15 -> 0 | AQ43: ='Alternative Performance Measure'!AQ15 -> 0 | AR43: ='Alternative Performance Measure'!AR15 -> 0 | AS43: ='Alternative Performance Measure'!AS15 -> 0 | AT43: ='Alternative Performance Measure'!AT15 -> 0 | AU43: ='Alternative Performance Measure'!AU15 -> 0 | AV43: ='Alternative Performance Measure'!AV15 -> 0 | AW43: ='Alternative Performance Measure'!AW15 -> 0 | AX43: ='Alternative Performance Measure'!AX15 -> 0 | AY43: ='Alternative Performance Measure'!AY15 -> 0 | AZ43: ='Alternative Performance Measure'!AZ15 -> 0
C44: Less: Standard Depreciation | G44: ='Alternative Performance Measure'!G40 -> 0 | H44: ='Alternative Performance Measure'!H40 -> 49.83333333 | I44: ='Alternative Performance Measure'!I40 -> 49.83333333 | J44: ='Alternative Performance Measure'!J40 -> 49.83333333 | K44: ='Alternative Performance Measure'!K40 -> 49.83333333 | L44: ='Alternative Performance Measure'!L40 -> 49.83333333 | M44: ='Alternative Performance Measure'!M40 -> 49.83333333 | N44: ='Alternative Performance Measure'!N40 -> 49.83333333 | O44: ='Alternative Performance Measure'!O40 -> 49.83333333 | P44: ='Alternative Performance Measure'!P40 -> 49.83333333 | Q44: ='Alternative Performance Measure'!Q40 -> 49.83333333 | R44: ='Alternative Performance Measure'!R40 -> 49.83333333 | S44: ='Alternative Performance Measure'!S40 -> 49.83333333 | T44: ='Alternative Performance Measure'!T40 -> 49.83333333 | U44: ='Alternative Performance Measure'!U40 -> 49.83333333 | V44: ='Alternative Performance Measure'!V40 -> 49.83333333 | W44: ='Alternative Performance Measure'!W40 -> 49.83333333 | X44: ='Alternative Performance Measure'!X40 -> 49.83333333 | Y44: ='Alternative Performance Measure'!Y40 -> 49.83333333 | Z44: ='Alternative Performance Measure'!Z40 -> 49.83333333 | AA44: ='Alternative Performance Measure'!AA40 -> 49.83333333 | AB44: ='Alternative Performance Measure'!AB40 -> 0.3333333333 | AC44: ='Alternative Performance Measure'!AC40 -> 0.3333333333 | AD44: ='Alternative Performance Measure'!AD40 -> 0.3333333333 | AE44: ='Alternative Performance Measure'!AE40 -> 0.3333333333 | AF44: ='Alternative Performance Measure'!AF40 -> 0.3333333333 | AG44: ='Alternative Performance Measure'!AG40 -> 0.3333333333 | AH44: ='Alternative Performance Measure'!AH40 -> 0.3333333333 | AI44: ='Alternative Performance Measure'!AI40 -> 0.3333333333 | AJ44: ='Alternative Performance Measure'!AJ40 -> 0.3333333333 | AK44: ='Alternative Performance Measure'!AK40 -> 0.3333333333 | AL44: ='Alternative Performance Measure'!AL40 -> 0 | AM44: ='Alternative Performance Measure'!AM40 -> 0 | AN44: ='Alternative Performance Measure'!AN40 -> 0 | AO44: ='Alternative Performance Measure'!AO40 -> 0 | AP44: ='Alternative Performance Measure'!AP40 -> 0 | AQ44: ='Alternative Performance Measure'!AQ40 -> 0 | AR44: ='Alternative Performance Measure'!AR40 -> 0 | AS44: ='Alternative Performance Measure'!AS40 -> 0 | AT44: ='Alternative Performance Measure'!AT40 -> 0 | AU44: ='Alternative Performance Measure'!AU40 -> 0 | AV44: ='Alternative Performance Measure'!AV40 -> 0 | AW44: ='Alternative Performance Measure'!AW40 -> 0 | AX44: ='Alternative Performance Measure'!AX40 -> 0 | AY44: ='Alternative Performance Measure'!AY40 -> 0 | AZ44: ='Alternative Performance Measure'!AZ40 -> 0
C45: EBIT | G45: =G43-G44 -> 0 | H45: =H43-H44 -> 45.16666667 | I45: 48.96666667 | J45: 52.91866667 | K45: 57.02874667 | L45: 61.30322987 | M45: 65.74869239 | N45: 70.37197342 | O45: 75.18018569 | P45: 80.18072646 | Q45: 85.38128885 | R45: 90.78987373 | S45: 96.41480202 | T45: 102.2647274 | U45: 108.3486499 | V45: 114.6759292 | W45: 121.2562997 | X45: 128.099885 | Y45: 135.2172137 | Z45: 142.6192356 | AA45: 150.3173384 | AB45: 207.8233653 | AC45: 216.1496332 | AD45: 224.8089519 | AE45: 233.8146433 | AF45: 243.1805623 | AG45: 252.9211182 | AH45: 263.0512962 | AI45: 273.5866814 | AJ45: 284.543482 | AK45: 295.9385546 | AL45: 0 | AM45: 0 | AN45: 0 | AO45: 0 | AP45: 0 | AQ45: 0 | AR45: 0 | AS45: 0 | AT45: 0 | AU45: 0 | AV45: 0 | AW45: 0 | AX45: 0 | AY45: 0 | AZ45: 0
C47: ROIC | H47: =IF(G41>0.1,H45/G41) -> 0.04516666667 | I47: =IF(H41>0.1,I45/H41) -> 0.05153481845 | J47: 0.05877674935 | K47: 0.06705320008 | L47: 0.07656523297 | M47: 0.08756762583 | N47: 0.1003879792 | O47: 0.1154545979 | P47: 0.1333382369 | Q47: 0.1548164802 | R47: 0.1809764925 | S47: 0.2133857662 | T47: 0.2543898692 | U47: 0.3076629906 | V47: 0.3793029631 | W47: 0.4802229691 | X47: 0.632071801 | Y47: 0.884736404 | Z47: 1.384652773 | AA47: 2.827285361 | AB47: 62.34700958 | AC47: 72.04987773 | AD47: 84.30335695 | AE47: 100.2062757 | AF47: 121.5902812 | AG47: 151.7526709 | AH47: 197.2884722 | AI47: 273.5866814 | AJ47: 426.815223 | AK47: 887.8156638 | AL47: FALSE | AM47: FALSE | AN47: FALSE | AO47: FALSE | AP47: FALSE | AQ47: FALSE | AR47: FALSE | AS47: FALSE | AT47: FALSE | AU47: FALSE | AV47: FALSE | AW47: FALSE | AX47: FALSE | AY47: FALSE | AZ47: FALSE
C49: Discount Rate Using IRR | D49: ='Alternative Performance Measure'!D18 -> 0.1263108902 | G49: 1 | H49: =G49*(1+$D$49) -> 1.12631089 | I49: =H49*(1+$D$49) -> 1.268576221 | J49: 1.428811213 | K49: 1.609285629 | L49: 1.81255593 | M49: 2.041501483 | N49: 2.299365352 | O49: 2.589800237 | P49: 2.91692021 | Q49: 3.285358999 | R49: 3.700335618 | S49: 4.167728304 | T49: 4.694157777 | U49: 5.287081024 | V49: 5.954896935 | W49: 6.707065268 | X49: 7.554240652 | Y49: 8.508423514 | Z49: 9.583130062 | AA49: 10.79358375 | AB49: 12.15693092 | AC49: 13.69248369 | AD49: 15.42199349 | AE49: 17.36995922 | AF49: 19.56397423 | AG49: 22.03511723 | AH49: 24.8183925 | AI49: 27.95322576 | AJ49: 31.48402258 | AK49: 35.4607975 | AL49: 39.9398824 | AM49: 44.9847245 | AN49: 50.6667851 | AO49: 57.06655183 | AP49: 64.27467879 | AQ49: 72.39327069 | AR49: 81.53732915 | AS49: 91.83638178 | AT49: 103.4363169 | AU49: 116.5014502 | AV49: 131.2168521 | AW49: 147.7909695 | AX49: 166.4585784 | AY49: 187.4841096 | AZ49: 211.1653944
C50: Discount Rate Using WACC | D50: ='Alternative Performance Measure'!H4 -> 0.075 | G50: 1 | H50: =G50*(1+$D$50) -> 1.075 | I50: =H50*(1+$D$50) -> 1.155625 | J50: 1.242296875 | K50: 1.335469141 | L50: 1.435629326 | M50: 1.543301526 | N50: 1.65904914 | O50: 1.783477826 | P50: 1.917238662 | Q50: 2.061031562 | R50: 2.215608929 | S50: 2.381779599 | T50: 2.560413069 | U50: 2.752444049 | V50: 2.958877353 | W50: 3.180793154 | X50: 3.419352641 | Y50: 3.675804089 | Z50: 3.951489396 | AA50: 4.2478511 | AB50: 4.566439933 | AC50: 4.908922928 | AD50: 5.277092147 | AE50: 5.672874058 | AF50: 6.098339613 | AG50: 6.555715084 | AH50: 7.047393715 | AI50: 7.575948244 | AJ50: 8.144144362 | AK50: 8.754955189 | AL50: 9.411576828 | AM50: 10.11744509 | AN50: 10.87625347 | AO50: 11.69197248 | AP50: 12.56887042 | AQ50: 13.5115357 | AR50: 14.52490088 | AS50: 15.61426844 | AT50: 16.78533858 | AU50: 18.04423897 | AV50: 19.39755689 | AW50: 20.85237366 | AX50: 22.41630168 | AY50: 24.09752431 | AZ50: 25.90483863
B52: WAROIC Using IRR
C53: PV of Net Investment | H53: =G41/H49 -> 887.8543293 | I53: =H41/I49 -> 749.0024254 | J53: 630.1275669 | K53: 528.4953674 | L53: 441.7334955 | M53: 367.7848582 | N53: 304.8667317 | O53: 251.4350942 | P53: 206.1535078 | Q53: 167.8659776 | R53: 135.573288 | S53: 108.4123773 | T53: 85.63836563 | U53: 66.60890292 | V53: 50.77054005 | W53: 37.64686788 | X53: 26.82819836 | Y53: 17.9625912 | Z53: 10.74805406 | AA53: 4.92576589 | AB53: 0.2741920107 | AC53: 0.2190983074 | AD53: 0.1729132273 | AE53: 0.1343315378 | AF53: 0.1022287178 | AG53: 0.07563684137 | AH53: 0.05372359765 | AI53: 0.03577404657 | AJ53: 0.02117476142 | AK53: 0.009400051798 | AL53: 0 | AM53: 0 | AN53: 0 | AO53: 0 | AP53: 0 | AQ53: 0 | AR53: 0 | AS53: 0 | AT53: 0 | AU53: 0 | AV53: 0 | AW53: 0 | AX53: 0 | AY53: 0 | AZ53: 0
C54: Weighting | H54: =H53/SUM(53:53) -> 0.1747217558 | I54: 0.1473969485 | J54: 0.1240034443 | K54: 0.1040031405 | L54: 0.08692918353 | M54: 0.07237675603 | N54: 0.05999503398 | O54: 0.04948016774 | P54: 0.04056915832 | Q54: 0.03303451633 | R54: 0.02667960514 | S54: 0.02133458191 | T54: 0.01685286101 | U54: 0.0131080337 | V54: 0.009991186177 | W54: 0.007408565392 | X54: 0.005279548421 | Y54: 0.003534876578 | Z54: 0.002115120483 | AA54: 0.0009693464756 | AB54: 5.395852445e-05 | AC54: 4.311657858e-05 | AD54: 3.402776974e-05 | AE54: 2.643523985e-05 | AF54: 2.011769327e-05 | AG54: 1.488465089e-05 | AH54: 1.057232138e-05 | AI54: 7.040010983e-06 | AJ54: 4.16700282e-06 | AK54: 1.849845747e-06 | AL54: 0 | AM54: 0 | AN54: 0 | AO54: 0 | AP54: 0 | AQ54: 0 | AR54: 0 | AS54: 0 | AT54: 0 | AU54: 0 | AV54: 0 | AW54: 0 | AX54: 0 | AY54: 0 | AZ54: 0
C56: Weighted ROI | D56: =SUMPRODUCT(54:54,47:47) -> 0.1263108902
B58: WAROIC Using WACC
C59: PV of Net Investment | H59: =G41/H50 -> 930.2325581 | I59: =H41/I50 -> 822.2102037 | J59: 724.7328327 | K59: 636.8548506 | L59: 557.7112783 | M59: 486.5111068 | N59: 422.5311855 | O59: 365.1106043 | P59: 313.6455284 | Q59: 267.5844515 | R59: 226.4238332 | S59: 189.7040908 | T59: 157.0059163 | U59: 127.9468939 | V59: 102.1783931 | W59: 79.38271612 | X59: 59.27047835 | Y59: 41.57820429 | Z59: 26.06612082 | AA59: 12.51613237 | AB59: 0.7299632498 | AC59: 0.6111320231 | AD59: 0.5053288046 | AE59: 0.4113141433 | AF59: 0.3279581209 | AG59: 0.2542311015 | AH59: 0.1891952383 | AI59: 0.1319966779 | AJ59: 0.08185840489 | AK59: 0.03807367669 | AL59: 0 | AM59: 0 | AN59: 0 | AO59: 0 | AP59: 0 | AQ59: 0 | AR59: 0 | AS59: 0 | AT59: 0 | AU59: 0 | AV59: 0 | AW59: 0 | AX59: 0 | AY59: 0 | AZ59: 0
C60: Weighting | H60: =H59/SUM(59:59) -> 0.1419665197 | I60: =I59/SUM(59:59) -> 0.1254807952 | J60: 0.1106043828 | K60: 0.09719297168 | L60: 0.08511455386 | M60: 0.07424841027 | N60: 0.06448417801 | O60: 0.05572099293 | P60: 0.04786670139 | Q60: 0.04083713579 | R60: 0.03455544884 | S60: 0.02895150176 | T60: 0.02396130227 | U60: 0.01952648837 | V60: 0.01559385417 | W60: 0.01211491453 | X60: 0.009045505296 | Y60: 0.00634541643 | Z60: 0.003978055189 | AA60: 0.001910137134 | AB60: 0.0001114026177 | AC60: 9.326730787e-05 | AD60: 7.712025457e-05 | AE60: 6.277230023e-05 | AF60: 5.005100351e-05 | AG60: 3.879922752e-05 | AH60: 2.887384374e-05 | AI60: 2.014454214e-05 | AJ60: 1.249273931e-05 | AK60: 5.810576425e-06 | AL60: 0 | AM60: 0 | AN60: 0 | AO60: 0 | AP60: 0 | AQ60: 0 | AR60: 0 | AS60: 0 | AT60: 0 | AU60: 0 | AV60: 0 | AW60: 0 | AX60: 0 | AY60: 0 | AZ60: 0
C62: Weighted ROI with WACC | D62: =SUMPRODUCT(60:60,47:47) -> 0.183163655
A64: Total Cash Multiple
B65: Using IRR
C66: Opening Balance | H66: ='Alternative Performance Measure'!G69 -> 0 | I66: ='Alternative Performance Measure'!H69 -> 95 | J66: ='Alternative Performance Measure'!I69 -> 205.7995346 | K66: ='Alternative Performance Measure'!J69 -> 334.546257 | L66: ='Alternative Performance Measure'!K69 -> 483.6651725 | M66: ='Alternative Performance Measure'!L69 -> 655.8939142 | N66: ='Alternative Performance Measure'!M69 -> 854.3224841 | O66: ='Alternative Performance Measure'!N69 -> 1082.438024 | P66: ='Alternative Performance Measure'!O69 -> 1344.175254 | Q66: ='Alternative Performance Measure'!P69 -> 1643.973286 | R66: ='Alternative Performance Measure'!Q69 -> 1986.839638 | S66: ='Alternative Performance Measure'!R69 -> 2378.422328 | T66: ='Alternative Performance Measure'!S69 -> 2825.091105 | U66: ='Alternative Performance Measure'!T69 -> 3334.028938 | V66: ='Alternative Performance Measure'!U69 -> 3913.335085 | W66: ='Alternative Performance Measure'!V69 -> 4572.141185 | X66: ='Alternative Performance Measure'!W69 -> 5320.742042 | Y66: ='Alternative Performance Measure'!X69 -> 6170.742924 | Z66: ='Alternative Performance Measure'!Y69 -> 7135.225502 | AA66: ='Alternative Performance Measure'!Z69 -> 8228.934756 | AB66: ='Alternative Performance Measure'!AA69 -> 9468.489502 | AC66: ='Alternative Performance Measure'!AB69 -> 10872.61954 | AD66: ='Alternative Performance Measure'!AC69 -> 12462.43276 | AE66: ='Alternative Performance Measure'!AD69 -> 14261.71602 | AF66: ='Alternative Performance Measure'!AE69 -> 16297.27404 | AG66: ='Alternative Performance Measure'!AF69 -> 18599.31113 | AH66: ='Alternative Performance Measure'!AG69 -> 21201.86113 | AI66: ='Alternative Performance Measure'!AH69 -> 24143.27171 | AJ66: ='Alternative Performance Measure'!AI69 -> 27466.74986 | AK66: ='Alternative Performance Measure'!AJ69 -> 31220.97631 | AL66: ='Alternative Performance Measure'!AK69 -> 35460.7975 | AM66: ='Alternative Performance Measure'!AL69 -> 35460.7975 | AN66: ='Alternative Performance Measure'!AM69 -> 35460.7975 | AO66: ='Alternative Performance Measure'!AN69 -> 35460.7975 | AP66: ='Alternative Performance Measure'!AO69 -> 35460.7975 | AQ66: ='Alternative Performance Measure'!AP69 -> 35460.7975 | AR66: ='Alternative Performance Measure'!AQ69 -> 35460.7975 | AS66: ='Alternative Performance Measure'!AR69 -> 35460.7975 | AT66: ='Alternative Performance Measure'!AS69 -> 35460.7975 | AU66: ='Alternative Performance Measure'!AT69 -> 35460.7975 | AV66: ='Alternative Performance Measure'!AU69 -> 35460.7975 | AW66: ='Alternative Performance Measure'!AV69 -> 35460.7975 | AX66: ='Alternative Performance Measure'!AW69 -> 35460.7975 | AY66: ='Alternative Performance Measure'!AX69 -> 35460.7975 | AZ66: ='Alternative Performance Measure'!AY69 -> 35460.7975
C67: Add: Cash Flow | F67: =SUM(H67:AZ67) -> 5328.069086 | H67: ='Alternative Performance Measure'!H15 -> 95 | I67: ='Alternative Performance Measure'!I15 -> 98.8 | J67: ='Alternative Performance Measure'!J15 -> 102.752 | K67: ='Alternative Performance Measure'!K15 -> 106.86208 | L67: ='Alternative Performance Measure'!L15 -> 111.1365632 | M67: ='Alternative Performance Measure'!M15 -> 115.5820257 | N67: ='Alternative Performance Measure'!N15 -> 120.2053068 | O67: ='Alternative Performance Measure'!O15 -> 125.013519 | P67: ='Alternative Performance Measure'!P15 -> 130.0140598 | Q67: ='Alternative Performance Measure'!Q15 -> 135.2146222 | R67: ='Alternative Performance Measure'!R15 -> 140.6232071 | S67: ='Alternative Performance Measure'!S15 -> 146.2481353 | T67: ='Alternative Performance Measure'!T15 -> 152.0980608 | U67: ='Alternative Performance Measure'!U15 -> 158.1819832 | V67: ='Alternative Performance Measure'!V15 -> 164.5092625 | W67: ='Alternative Performance Measure'!W15 -> 171.089633 | X67: ='Alternative Performance Measure'!X15 -> 177.9332183 | Y67: ='Alternative Performance Measure'!Y15 -> 185.0505471 | Z67: ='Alternative Performance Measure'!Z15 -> 192.452569 | AA67: ='Alternative Performance Measure'!AA15 -> 200.1506717 | AB67: ='Alternative Performance Measure'!AB15 -> 208.1566986 | AC67: ='Alternative Performance Measure'!AC15 -> 216.4829665 | AD67: ='Alternative Performance Measure'!AD15 -> 225.1422852 | AE67: ='Alternative Performance Measure'!AE15 -> 234.1479766 | AF67: ='Alternative Performance Measure'!AF15 -> 243.5138957 | AG67: ='Alternative Performance Measure'!AG15 -> 253.2544515 | AH67: ='Alternative Performance Measure'!AH15 -> 263.3846296 | AI67: ='Alternative Performance Measure'!AI15 -> 273.9200147 | AJ67: ='Alternative Performance Measure'!AJ15 -> 284.8768153 | AK67: ='Alternative Performance Measure'!AK15 -> 296.2718879 | AL67: ='Alternative Performance Measure'!AL15 -> 0 | AM67: ='Alternative Performance Measure'!AM15 -> 0 | AN67: ='Alternative Performance Measure'!AN15 -> 0 | AO67: ='Alternative Performance Measure'!AO15 -> 0 | AP67: ='Alternative Performance Measure'!AP15 -> 0 | AQ67: ='Alternative Performance Measure'!AQ15 -> 0 | AR67: ='Alternative Performance Measure'!AR15 -> 0 | AS67: ='Alternative Performance Measure'!AS15 -> 0 | AT67: ='Alternative Performance Measure'!AT15 -> 0 | AU67: ='Alternative Performance Measure'!AU15 -> 0 | AV67: ='Alternative Performance Measure'!AV15 -> 0 | AW67: ='Alternative Performance Measure'!AW15 -> 0 | AX67: ='Alternative Performance Measure'!AX15 -> 0 | AY67: ='Alternative Performance Measure'!AY15 -> 0 | AZ67: ='Alternative Performance Measure'!AZ15 -> 0
C68: Add: Re-investment | D68: ='Alternative Performance Measure'!D18 -> 0.1263108902 | F68: =SUM(H68:AZ68) -> 30132.72842 | H68: =H66*$D$68*H9 -> 0 | I68: =I66*$D$68*I9 -> 11.99953457 | J68: 25.99472241 | K68: 42.25683553 | L68: 61.09217849 | M68: 82.84654417 | N68: 107.9102335 | O68: 136.7237104 | P68: 169.7839729 | Q68: 207.6517293 | R68: 250.9594833 | S68: 300.4206415 | T68: 356.8397724 | U68: 421.1241631 | V68: 494.2968382 | W68: 577.5112232 | X68: 672.0676637 | Y68: 779.4320318 | Z68: 901.2566849 | AA68: 1039.404074 | AB68: 1195.973338 | AC68: 1373.330253 | AD68: 1574.140976 | AE68: 1801.410046 | AF68: 2058.523192 | AG68: 2349.295546 | AH68: 2678.025953 | AI68: 3049.558142 | AJ68: 3469.349626 | AK68: 3943.54931 | AL68: 0 | AM68: 0 | AN68: 0 | AO68: 0 | AP68: 0 | AQ68: 0 | AR68: 0 | AS68: 0 | AT68: 0 | AU68: 0 | AV68: 0 | AW68: 0 | AX68: 0 | AY68: 0 | AZ68: 0
C69: Closing Balance | H69: =H66+H67+H68 -> 95 | I69: =I66+I67+I68 -> 205.7995346 | J69: 334.546257 | K69: 483.6651725 | L69: 655.8939142 | M69: 854.3224841 | N69: 1082.438024 | O69: 1344.175254 | P69: 1643.973286 | Q69: 1986.839638 | R69: 2378.422328 | S69: 2825.091105 | T69: 3334.028938 | U69: 3913.335085 | V69: 4572.141185 | W69: 5320.742042 | X69: 6170.742924 | Y69: 7135.225502 | Z69: 8228.934756 | AA69: 9468.489502 | AB69: 10872.61954 | AC69: 12462.43276 | AD69: 14261.71602 | AE69: 16297.27404 | AF69: 18599.31113 | AG69: 21201.86113 | AH69: 24143.27171 | AI69: 27466.74986 | AJ69: 31220.97631 | AK69: 35460.7975 | AL69: 35460.7975 | AM69: 35460.7975 | AN69: 35460.7975 | AO69: 35460.7975 | AP69: 35460.7975 | AQ69: 35460.7975 | AR69: 35460.7975 | AS69: 35460.7975 | AT69: 35460.7975 | AU69: 35460.7975 | AV69: 35460.7975 | AW69: 35460.7975 | AX69: 35460.7975 | AY69: 35460.7975 | AZ69: 35460.7975
D71: IRR | E71: =IRR(G71:AZ71) -> 0.1263108902 | G71: =-G14 -> -1000 | H71: 0 | I71: 0 | J71: 0 | K71: 0 | L71: 0 | M71: 0 | N71: 0 | O71: 0 | P71: 0 | Q71: 0 | R71: 0 | S71: 0 | T71: 0 | U71: 0 | V71: 0 | W71: 0 | X71: 0 | Y71: 0 | Z71: 0 | AA71: 0 | AB71: 0 | AC71: 0 | AD71: 0 | AE71: 0 | AF71: 0 | AG71: 0 | AH71: 0 | AI71: 0 | AJ71: 0 | AK71: =AK69 -> 35460.7975 | AL71: 0 | AM71: 0 | AN71: 0 | AO71: 0 | AP71: 0 | AQ71: 0 | AR71: 0 | AS71: 0 | AT71: 0 | AU71: 0 | AV71: 0 | AW71: 0 | AX71: 0 | AY71: 0 | AZ71: 0
D72: Growth | E72: =(-F74/G71)^(1/(D2))-1 -> 0.1263108902
C74: Total Received | F74: =F67+F68 -> 35460.7975
C75: Multiple | F75: =F74/D14 -> 35.4607975
B77: Using WACC
C78: Opening Balance | H78: ='Alternative Performance Measure'!G81 -> 0 | I78: ='Alternative Performance Measure'!H81 -> 95 | J78: ='Alternative Performance Measure'!I81 -> 200.925 | K78: ='Alternative Performance Measure'!J81 -> 318.746375 | L78: ='Alternative Performance Measure'!K81 -> 449.5144331 | M78: ='Alternative Performance Measure'!L81 -> 594.3645788 | N78: ='Alternative Performance Measure'!M81 -> 754.5239479 | O78: ='Alternative Performance Measure'!N81 -> 931.3185508 | P78: ='Alternative Performance Measure'!O81 -> 1126.180961 | Q78: ='Alternative Performance Measure'!P81 -> 1340.658593 | R78: ='Alternative Performance Measure'!Q81 -> 1576.42261 | S78: ='Alternative Performance Measure'!R81 -> 1835.277512 | T78: ='Alternative Performance Measure'!S81 -> 2119.171461 | U78: ='Alternative Performance Measure'!T81 -> 2430.207382 | V78: ='Alternative Performance Measure'!U81 -> 2770.654918 | W78: ='Alternative Performance Measure'!V81 -> 3142.9633 | X78: ='Alternative Performance Measure'!W81 -> 3549.77518 | Y78: ='Alternative Performance Measure'!X81 -> 3993.941537 | Z78: ='Alternative Performance Measure'!Y81 -> 4478.5377 | AA78: ='Alternative Performance Measure'!Z81 -> 5006.880596 | AB78: ='Alternative Performance Measure'!AA81 -> 5582.547312 | AC78: ='Alternative Performance Measure'!AB81 -> 6209.395059 | AD78: ='Alternative Performance Measure'!AC81 -> 6891.582655 | AE78: ='Alternative Performance Measure'!AD81 -> 7633.59364 | AF78: ='Alternative Performance Measure'!AE81 -> 8440.261139 | AG78: ='Alternative Performance Measure'!AF81 -> 9316.79462 | AH78: ='Alternative Performance Measure'!AG81 -> 10268.80867 | AI78: ='Alternative Performance Measure'!AH81 -> 11302.35395 | AJ78: ='Alternative Performance Measure'!AI81 -> 12423.95051 | AK78: ='Alternative Performance Measure'!AJ81 -> 13640.62361 | AL78: ='Alternative Performance Measure'!AK81 -> 14959.94227 | AM78: ='Alternative Performance Measure'!AL81 -> 14959.94227 | AN78: ='Alternative Performance Measure'!AM81 -> 14959.94227 | AO78: ='Alternative Performance Measure'!AN81 -> 14959.94227 | AP78: ='Alternative Performance Measure'!AO81 -> 14959.94227 | AQ78: ='Alternative Performance Measure'!AP81 -> 14959.94227 | AR78: ='Alternative Performance Measure'!AQ81 -> 14959.94227 | AS78: ='Alternative Performance Measure'!AR81 -> 14959.94227 | AT78: ='Alternative Performance Measure'!AS81 -> 14959.94227 | AU78: ='Alternative Performance Measure'!AT81 -> 14959.94227 | AV78: ='Alternative Performance Measure'!AU81 -> 14959.94227 | AW78: ='Alternative Performance Measure'!AV81 -> 14959.94227 | AX78: ='Alternative Performance Measure'!AW81 -> 14959.94227 | AY78: ='Alternative Performance Measure'!AX81 -> 14959.94227 | AZ78: ='Alternative Performance Measure'!AY81 -> 14959.94227
C79: Add: Cash Flow | F79: =SUM(H79:AZ79) -> 5328.069086 | H79: ='Alternative Performance Measure'!H15 -> 95 | I79: ='Alternative Performance Measure'!I15 -> 98.8 | J79: ='Alternative Performance Measure'!J15 -> 102.752 | K79: ='Alternative Performance Measure'!K15 -> 106.86208 | L79: ='Alternative Performance Measure'!L15 -> 111.1365632 | M79: ='Alternative Performance Measure'!M15 -> 115.5820257 | N79: ='Alternative Performance Measure'!N15 -> 120.2053068 | O79: ='Alternative Performance Measure'!O15 -> 125.013519 | P79: ='Alternative Performance Measure'!P15 -> 130.0140598 | Q79: ='Alternative Performance Measure'!Q15 -> 135.2146222 | R79: ='Alternative Performance Measure'!R15 -> 140.6232071 | S79: ='Alternative Performance Measure'!S15 -> 146.2481353 | T79: ='Alternative Performance Measure'!T15 -> 152.0980608 | U79: ='Alternative Performance Measure'!U15 -> 158.1819832 | V79: ='Alternative Performance Measure'!V15 -> 164.5092625 | W79: ='Alternative Performance Measure'!W15 -> 171.089633 | X79: ='Alternative Performance Measure'!X15 -> 177.9332183 | Y79: ='Alternative Performance Measure'!Y15 -> 185.0505471 | Z79: ='Alternative Performance Measure'!Z15 -> 192.452569 | AA79: ='Alternative Performance Measure'!AA15 -> 200.1506717 | AB79: ='Alternative Performance Measure'!AB15 -> 208.1566986 | AC79: ='Alternative Performance Measure'!AC15 -> 216.4829665 | AD79: ='Alternative Performance Measure'!AD15 -> 225.1422852 | AE79: ='Alternative Performance Measure'!AE15 -> 234.1479766 | AF79: ='Alternative Performance Measure'!AF15 -> 243.5138957 | AG79: ='Alternative Performance Measure'!AG15 -> 253.2544515 | AH79: ='Alternative Performance Measure'!AH15 -> 263.3846296 | AI79: ='Alternative Performance Measure'!AI15 -> 273.9200147 | AJ79: ='Alternative Performance Measure'!AJ15 -> 284.8768153 | AK79: ='Alternative Performance Measure'!AK15 -> 296.2718879 | AL79: ='Alternative Performance Measure'!AL15 -> 0 | AM79: ='Alternative Performance Measure'!AM15 -> 0 | AN79: ='Alternative Performance Measure'!AN15 -> 0 | AO79: ='Alternative Performance Measure'!AO15 -> 0 | AP79: ='Alternative Performance Measure'!AP15 -> 0 | AQ79: ='Alternative Performance Measure'!AQ15 -> 0 | AR79: ='Alternative Performance Measure'!AR15 -> 0 | AS79: ='Alternative Performance Measure'!AS15 -> 0 | AT79: ='Alternative Performance Measure'!AT15 -> 0 | AU79: ='Alternative Performance Measure'!AU15 -> 0 | AV79: ='Alternative Performance Measure'!AV15 -> 0 | AW79: ='Alternative Performance Measure'!AW15 -> 0 | AX79: ='Alternative Performance Measure'!AX15 -> 0 | AY79: ='Alternative Performance Measure'!AY15 -> 0 | AZ79: ='Alternative Performance Measure'!AZ15 -> 0
C80: Add: Re-investment | D80: ='Alternative Performance Measure'!H4 -> 0.075 | F80: =SUM(H80:AZ80) -> 9631.873185 | H80: =H78*$D$80*H9 -> 0 | I80: =I78*$D$80*I9 -> 7.125 | J80: 15.069375 | K80: 23.90597813 | L80: 33.71358248 | M80: 44.57734341 | N80: 56.5892961 | O80: 69.84889131 | P80: 84.46357209 | Q80: 100.5493945 | R80: 118.2316957 | S80: 137.6458134 | T80: 158.9378596 | U80: 182.2655536 | V80: 207.7991189 | W80: 235.7222475 | X80: 266.2331385 | Y80: 299.5456153 | Z80: 335.8903275 | AA80: 375.5160447 | AB80: 418.6910484 | AC80: 465.7046295 | AD80: 516.8686992 | AE80: 572.519523 | AF80: 633.0195855 | AG80: 698.7595965 | AH80: 770.1606501 | AI80: 847.6765461 | AJ80: 931.7962882 | AK80: 1023.046771 | AL80: 0 | AM80: 0 | AN80: 0 | AO80: 0 | AP80: 0 | AQ80: 0 | AR80: 0 | AS80: 0 | AT80: 0 | AU80: 0 | AV80: 0 | AW80: 0 | AX80: 0 | AY80: 0 | AZ80: 0
C81: Closing Balance | H81: =H78+H79+H80 -> 95 | I81: =I78+I79+I80 -> 200.925 | J81: =J78+J79+J80 -> 318.746375 | K81: =K78+K79+K80 -> 449.5144331 | L81: =L78+L79+L80 -> 594.3645788 | M81: =M78+M79+M80 -> 754.5239479 | N81: =N78+N79+N80 -> 931.3185508 | O81: =O78+O79+O80 -> 1126.180961 | P81: =P78+P79+P80 -> 1340.658593 | Q81: =Q78+Q79+Q80 -> 1576.42261 | R81: =R78+R79+R80 -> 1835.277512 | S81: =S78+S79+S80 -> 2119.171461 | T81: =T78+T79+T80 -> 2430.207382 | U81: =U78+U79+U80 -> 2770.654918 | V81: =V78+V79+V80 -> 3142.9633 | W81: =W78+W79+W80 -> 3549.77518 | X81: =X78+X79+X80 -> 3993.941537 | Y81: =Y78+Y79+Y80 -> 4478.5377 | Z81: =Z78+Z79+Z80 -> 5006.880596 | AA81: =AA78+AA79+AA80 -> 5582.547312 | AB81: =AB78+AB79+AB80 -> 6209.395059 | AC81: =AC78+AC79+AC80 -> 6891.582655 | AD81: =AD78+AD79+AD80 -> 7633.59364 | AE81: =AE78+AE79+AE80 -> 8440.261139 | AF81: =AF78+AF79+AF80 -> 9316.79462 | AG81: =AG78+AG79+AG80 -> 10268.80867 | AH81: =AH78+AH79+AH80 -> 11302.35395 | AI81: =AI78+AI79+AI80 -> 12423.95051 | AJ81: =AJ78+AJ79+AJ80 -> 13640.62361 | AK81: =AK78+AK79+AK80 -> 14959.94227 | AL81: =AL78+AL79+AL80 -> 14959.94227 | AM81: =AM78+AM79+AM80 -> 14959.94227 | AN81: =AN78+AN79+AN80 -> 14959.94227 | AO81: =AO78+AO79+AO80 -> 14959.94227 | AP81: =AP78+AP79+AP80 -> 14959.94227 | AQ81: =AQ78+AQ79+AQ80 -> 14959.94227 | AR81: =AR78+AR79+AR80 -> 14959.94227 | AS81: =AS78+AS79+AS80 -> 14959.94227 | AT81: =AT78+AT79+AT80 -> 14959.94227 | AU81: =AU78+AU79+AU80 -> 14959.94227 | AV81: =AV78+AV79+AV80 -> 14959.94227 | AW81: =AW78+AW79+AW80 -> 14959.94227 | AX81: =AX78+AX79+AX80 -> 14959.94227 | AY81: =AY78+AY79+AY80 -> 14959.94227 | AZ81: =AZ78+AZ79+AZ80 -> 14959.94227
C83: Total Received | F83: =F79+F80 -> 14959.94227
C84: Multiple | F84: =F83/D14 -> 14.95994227
A86: Economic Depreciation and NPV of Cash Flow
B87: NPV with IRR
C88: NPV of Future Cash Flow | D88: ='Alternative Performance Measure'!D68 -> 0.1263108902 | G88: =NPV($D$88,H15:AZ15) -> 1000 | H88: =NPV($D$88,I15:BA15) -> 1031.31089 | I88: 1062.776687 | J88: 1094.264956 | K88: 1125.620457 | L88: 1156.662016 | M88: 1187.178999 | N88: 1216.927328 | O88: 1245.624983 | P88: 1272.946924 | Q88: 1298.519361 | R88: 1321.91329 | S88: 1342.637199 | T88: 1360.128838 | U88: 1373.745939 | V88: 1382.755749 | W88: 1386.323226 | X88: 1383.497728 | Y88: 1373.198011 | Z88: 1354.195305 | AA88: 1325.094248 | AB88: 1284.311384 | AC88: 1230.050931 | AD88: 1160.277474 | AE88: 1072.685178 | AF88: 964.6631021 | AG88: 833.2561058 | AH88: 675.1207968 | AI88: 486.4758908 | AJ88: 263.0462784 | AK88: 0 | AL88: 0 | AM88: 0 | AN88: 0 | AO88: 0 | AP88: 0 | AQ88: 0 | AR88: 0 | AS88: 0 | AT88: 0 | AU88: 0 | AV88: 0 | AW88: 0 | AX88: 0 | AY88: 0 | AZ88: 0
C89: Change in NPV =Depreciation | H89: =G88-H88 -> -31.31089019 | I89: =H88-I88 -> -31.4657966 | J89: -31.48826938 | K89: -31.35550072 | L89: -31.04155873 | M89: -30.51698311 | N89: -29.74832939 | O89: -28.69765508 | P89: -27.32194068 | Q89: -25.57243694 | R89: -23.39392933 | S89: -20.72390908 | T89: -17.49163907 | U89: -13.61710115 | V89: -9.009809987 | W89: -3.567476606 | X89: 2.825497569 | Y89: 10.29971742 | Z89: 19.00270578 | AA89: 29.10105722 | AB89: 40.78286453 | AC89: 54.26045239 | AD89: 69.7734571 | AE89: 87.59229598 | AF89: 108.0220759 | AG89: 131.4069963 | AH89: 158.1353091 | AI89: 188.6449059 | AJ89: 223.4296125 | AK89: 263.0462784 | AL89: 0 | AM89: 0 | AN89: 0 | AO89: 0 | AP89: 0 | AQ89: 0 | AR89: 0 | AS89: 0 | AT89: 0 | AU89: 0 | AV89: 0 | AW89: 0 | AX89: 0 | AY89: 0 | AZ89: 0
C91: EBITDA | H91: ='Alternative Performance Measure'!H15 -> 95 | I91: ='Alternative Performance Measure'!I15 -> 98.8 | J91: ='Alternative Performance Measure'!J15 -> 102.752 | K91: ='Alternative Performance Measure'!K15 -> 106.86208 | L91: ='Alternative Performance Measure'!L15 -> 111.1365632 | M91: ='Alternative Performance Measure'!M15 -> 115.5820257 | N91: ='Alternative Performance Measure'!N15 -> 120.2053068 | O91: ='Alternative Performance Measure'!O15 -> 125.013519 | P91: ='Alternative Performance Measure'!P15 -> 130.0140598 | Q91: ='Alternative Performance Measure'!Q15 -> 135.2146222 | R91: ='Alternative Performance Measure'!R15 -> 140.6232071 | S91: ='Alternative Performance Measure'!S15 -> 146.2481353 | T91: ='Alternative Performance Measure'!T15 -> 152.0980608 | U91: ='Alternative Performance Measure'!U15 -> 158.1819832 | V91: ='Alternative Performance Measure'!V15 -> 164.5092625 | W91: ='Alternative Performance Measure'!W15 -> 171.089633 | X91: ='Alternative Performance Measure'!X15 -> 177.9332183 | Y91: ='Alternative Performance Measure'!Y15 -> 185.0505471 | Z91: ='Alternative Performance Measure'!Z15 -> 192.452569 | AA91: ='Alternative Performance Measure'!AA15 -> 200.1506717 | AB91: ='Alternative Performance Measure'!AB15 -> 208.1566986 | AC91: ='Alternative Performance Measure'!AC15 -> 216.4829665 | AD91: ='Alternative Performance Measure'!AD15 -> 225.1422852 | AE91: ='Alternative Performance Measure'!AE15 -> 234.1479766 | AF91: ='Alternative Performance Measure'!AF15 -> 243.5138957 | AG91: ='Alternative Performance Measure'!AG15 -> 253.2544515 | AH91: ='Alternative Performance Measure'!AH15 -> 263.3846296 | AI91: ='Alternative Performance Measure'!AI15 -> 273.9200147 | AJ91: ='Alternative Performance Measure'!AJ15 -> 284.8768153 | AK91: ='Alternative Performance Measure'!AK15 -> 296.2718879 | AL91: ='Alternative Performance Measure'!AL15 -> 0 | AM91: ='Alternative Performance Measure'!AM15 -> 0 | AN91: ='Alternative Performance Measure'!AN15 -> 0 | AO91: ='Alternative Performance Measure'!AO15 -> 0 | AP91: ='Alternative Performance Measure'!AP15 -> 0 | AQ91: ='Alternative Performance Measure'!AQ15 -> 0 | AR91: ='Alternative Performance Measure'!AR15 -> 0 | AS91: ='Alternative Performance Measure'!AS15 -> 0 | AT91: ='Alternative Performance Measure'!AT15 -> 0 | AU91: ='Alternative Performance Measure'!AU15 -> 0 | AV91: ='Alternative Performance Measure'!AV15 -> 0 | AW91: ='Alternative Performance Measure'!AW15 -> 0 | AX91: ='Alternative Performance Measure'!AX15 -> 0 | AY91: ='Alternative Performance Measure'!AY15 -> 0 | AZ91: ='Alternative Performance Measure'!AZ15 -> 0
C92: Less: Depreciation | H92: ='Alternative Performance Measure'!H89 -> -31.31089019 | I92: ='Alternative Performance Measure'!I89 -> -31.4657966 | J92: ='Alternative Performance Measure'!J89 -> -31.48826938 | K92: ='Alternative Performance Measure'!K89 -> -31.35550072 | L92: ='Alternative Performance Measure'!L89 -> -31.04155873 | M92: ='Alternative Performance Measure'!M89 -> -30.51698311 | N92: ='Alternative Performance Measure'!N89 -> -29.74832939 | O92: ='Alternative Performance Measure'!O89 -> -28.69765508 | P92: ='Alternative Performance Measure'!P89 -> -27.32194068 | Q92: ='Alternative Performance Measure'!Q89 -> -25.57243694 | R92: ='Alternative Performance Measure'!R89 -> -23.39392933 | S92: ='Alternative Performance Measure'!S89 -> -20.72390908 | T92: ='Alternative Performance Measure'!T89 -> -17.49163907 | U92: ='Alternative Performance Measure'!U89 -> -13.61710115 | V92: ='Alternative Performance Measure'!V89 -> -9.009809987 | W92: ='Alternative Performance Measure'!W89 -> -3.567476606 | X92: ='Alternative Performance Measure'!X89 -> 2.825497569 | Y92: ='Alternative Performance Measure'!Y89 -> 10.29971742 | Z92: ='Alternative Performance Measure'!Z89 -> 19.00270578 | AA92: ='Alternative Performance Measure'!AA89 -> 29.10105722 | AB92: ='Alternative Performance Measure'!AB89 -> 40.78286453 | AC92: ='Alternative Performance Measure'!AC89 -> 54.26045239 | AD92: ='Alternative Performance Measure'!AD89 -> 69.7734571 | AE92: ='Alternative Performance Measure'!AE89 -> 87.59229598 | AF92: ='Alternative Performance Measure'!AF89 -> 108.0220759 | AG92: ='Alternative Performance Measure'!AG89 -> 131.4069963 | AH92: ='Alternative Performance Measure'!AH89 -> 158.1353091 | AI92: ='Alternative Performance Measure'!AI89 -> 188.6449059 | AJ92: ='Alternative Performance Measure'!AJ89 -> 223.4296125 | AK92: ='Alternative Performance Measure'!AK89 -> 263.0462784 | AL92: ='Alternative Performance Measure'!AL89 -> 0 | AM92: ='Alternative Performance Measure'!AM89 -> 0 | AN92: ='Alternative Performance Measure'!AN89 -> 0 | AO92: ='Alternative Performance Measure'!AO89 -> 0 | AP92: ='Alternative Performance Measure'!AP89 -> 0 | AQ92: ='Alternative Performance Measure'!AQ89 -> 0 | AR92: ='Alternative Performance Measure'!AR89 -> 0 | AS92: ='Alternative Performance Measure'!AS89 -> 0 | AT92: ='Alternative Performance Measure'!AT89 -> 0 | AU92: ='Alternative Performance Measure'!AU89 -> 0 | AV92: ='Alternative Performance Measure'!AV89 -> 0 | AW92: ='Alternative Performance Measure'!AW89 -> 0 | AX92: ='Alternative Performance Measure'!AX89 -> 0 | AY92: ='Alternative Performance Measure'!AY89 -> 0 | AZ92: ='Alternative Performance Measure'!AZ89 -> 0
C93: EBIT | H93: =H91-H92 -> 126.3108902 | I93: =I91-I92 -> 130.2657966 | J93: 134.2402694 | K93: 138.2175807 | L93: 142.1781219 | M93: 146.0990088 | N93: 149.9536361 | O93: 153.7111741 | P93: 157.3360005 | Q93: 160.7870591 | R93: 164.0171364 | S93: 166.9720444 | T93: 169.5896998 | U93: 171.7990843 | V93: 173.5190725 | W93: 174.6571096 | X93: 175.1077208 | Y93: 174.7508297 | Z93: 173.4498632 | AA93: 171.0496145 | AB93: 167.3738341 | AC93: 162.2225141 | AD93: 155.3688281 | AE93: 146.5556806 | AF93: 135.4918197 | AG93: 121.8474552 | AH93: 105.2493205 | AI93: 85.27510882 | AJ93: 61.44720283 | AK93: 33.22560958 | AL93: 0 | AM93: 0 | AN93: 0 | AO93: 0 | AP93: 0 | AQ93: 0 | AR93: 0 | AS93: 0 | AT93: 0 | AU93: 0 | AV93: 0 | AW93: 0 | AX93: 0 | AY93: 0 | AZ93: 0
C95: ROIC | H95: =IF(G88>0.1,H93/G88) -> 0.1263108902 | I95: =IF(H88>0.1,I93/H88) -> 0.1263108902 | J95: 0.1263108902 | K95: 0.1263108902 | L95: 0.1263108902 | M95: 0.1263108902 | N95: 0.1263108902 | O95: 0.1263108902 | P95: 0.1263108902 | Q95: 0.1263108902 | R95: 0.1263108902 | S95: 0.1263108902 | T95: 0.1263108902 | U95: 0.1263108902 | V95: 0.1263108902 | W95: 0.1263108902 | X95: 0.1263108902 | Y95: 0.1263108902 | Z95: 0.1263108902 | AA95: 0.1263108902 | AB95: 0.1263108902 | AC95: 0.1263108902 | AD95: 0.1263108902 | AE95: 0.1263108902 | AF95: 0.1263108902 | AG95: 0.1263108902 | AH95: 0.1263108902 | AI95: 0.1263108902 | AJ95: 0.1263108902 | AK95: 0.1263108902 | AL95: FALSE | AM95: FALSE | AN95: FALSE | AO95: FALSE | AP95: FALSE | AQ95: FALSE | AR95: FALSE | AS95: FALSE | AT95: FALSE | AU95: FALSE | AV95: FALSE | AW95: FALSE | AX95: FALSE | AY95: FALSE | AZ95: FALSE
B97: NPV with WACC
C98: NPV of Future Cash Flow | D98: ='Alternative Performance Measure'!H4 -> 0.075 | G98: =NPV($D$98,H15:AZ15) -> 1708.740016 | H98: =NPV($D$98,I15:BA15) -> 1741.895517 | I98: 1773.737681 | J98: 1804.016007 | K98: 1832.455128 | L98: 1858.752699 | M98: 1882.577126 | N98: 1903.565104 | O98: 1921.318967 | P98: 1935.40383 | Q98: 1945.344495 | R98: 1950.622125 | S98: 1950.670649 | T98: 1944.872887 | U98: 1932.556371 | V98: 1912.988836 | W98: 1885.373366 | X98: 1848.84315 | Y98: 1802.455839 | Z98: 1745.187458 | AA98: 1675.925845 | AB98: 1593.463585 | AC98: 1496.490388 | AD98: 1383.584881 | AE98: 1253.205771 | AF98: 1103.682308 | AG98: 933.2040298 | AH98: 739.8097024 | AI98: 521.3754154 | AJ98: 275.6017562 | AK98: 0 | AL98: 0 | AM98: 0 | AN98: 0 | AO98: 0 | AP98: 0 | AQ98: 0 | AR98: 0 | AS98: 0 | AT98: 0 | AU98: 0 | AV98: 0 | AW98: 0 | AX98: 0 | AY98: 0 | AZ98: 0
C99: Change in NPV =Depreciation | H99: =G98-H98 -> -33.15550121 | I99: =H98-I98 -> -31.84216381 | J99: -30.27832609 | K99: -28.43912055 | L99: -26.29757139 | M99: -23.82442672 | N99: -20.98797769 | O99: -17.75386375 | P99: -14.08486277 | Q99: -9.940665082 | R99: -5.277630076 | S99: -0.04852404951 | T99: 5.797762061 | U99: 12.31651665 | V99: 19.56753472 | W99: 27.61547033 | X99: 36.53021592 | Y99: 46.38731085 | Z99: 57.26838105 | AA99: 69.26161238 | AB99: 82.46226018 | AC99: 96.97319764 | AD99: 112.9055061 | AE99: 130.3791105 | AF99: 149.5234628 | AG99: 170.4782784 | AH99: 193.3943273 | AI99: 218.4342871 | AJ99: 245.7736592 | AK99: 275.6017562 | AL99: 0 | AM99: 0 | AN99: 0 | AO99: 0 | AP99: 0 | AQ99: 0 | AR99: 0 | AS99: 0 | AT99: 0 | AU99: 0 | AV99: 0 | AW99: 0 | AX99: 0 | AY99: 0 | AZ99: 0
C101: EBITDA | H101: ='Alternative Performance Measure'!H91 -> 95 | I101: ='Alternative Performance Measure'!I91 -> 98.8 | J101: ='Alternative Performance Measure'!J91 -> 102.752 | K101: ='Alternative Performance Measure'!K91 -> 106.86208 | L101: ='Alternative Performance Measure'!L91 -> 111.1365632 | M101: ='Alternative Performance Measure'!M91 -> 115.5820257 | N101: ='Alternative Performance Measure'!N91 -> 120.2053068 | O101: ='Alternative Performance Measure'!O91 -> 125.013519 | P101: ='Alternative Performance Measure'!P91 -> 130.0140598 | Q101: ='Alternative Performance Measure'!Q91 -> 135.2146222 | R101: ='Alternative Performance Measure'!R91 -> 140.6232071 | S101: ='Alternative Performance Measure'!S91 -> 146.2481353 | T101: ='Alternative Performance Measure'!T91 -> 152.0980608 | U101: ='Alternative Performance Measure'!U91 -> 158.1819832 | V101: ='Alternative Performance Measure'!V91 -> 164.5092625 | W101: ='Alternative Performance Measure'!W91 -> 171.089633 | X101: ='Alternative Performance Measure'!X91 -> 177.9332183 | Y101: ='Alternative Performance Measure'!Y91 -> 185.0505471 | Z101: ='Alternative Performance Measure'!Z91 -> 192.452569 | AA101: ='Alternative Performance Measure'!AA91 -> 200.1506717 | AB101: ='Alternative Performance Measure'!AB91 -> 208.1566986 | AC101: ='Alternative Performance Measure'!AC91 -> 216.4829665 | AD101: ='Alternative Performance Measure'!AD91 -> 225.1422852 | AE101: ='Alternative Performance Measure'!AE91 -> 234.1479766 | AF101: ='Alternative Performance Measure'!AF91 -> 243.5138957 | AG101: ='Alternative Performance Measure'!AG91 -> 253.2544515 | AH101: ='Alternative Performance Measure'!AH91 -> 263.3846296 | AI101: ='Alternative Performance Measure'!AI91 -> 273.9200147 | AJ101: ='Alternative Performance Measure'!AJ91 -> 284.8768153 | AK101: ='Alternative Performance Measure'!AK91 -> 296.2718879 | AL101: ='Alternative Performance Measure'!AL91 -> 0 | AM101: ='Alternative Performance Measure'!AM91 -> 0 | AN101: ='Alternative Performance Measure'!AN91 -> 0 | AO101: ='Alternative Performance Measure'!AO91 -> 0 | AP101: ='Alternative Performance Measure'!AP91 -> 0 | AQ101: ='Alternative Performance Measure'!AQ91 -> 0 | AR101: ='Alternative Performance Measure'!AR91 -> 0 | AS101: ='Alternative Performance Measure'!AS91 -> 0 | AT101: ='Alternative Performance Measure'!AT91 -> 0 | AU101: ='Alternative Performance Measure'!AU91 -> 0 | AV101: ='Alternative Performance Measure'!AV91 -> 0 | AW101: ='Alternative Performance Measure'!AW91 -> 0 | AX101: ='Alternative Performance Measure'!AX91 -> 0 | AY101: ='Alternative Performance Measure'!AY91 -> 0 | AZ101: ='Alternative Performance Measure'!AZ91 -> 0
C102: Depreciation | H102: ='Alternative Performance Measure'!H99 -> -33.15550121 | I102: ='Alternative Performance Measure'!I99 -> -31.84216381 | J102: ='Alternative Performance Measure'!J99 -> -30.27832609 | K102: ='Alternative Performance Measure'!K99 -> -28.43912055 | L102: ='Alternative Performance Measure'!L99 -> -26.29757139 | M102: ='Alternative Performance Measure'!M99 -> -23.82442672 | N102: ='Alternative Performance Measure'!N99 -> -20.98797769 | O102: ='Alternative Performance Measure'!O99 -> -17.75386375 | P102: ='Alternative Performance Measure'!P99 -> -14.08486277 | Q102: ='Alternative Performance Measure'!Q99 -> -9.940665082 | R102: ='Alternative Performance Measure'!R99 -> -5.277630076 | S102: ='Alternative Performance Measure'!S99 -> -0.04852404951 | T102: ='Alternative Performance Measure'!T99 -> 5.797762061 | U102: ='Alternative Performance Measure'!U99 -> 12.31651665 | V102: ='Alternative Performance Measure'!V99 -> 19.56753472 | W102: ='Alternative Performance Measure'!W99 -> 27.61547033 | X102: ='Alternative Performance Measure'!X99 -> 36.53021592 | Y102: ='Alternative Performance Measure'!Y99 -> 46.38731085 | Z102: ='Alternative Performance Measure'!Z99 -> 57.26838105 | AA102: ='Alternative Performance Measure'!AA99 -> 69.26161238 | AB102: ='Alternative Performance Measure'!AB99 -> 82.46226018 | AC102: ='Alternative Performance Measure'!AC99 -> 96.97319764 | AD102: ='Alternative Performance Measure'!AD99 -> 112.9055061 | AE102: ='Alternative Performance Measure'!AE99 -> 130.3791105 | AF102: ='Alternative Performance Measure'!AF99 -> 149.5234628 | AG102: ='Alternative Performance Measure'!AG99 -> 170.4782784 | AH102: ='Alternative Performance Measure'!AH99 -> 193.3943273 | AI102: ='Alternative Performance Measure'!AI99 -> 218.4342871 | AJ102: ='Alternative Performance Measure'!AJ99 -> 245.7736592 | AK102: ='Alternative Performance Measure'!AK99 -> 275.6017562 | AL102: ='Alternative Performance Measure'!AL99 -> 0 | AM102: ='Alternative Performance Measure'!AM99 -> 0 | AN102: ='Alternative Performance Measure'!AN99 -> 0 | AO102: ='Alternative Performance Measure'!AO99 -> 0 | AP102: ='Alternative Performance Measure'!AP99 -> 0 | AQ102: ='Alternative Performance Measure'!AQ99 -> 0 | AR102: ='Alternative Performance Measure'!AR99 -> 0 | AS102: ='Alternative Performance Measure'!AS99 -> 0 | AT102: ='Alternative Performance Measure'!AT99 -> 0 | AU102: ='Alternative Performance Measure'!AU99 -> 0 | AV102: ='Alternative Performance Measure'!AV99 -> 0 | AW102: ='Alternative Performance Measure'!AW99 -> 0 | AX102: ='Alternative Performance Measure'!AX99 -> 0 | AY102: ='Alternative Performance Measure'!AY99 -> 0 | AZ102: ='Alternative Performance Measure'!AZ99 -> 0
C103: EBIT | H103: =H101-H102 -> 128.1555012 | I103: =I101-I102 -> 130.6421638 | J103: 133.0303261 | K103: 135.3012005 | L103: 137.4341346 | M103: 139.4064524 | N103: 141.1932844 | O103: 142.7673828 | P103: 144.0989226 | Q103: 145.1552873 | R103: 145.9008371 | S103: 146.2966594 | T103: 146.3002987 | U103: 145.8654665 | V103: 144.9417278 | W103: 143.4741627 | X103: 141.4030024 | Y103: 138.6632362 | Z103: 135.1841879 | AA103: 130.8890593 | AB103: 125.6944384 | AC103: 119.5097689 | AD103: 112.2367791 | AE103: 103.7688661 | AF103: 93.99043282 | AG103: 82.77617311 | AH103: 69.99030223 | AI103: 55.48572768 | AJ103: 39.10315615 | AK103: 20.67013172 | AL103: 0 | AM103: 0 | AN103: 0 | AO103: 0 | AP103: 0 | AQ103: 0 | AR103: 0 | AS103: 0 | AT103: 0 | AU103: 0 | AV103: 0 | AW103: 0 | AX103: 0 | AY103: 0 | AZ103: 0
C105: ROIC | H105: =H103/G98 -> 0.075 | I105: =I103/H98 -> 0.075 | J105: 0.075 | K105: 0.075 | L105: 0.075 | M105: 0.075 | N105: 0.075 | O105: 0.075 | P105: 0.075 | Q105: 0.075 | R105: 0.075 | S105: 0.075 | T105: 0.075 | U105: 0.075 | V105: 0.075 | W105: 0.075 | X105: 0.075 | Y105: 0.075 | Z105: 0.075 | AA105: 0.075 | AB105: 0.075 | AC105: 0.075 | AD105: 0.075 | AE105: 0.075 | AF105: 0.075 | AG105: 0.075 | AH105: 0.075 | AI105: 0.075 | AJ105: 0.075 | AK105: 0.075
A107: Negative and Positive
C108: Initial Cash Flow
C109: Opening Balance | H109: ='Alternative Performance Measure'!G112 -> 0 | I109: ='Alternative Performance Measure'!H112 -> 95 | J109: ='Alternative Performance Measure'!I112 -> 200.925 | K109: ='Alternative Performance Measure'!J112 -> 318.746375 | L109: ='Alternative Performance Measure'!K112 -> 342.6523531 | M109: ='Alternative Performance Measure'!L112 -> 368.3512796 | N109: ='Alternative Performance Measure'!M112 -> 395.9776256 | O109: ='Alternative Performance Measure'!N112 -> 425.6759475 | P109: ='Alternative Performance Measure'!O112 -> 457.6016436 | Q109: ='Alternative Performance Measure'!P112 -> 491.9217668 | R109: ='Alternative Performance Measure'!Q112 -> 528.8158993 | S109: ='Alternative Performance Measure'!R112 -> 568.4770918 | T109: ='Alternative Performance Measure'!S112 -> 611.1128737 | U109: ='Alternative Performance Measure'!T112 -> 656.9463392 | V109: ='Alternative Performance Measure'!U112 -> 706.2173146 | W109: ='Alternative Performance Measure'!V112 -> 759.1836132 | X109: ='Alternative Performance Measure'!W112 -> 816.1223842 | Y109: ='Alternative Performance Measure'!X112 -> 877.331563 | Z109: ='Alternative Performance Measure'!Y112 -> 943.1314303 | AA109: ='Alternative Performance Measure'!Z112 -> 1013.866288 | AB109: ='Alternative Performance Measure'!AA112 -> 1089.906259 | AC109: ='Alternative Performance Measure'!AB112 -> 1171.649229 | AD109: ='Alternative Performance Measure'!AC112 -> 1259.522921 | AE109: ='Alternative Performance Measure'!AD112 -> 1353.98714 | AF109: ='Alternative Performance Measure'!AE112 -> 1455.536175 | AG109: ='Alternative Performance Measure'!AF112 -> 1564.701388 | AH109: ='Alternative Performance Measure'!AG112 -> 1682.053992 | AI109: ='Alternative Performance Measure'!AH112 -> 1808.208042 | AJ109: ='Alternative Performance Measure'!AI112 -> 1943.823645 | AK109: ='Alternative Performance Measure'!AJ112 -> 2089.610418 | AL109: ='Alternative Performance Measure'!AK112 -> 2246.3312 | AM109: ='Alternative Performance Measure'!AL112 -> 2246.3312 | AN109: ='Alternative Performance Measure'!AM112 -> 2246.3312 | AO109: ='Alternative Performance Measure'!AN112 -> 2246.3312 | AP109: ='Alternative Performance Measure'!AO112 -> 2246.3312 | AQ109: ='Alternative Performance Measure'!AP112 -> 2246.3312 | AR109: ='Alternative Performance Measure'!AQ112 -> 2246.3312 | AS109: ='Alternative Performance Measure'!AR112 -> 2246.3312 | AT109: ='Alternative Performance Measure'!AS112 -> 2246.3312 | AU109: ='Alternative Performance Measure'!AT112 -> 2246.3312 | AV109: ='Alternative Performance Measure'!AU112 -> 2246.3312 | AW109: ='Alternative Performance Measure'!AV112 -> 2246.3312 | AX109: ='Alternative Performance Measure'!AW112 -> 2246.3312 | AY109: ='Alternative Performance Measure'!AX112 -> 2246.3312 | AZ109: ='Alternative Performance Measure'!AY112 -> 2246.3312
C110: Add: Cash Flow | H110: ='Alternative Performance Measure'!H15 -> 95 | I110: ='Alternative Performance Measure'!I15 -> 98.8 | J110: ='Alternative Performance Measure'!J15 -> 102.752 | K110: 0 | L110: 0 | M110: 0 | N110: 0 | O110: 0 | P110: 0 | Q110: 0 | R110: 0 | S110: 0 | T110: 0 | U110: 0 | V110: 0 | W110: 0 | X110: 0 | Y110: 0 | Z110: 0 | AA110: 0 | AB110: 0 | AC110: 0 | AD110: 0 | AE110: 0 | AF110: 0 | AG110: 0 | AH110: 0 | AI110: 0 | AJ110: 0 | AK110: 0 | AL110: 0 | AM110: 0 | AN110: 0 | AO110: 0 | AP110: 0 | AQ110: 0 | AR110: 0 | AS110: 0 | AT110: 0 | AU110: 0 | AV110: 0 | AW110: 0 | AX110: 0 | AY110: 0 | AZ110: 0
C111: Re-Investment | D111: ='Alternative Performance Measure'!H4 -> 0.075 | H111: =H109*$D$111*H9 -> 0 | I111: 7.125 | J111: 15.069375 | K111: 23.90597813 | L111: 25.69892648 | M111: 27.62634597 | N111: 29.69832192 | O111: 31.92569606 | P111: 34.32012327 | Q111: 36.89413251 | R111: 39.66119245 | S111: 42.63578188 | T111: 45.83346553 | U111: 49.27097544 | V111: 52.9662986 | W111: 56.93877099 | X111: 61.20917882 | Y111: 65.79986723 | Z111: 70.73485727 | AA111: 76.03997157 | AB111: 81.74296943 | AC111: 87.87369214 | AD111: 94.46421905 | AE111: 101.5490355 | AF111: 109.1652131 | AG111: 117.3526041 | AH111: 126.1540494 | AI111: 135.6156031 | AJ111: 145.7867734 | AK111: 156.7207814 | AL111: 0 | AM111: 0 | AN111: 0 | AO111: 0 | AP111: 0 | AQ111: 0 | AR111: 0 | AS111: 0 | AT111: 0 | AU111: 0 | AV111: 0 | AW111: 0 | AX111: 0 | AY111: 0 | AZ111: 0
C112: Closing Balance | H112: =H109+H110+H111 -> 95 | I112: =I109+I110+I111 -> 200.925 | J112: 318.746375 | K112: 342.6523531 | L112: 368.3512796 | M112: 395.9776256 | N112: 425.6759475 | O112: 457.6016436 | P112: 491.9217668 | Q112: 528.8158993 | R112: 568.4770918 | S112: 611.1128737 | T112: 656.9463392 | U112: 706.2173146 | V112: 759.1836132 | W112: 816.1223842 | X112: 877.331563 | Y112: 943.1314303 | Z112: 1013.866288 | AA112: 1089.906259 | AB112: 1171.649229 | AC112: 1259.522921 | AD112: 1353.98714 | AE112: 1455.536175 | AF112: 1564.701388 | AG112: 1682.053992 | AH112: 1808.208042 | AI112: 1943.823645 | AJ112: 2089.610418 | AK112: 2246.3312 | AL112: 2246.3312 | AM112: 2246.3312 | AN112: 2246.3312 | AO112: 2246.3312 | AP112: 2246.3312 | AQ112: 2246.3312 | AR112: 2246.3312 | AS112: 2246.3312 | AT112: 2246.3312 | AU112: 2246.3312 | AV112: 2246.3312 | AW112: 2246.3312 | AX112: 2246.3312 | AY112: 2246.3312 | AZ112: 2246.3312
C113: Total
C115: Negative
C116: Opening Balance | H116: ='Alternative Performance Measure'!G119 -> 0 | I116: ='Alternative Performance Measure'!H119 -> 865.3326122 | J116: ='Alternative Performance Measure'!I119 -> 930.2325581
C117: Add: Re-investment | D117: ='Alternative Performance Measure'!D111 -> 0.075 | H117: =H116*$D$117 -> 0 | I117: =I116*$D$117 -> 64.89994592 | J117: 69.76744186
C118: Initial Investment | D118: ='Alternative Performance Measure'!D122 -> 865.3326122 | H118: =$D$118 -> 865.3326122
C119: Closing Balance | H119: =H116+H117+H118 -> 865.3326122 | I119: =I116+I117 -> 930.2325581 | J119: 1000
D121: ='Alternative Performance Measure'!D14 -> 1000 | G121: 1 | H121: 1 | I121: =H121*(1+$D$117) -> 1.075 | J121: 1.155625
D122: =D121/J121 -> 865.3326122
C124: Positive Cash Flow
C125: Opening Balance | K125: ='Alternative Performance Measure'!J129 -> 0
C126: Add: Cash Flow | K126: ='Alternative Performance Measure'!K15 -> 106.86208
C127: Add: Re-investment | D127: ='Alternative Performance Measure'!D117 -> 0.075
C128: Initial Investment
C129: Closing Balance
K133: IRR | L133: ='Alternative Performance Measure'!D18 -> 0.1263108902
E134: MIRR with WACC and Project Life | L134: 3
G136: Life
E137: ='Alternative Performance Measure'!D20 -> 0.08787511342 | F137: 15 | G137: 20 | H137: 30 | I137: % Difference | K137: WACC | L137: =INDEX(F137:H137,$L$134) -> 30
E138: 0.04 | F138: 0.0473044015 | G138: 0.05402119755 | H138: 0.06356119717 | I138: =H138/F138-1 -> 0.3436634891 | K138: 0.04 | L138: 0.06356119717
E139: 0.045 | F139: 0.05144763723 | G139: 0.05791302665 | H139: 0.06693088946 | I139: =H139/F139-1 -> 0.3009516679 | K139: 0.045 | L139: 0.06693088946
E140: 0.05 | F140: 0.05559736741 | G140: 0.06181845498 | H140: 0.07033574413 | I140: 0.2650912698 | K140: 0.05 | L140: 0.07033574413
D141: WACC | E141: 0.055 | F141: 0.05975357884 | G141: 0.06573742482 | H141: 0.07377547863 | I141: 0.2346620916 | K141: 0.055 | L141: 0.07377547863
E142: 0.06 | F142: 0.06391625354 | G142: 0.06966986378 | H142: 0.07724973782 | I142: 0.2086086644 | K142: 0.06 | L142: 0.07724973782
E143: 0.065 | F143: 0.06808536889 | G143: 0.07361568536 | H143: 0.08075809811 | I143: 0.1861299927 | K143: 0.065 | L143: 0.08075809811
E144: 0.07 | F144: 0.07226089781 | G144: 0.07757478962 | H144: 0.08430007206 | I144: 0.1666070394 | K144: 0.07 | L144: 0.08430007206
E145: 0.075 | F145: 0.0764428089 | G145: 0.08154706384 | H145: 0.08787511342 | I145: 0.1495536949 | K145: 0.075 | L145: 0.08787511342
E146: 0.08 | F146: 0.08063106667 | G146: 0.08553238319 | H146: 0.09148262248 | I146: 0.1345828136 | K146: 0.08 | L146: 0.09148262248
E147: 0.085 | F147: 0.08482563168 | G147: 0.08953061149 | H147: 0.09512195157 | I147: 0.1213821777 | K147: 0.085 | L147: 0.09512195157
E148: 0.09 | F148: 0.08902646074 | G148: 0.09354160192 | H148: 0.09879241073 | I148: 0.1096971609 | K148: 0.09 | L148: 0.09879241073
E149: 0.095 | F149: 0.09323350712 | G149: 0.09756519779 | H149: 0.1024932734 | I149: 0.09931800868 | K149: 0.095 | L149: 0.1024932734
E150: 0.1 | F150: 0.09744672069 | G150: 0.1016012333 | H150: 0.106223782 | I150: 0.09007036083 | K150: 0.1 | L150: 0.106223782
E151: 0.105 | F151: 0.1016660481 | G151: 0.1056495341 | H151: 0.1099831535 | I151: 0.08180809125 | K151: 0.105 | L151: 0.1099831535
F155: IRR | G155: ='Alternative Performance Measure'!D18 -> 0.1263108902
E157: NPV/Investment Table
G158: EBITDA
E159: ='Alternative Performance Measure'!P5 -> 1.659293038 | F159: 120 | G159: 100 | H159: 80 | N159: =INDEX(F159:H159,$L$134)&" EBITDA" -> 80 EBITDA
E160: 0.04 | F160: 3.366863905 | G160: 2.812130178 | H160: 2.25739645 | M160: ='Alternative Performance Measure'!E160 -> 0.04 | N160: =INDEX(F160:H160,$L$134) -> 2.25739645
E161: 0.045 | F161: 3.120868468 | G161: 2.607900757 | H161: 2.094933045 | M161: ='Alternative Performance Measure'!E161 -> 0.045 | N161: 2.094933045
E162: 0.05 | F162: 2.899630009 | G162: 2.424294849 | H162: 1.948959689 | M162: ='Alternative Performance Measure'!E162 -> 0.05 | N162: 1.948959689
D163: WACC | E163: 0.055 | F163: 2.700335162 | G163: 2.258968085 | H163: 1.817601008 | M163: ='Alternative Performance Measure'!E163 -> 0.055 | N163: 1.817601008
E164: 0.06 | F164: 2.520518688 | G164: 2.109866203 | H164: 1.699213717 | M164: ='Alternative Performance Measure'!E164 -> 0.06 | N164: 1.699213717
E165: 0.065 | F165: 2.358017606 | G165: 1.975186816 | H165: 1.592356025 | M165: ='Alternative Performance Measure'!E165 -> 0.065 | N165: 1.592356025
E166: 0.07 | F166: 2.210931661 | G166: 1.853346478 | H166: 1.495761294 | M166: ='Alternative Performance Measure'!E166 -> 0.07 | N166: 1.495761294
E167: 0.075 | F167: 2.077589248 | G167: 1.74295228 | H167: 1.408315313 | M167: ='Alternative Performance Measure'!E167 -> 0.075 | N167: 1.408315313
E168: 0.08 | F168: 1.956517983 | G168: 1.642777331 | H168: 1.32903668 | M168: ='Alternative Performance Measure'!E168 -> 0.08 | N168: 1.32903668
E169: 0.085 | F169: 1.84641927 | G169: 1.551739561 | H169: 1.257059852 | M169: ='Alternative Performance Measure'!E169 -> 0.085 | N169: 1.257059852
E170: 0.09 | F170: 1.7461463 | G170: 1.468883385 | H170: 1.191620469 | M170: ='Alternative Performance Measure'!E170 -> 0.09 | N170: 1.191620469
E171: 0.095 | F171: 1.654684983 | G171: 1.393363818 | H171: 1.132042652 | M171: ='Alternative Performance Measure'!E171 -> 0.095 | N171: 1.132042652
E172: 0.1 | F172: 1.57113742 | G172: 1.324432698 | H172: 1.077727977 | M172: ='Alternative Performance Measure'!E172 -> 0.1 | N172: 1.077727977
E173: 0.105 | F173: 1.494707553 | G173: 1.261426731 | H173: 1.02814591 | M173: ='Alternative Performance Measure'!E173 -> 0.105 | N173: 1.02814591
L178: Growth | M178: ='Alternative Performance Measure'!H3 -> 0.04
L179: EBITDA | M179: ='Alternative Performance Measure'!H2 -> 95
F181: IRR | G181: WAROIC | H181: MIRR
F182: ='Alternative Performance Measure'!D18 -> 0.1263108902 | G182: ='Alternative Performance Measure'!D62 -> 0.183163655 | H182: ='Alternative Performance Measure'!D20 -> 0.08787511342 | M182: IRR | N182: WAROIC | O182: MIRR
E183: 0.04 | F183: 0.1263108902 | G183: 0.2565230872 | H183: 0.06356119717 | L183: ='Alternative Performance Measure'!E183 -> 0.04 | M183: ='Alternative Performance Measure'!F183 -> 0.1263108902 | N183: ='Alternative Performance Measure'!G183 -> 0.2565230872 | O183: ='Alternative Performance Measure'!H183 -> 0.06356119717
E184: 0.045 | F184: 0.1263108902 | G184: 0.2434186417 | H184: 0.06693088946 | L184: ='Alternative Performance Measure'!E184 -> 0.045 | M184: ='Alternative Performance Measure'!F184 -> 0.1263108902 | N184: ='Alternative Performance Measure'!G184 -> 0.2434186417 | O184: ='Alternative Performance Measure'!H184 -> 0.06693088946
E185: 0.05 | F185: 0.1263108902 | G185: 0.2313157447 | H185: 0.07033574413 | L185: ='Alternative Performance Measure'!E185 -> 0.05 | M185: ='Alternative Performance Measure'!F185 -> 0.1263108902 | N185: ='Alternative Performance Measure'!G185 -> 0.2313157447 | O185: ='Alternative Performance Measure'!H185 -> 0.07033574413
D186: WACC | E186: 0.055 | F186: 0.1263108902 | G186: 0.2201316784 | H186: 0.07377547863 | L186: ='Alternative Performance Measure'!E186 -> 0.055 | M186: ='Alternative Performance Measure'!F186 -> 0.1263108902 | N186: ='Alternative Performance Measure'!G186 -> 0.2201316784 | O186: ='Alternative Performance Measure'!H186 -> 0.07377547863
E187: 0.06 | F187: 0.1263108902 | G187: 0.2097907698 | H187: 0.07724973782 | L187: ='Alternative Performance Measure'!E187 -> 0.06 | M187: ='Alternative Performance Measure'!F187 -> 0.1263108902 | N187: ='Alternative Performance Measure'!G187 -> 0.2097907698 | O187: ='Alternative Performance Measure'!H187 -> 0.07724973782
E188: 0.065 | F188: 0.1263108902 | G188: 0.2002237896 | H188: 0.08075809811 | L188: ='Alternative Performance Measure'!E188 -> 0.065 | M188: ='Alternative Performance Measure'!F188 -> 0.1263108902 | N188: ='Alternative Performance Measure'!G188 -> 0.2002237896 | O188: ='Alternative Performance Measure'!H188 -> 0.08075809811
E189: 0.07 | F189: 0.1263108902 | G189: 0.1913674012 | H189: 0.08430007206 | L189: ='Alternative Performance Measure'!E189 -> 0.07 | M189: ='Alternative Performance Measure'!F189 -> 0.1263108902 | N189: ='Alternative Performance Measure'!G189 -> 0.1913674012 | O189: ='Alternative Performance Measure'!H189 -> 0.08430007206
E190: 0.075 | F190: 0.1263108902 | G190: 0.183163655 | H190: 0.08787511342 | L190: ='Alternative Performance Measure'!E190 -> 0.075 | M190: ='Alternative Performance Measure'!F190 -> 0.1263108902 | N190: ='Alternative Performance Measure'!G190 -> 0.183163655 | O190: ='Alternative Performance Measure'!H190 -> 0.08787511342
E191: 0.08 | F191: 0.1263108902 | G191: 0.1755595267 | H191: 0.09148262248 | L191: ='Alternative Performance Measure'!E191 -> 0.08 | M191: ='Alternative Performance Measure'!F191 -> 0.1263108902 | N191: ='Alternative Performance Measure'!G191 -> 0.1755595267 | O191: ='Alternative Performance Measure'!H191 -> 0.09148262248
E192: 0.085 | F192: 0.1263108902 | G192: 0.1685064935 | H192: 0.09512195157 | L192: ='Alternative Performance Measure'!E192 -> 0.085 | M192: ='Alternative Performance Measure'!F192 -> 0.1263108902 | N192: ='Alternative Performance Measure'!G192 -> 0.1685064935 | O192: ='Alternative Performance Measure'!H192 -> 0.09512195157
E193: 0.09 | F193: 0.1263108902 | G193: 0.1619601469 | H193: 0.09879241073 | L193: ='Alternative Performance Measure'!E193 -> 0.09 | M193: ='Alternative Performance Measure'!F193 -> 0.1263108902 | N193: ='Alternative Performance Measure'!G193 -> 0.1619601469 | O193: ='Alternative Performance Measure'!H193 -> 0.09879241073
E194: 0.095 | F194: 0.1263108902 | G194: 0.1558798378 | H194: 0.1024932734 | L194: ='Alternative Performance Measure'!E194 -> 0.095 | M194: ='Alternative Performance Measure'!F194 -> 0.1263108902 | N194: ='Alternative Performance Measure'!G194 -> 0.1558798378 | O194: ='Alternative Performance Measure'!H194 -> 0.1024932734
E195: 0.1 | F195: 0.1263108902 | G195: 0.1502283527 | H195: 0.106223782 | L195: ='Alternative Performance Measure'!E195 -> 0.1 | M195: ='Alternative Performance Measure'!F195 -> 0.1263108902 | N195: ='Alternative Performance Measure'!G195 -> 0.1502283527 | O195: ='Alternative Performance Measure'!H195 -> 0.106223782
E196: 0.105 | F196: 0.1263108902 | G196: 0.1449716173 | H196: 0.1099831535 | L196: ='Alternative Performance Measure'!E196 -> 0.105 | M196: ='Alternative Performance Measure'!F196 -> 0.1263108902 | N196: ='Alternative Performance Measure'!G196 -> 0.1449716173 | O196: ='Alternative Performance Measure'!H196 -> 0.1099831535

Sheet From 1950
F1: Annual | G1: 0.0596
G2: =(1+G1)^(1/12)-1 -> 0.00483594549
D3: =(D639/D7)^(1/633)-1 -> 0.005576523586 | E3: =(E639/E7)^(1/633)-1 -> 0.005255253413 | J3: =(J639/J7)^(1/633)-1 -> 0.01010891464 | K3: =(K639/K7)^(1/633)-1 -> 0.005149421071
D4: =(1+D3)^12-1 -> 0.06900936029 | E4: =(1+E3)^12-1 -> 0.06491811949 | J4: =(1+J3)^12-1 -> 0.1282840466 | K4: =(1+K3)^12-1 -> 0.06357353511
D6: Stocks | E6: Bonds | F6: Stocks/Bonds | G6: Premium | H6: x Stocks | J6: 5.96 | K6: Actual
B7: 86.610001 | C7: 1 | D7: 1 | E7: 1 | F7: =D7/E7 -> 1 | G7: 1 | H7: 1 | I7: 1 | J7: =D7 -> 1 | K7: =H7 -> 1
B8: 86.779999 | C8: 2 | D8: 1.001962799 | E8: 1.003932329 | F8: =D8/E8 -> 0.9980381845 | G8: =G7*(1+$G$2) -> 1.004835945 | H8: =G8*F8 -> 1.002864643 | I8: 2 | J8: =G8*E8 -> 1.008787291 | K8: =H8 -> 1.002864643
B9: 90.199997 | C9: 3 | D9: 1.041450132 | E9: 1.007428764 | F9: 1.033770495 | G9: =G8*(1+$G$2) -> 1.009695277 | H9: =G9*F9 -> 1.043793187 | I9: 3 | J9: =G9*E9 -> 1.017196065 | K9: 1.043793187
B10: 94.010002 | C10: 4 | D10: 1.085440491 | E10: 1.01135608 | F10: 1.073252549 | G10: 1.014578109 | H10: 1.088898541 | I10: 4 | J10: 1.026099739 | K10: 1.088898541
B11: 89.080002 | C11: 5 | D11: 1.028518658 | E11: 1.01538765 | F11: 1.012932015 | G11: 1.019484553 | H11: 1.032668542 | I11: 5 | J11: 1.035172025 | K11: 1.032668542
B12: 90.639999 | C12: 6 | D12: 1.0465304 | E12: 1.019716818 | F12: 1.026295126 | G12: 1.024414725 | H12: 1.051351839 | I12: 6 | J12: 1.044612923 | K12: 1.051351839
B13: 94.75 | C13: 7 | D13: 1.093984516 | E13: 1.024041535 | F13: 1.068300922 | G13: 1.029368739 | H13: 1.099675573 | I13: 7 | J13: 1.054116343 | K13: 1.099675573
B14: 93.639999 | C14: 8 | D14: 1.081168432 | E14: 1.02863373 | F14: 1.051072312 | G14: 1.03434671 | H14: 1.087173187 | I14: 8 | J14: 1.063963914 | K14: 1.087173187
B15: 96.709999 | C15: 9 | D15: 1.116614685 | E15: 1.033263991 | F15: 1.080667376 | G15: 1.039348754 | H15: 1.123190291 | I15: 9 | J15: 1.073921641 | K15: 1.123190291
B16: 93.300003 | C16: 10 | D16: 1.077242835 | E16: 1.037917925 | F16: 1.037888266 | G16: 1.044374988 | H16: 1.083944545 | I16: 10 | J16: 1.08397552 | K16: 1.083944545
B17: 94 | C17: 11 | D17: 1.085325008 | E17: 1.042986661 | F17: 1.040593373 | G17: 1.049425528 | H17: 1.09202525 | I17: 11 | J17: 1.094536828 | K17: 1.09202525
B18: 96.470001 | C18: 12 | D18: 1.113843666 | E18: 1.047872982 | F18: 1.062956756 | G18: 1.054500493 | H18: 1.120888423 | I18: 12 | J18: 1.104982576 | K18: 1.120888423
B19: 92.239998 | C19: 13 | D19: 1.065004006 | E19: 1.05279454 | F19: 1.011597197 | G19: 1.0596 | H19: 1.07188839 | I19: 13 | J19: 1.115541095 | K19: 1.07188839
B20: 89.360001 | C20: 14 | D20: 1.031751529 | E20: 1.057766038 | F20: 0.9754061793 | G20: 1.064724168 | H20: 1.038538533 | I20: 14 | J20: 1.126229064 | K20: 1.038538533
B21: 90.199997 | C21: 15 | D21: 1.041450132 | E21: 1.06259003 | F21: 0.980105311 | G21: 1.069873116 | H21: 1.048588323 | I21: 15 | J21: 1.136836507 | K21: 1.048588323
B22: 97.459999 | C22: 16 | D22: 1.125274193 | E22: 1.067679982 | F22: 1.053943328 | G22: 1.075046964 | H22: 1.133038574 | I22: 16 | J22: 1.147806123 | K22: 1.133038574
B23: 98.68 | C23: 17 | D23: 1.139360338 | E23: 1.072831173 | F23: 1.062012707 | G23: 1.080245832 | H23: 1.147234801 | I23: 17 | J23: 1.158921403 | K23: 1.147234801
B24: 99.580002 | C24: 18 | D24: 1.149751771 | E24: 1.078043075 | F24: 1.066517468 | G24: 1.085469842 | H24: 1.157672548 | I24: 18 | J24: 1.170183246 | K24: 1.157672548
B25: 97.739998 | C25: 19 | D25: 1.128507065 | E25: 1.08291642 | F25: 1.042099874 | G25: 1.090719115 | H25: 1.136638253 | I25: 19 | J25: 1.18115764 | K25: 1.136638253
B26: 98.860001 | C26: 20 | D26: 1.141438631 | E26: 1.087901396 | F26: 1.049211478 | G26: 1.095993774 | H26: 1.149929247 | I26: 20 | J26: 1.192333156 | K26: 1.149929247
B27: 102.669998 | C27: 21 | D27: 1.185428898 | E27: 1.092946278 | F27: 1.084617718 | G27: 1.10129394 | H27: 1.19448292 | I27: 21 | J27: 1.203655112 | K27: 1.19448292
B28: 103.410004 | C28: 22 | D28: 1.193973015 | E28: 1.097958859 | F28: 1.087447863 | G28: 1.106619737 | H28: 1.203391269 | I28: 22 | J28: 1.215022944 | K28: 1.203391269
B29: 108.370003 | C29: 23 | D29: 1.251241216 | E29: 1.103274183 | F29: 1.134116284 | G29: 1.11197129 | H29: 1.261104747 | I29: 23 | J29: 1.226809216 | K29: 1.261104747
B30: 103.860001 | C30: 24 | D30: 1.199168685 | E30: 1.108742191 | F30: 1.081557728 | G30: 1.117348722 | H30: 1.208477146 | I30: 24 | J30: 1.238851671 | K30: 1.208477146
B31: 103.010002 | C31: 25 | D31: 1.189354587 | E31: 1.114429887 | F31: 1.067231417 | G31: 1.12275216 | H31: 1.198236379 | I31: 25 | J31: 1.251228562 | K31: 1.198236379
B32: 98.129997 | C32: 26 | D32: 1.133009997 | E32: 1.120288735 | F32: 1.011355343 | G32: 1.128181728 | H32: 1.140992619 | I32: 26 | J32: 1.263889281 | K32: 1.140992619
B33: 101.510002 | C33: 27 | D33: 1.172035571 | E33: 1.125702952 | F33: 1.041158833 | G33: 1.133637554 | H33: 1.180296752 | I33: 27 | J33: 1.27613914 | K33: 1.180296752
B34: 103.690002 | C34: 28 | D34: 1.197205875 | E34: 1.131601944 | F34: 1.057974389 | G34: 1.139119763 | H34: 1.205159535 | I34: 28 | J34: 1.289030138 | K34: 1.205159535
B35: 103.459999 | C35: 29 | D35: 1.194550258 | E35: 1.137480073 | F35: 1.050172469 | G35: 1.144628484 | H35: 1.202057322 | I35: 29 | J35: 1.301992092 | K35: 1.202057322
B36: 97.709999 | C36: 30 | D36: 1.128160696 | E36: 1.143827212 | F36: 0.9863034241 | G36: 1.150163845 | H36: 1.134410539 | I36: 30 | J36: 1.315588704 | K36: 1.134410539
B37: 91.830002 | C37: 31 | D37: 1.060270188 | E37: 1.150144899 | F37: 0.9218579229 | G37: 1.155725975 | H37: 1.065415146 | I37: 31 | J37: 1.329252334 | K37: 1.065415146
B38: 95.510002 | C38: 32 | D38: 1.102759507 | E38: 1.156679928 | F38: 0.953383456 | G38: 1.161315003 | H38: 1.107178511 | I38: 32 | J38: 1.343269753 | K38: 1.107178511
B39: 93.120003 | C39: 33 | D39: 1.075164553 | E39: 1.163713809 | F39: 0.9239080471 | G39: 1.166931059 | H39: 1.078136995 | I39: 33 | J39: 1.357973787 | K39: 1.078136995
B40: 97.120003 | C40: 34 | D40: 1.121348596 | E40: 1.170504797 | F40: 0.9580042722 | G40: 1.172574274 | H40: 1.123331163 | I40: 34 | J40: 1.372503812 | K40: 1.123331163
B41: 93.809998 | C41: 35 | D41: 1.083131243 | E41: 1.177602866 | F41: 0.9197763302 | G41: 1.178244779 | H41: 1.083721659 | I41: 35 | J41: 1.387504428 | K41: 1.083721659
B42: 92.059998 | C42: 36 | D42: 1.062925724 | E42: 1.185007246 | F42: 0.8969782486 | G42: 1.183942706 | H42: 1.061970855 | I42: 36 | J42: 1.402980685 | K42: 1.061970855
B43: 85.019997 | C43: 37 | D43: 0.9816417968 | E43: 1.192847448 | F43: 0.8229399309 | G43: 1.189668189 | H43: 0.979025457 | I43: 37 | J43: 1.419092663 | K43: 0.979025457
B44: 89.5 | C44: 38 | D44: 1.033367959 | E44: 1.200182316 | F44: 0.8610091528 | G44: 1.195421359 | H44: 1.029268732 | I44: 38 | J44: 1.434723576 | K44: 1.029268732
B45: 89.629997 | C45: 39 | D45: 1.034868906 | E45: 1.206691579 | F45: 0.8576084594 | G45: 1.201202352 | H45: 1.030161298 | I45: 39 | J45: 1.449480763 | K45: 1.030161298
B46: 81.519997 | C46: 40 | D46: 0.9412307593 | E46: 1.214265304 | F46: 0.7751442422 | G46: 1.207011301 | H46: 0.9356078601 | I46: 40 | J46: 1.465631945 | K46: 0.9356078601
B47: 76.550003 | C47: 41 | D47: 0.8838471552 | E47: 1.222159692 | F47: 0.7231846712 | G47: 1.212848342 | H47: 0.8771133292 | I47: 41 | J47: 1.482294356 | K47: 0.8771133292
B48: 72.720001 | C48: 42 | D48: 0.8396259111 | E48: 1.230297602 | F48: 0.6824575696 | G48: 1.21871361 | H48: 0.8317203284 | I48: 42 | J48: 1.499380432 | K48: 0.8317203284
B49: 78.050003 | C49: 43 | D49: 0.9011661713 | E49: 1.23784118 | F49: 0.7280143737 | G49: 1.224607243 | H49: 0.8915316749 | I49: 43 | J49: 1.515869274 | K49: 0.8915316749
B50: 81.519997 | C50: 44 | D50: 0.9412307593 | E50: 1.245757598 | F50: 0.755548881 | G50: 1.230529377 | H50: 0.9297250936 | I50: 44 | J50: 1.532941321 | K50: 0.9297250936
B51: 84.300003 | C51: 45 | D51: 0.9733287383 | E51: 1.253576519 | F51: 0.7764414247 | G51: 1.23648015 | H51: 0.960054409 | I51: 45 | J51: 1.550022482 | K51: 0.960054409
B52: 83.25 | C52: 46 | D52: 0.9612053924 | E52: 1.261128888 | F52: 0.7621785541 | G52: 1.2424597 | H52: 0.9469761378 | I52: 46 | J52: 1.56690182 | K52: 0.9469761378
B53: 87.199997 | C53: 47 | D53: 1.0068121 | E53: 1.268455183 | F53: 0.7937309205 | G53: 1.248468168 | H53: 0.9909477879 | I53: 47 | J53: 1.583625918 | K53: 0.9909477879
B54: 92.150002 | C54: 48 | D54: 1.063964911 | E54: 1.275117179 | F54: 0.8344055968 | G54: 1.254505692 | H54: 1.04676657 | I54: 48 | J54: 1.599641759 | K54: 1.04676657
B55: 95.879997 | C55: 49 | D55: 1.107031473 | E55: 1.281874951 | F55: 0.8636033276 | G55: 1.260572413 | H55: 1.08863453 | I55: 49 | J55: 1.6158962 | K55: 1.08863453
B56: 96.75 | C56: 50 | D56: 1.117076537 | E56: 1.288527004 | F56: 0.8669407267 | G56: 1.266668472 | H56: 1.098126486 | I56: 50 | J56: 1.632136532 | K56: 1.098126486
B57: 100.309998 | C57: 51 | D57: 1.158180312 | E57: 1.294161221 | F57: 0.8949273813 | G57: 1.272794012 | H57: 1.139058212 | I57: 51 | J57: 1.647200652 | K57: 1.139058212
B58: 103.949997 | C58: 52 | D58: 1.20020778 | E58: 1.300569269 | F58: 0.922832646 | G58: 1.278949174 | H58: 1.180256051 | I58: 52 | J58: 1.663361993 | K58: 1.180256051
B59: 99.629997 | C59: 53 | D59: 1.150329013 | E59: 1.30739993 | F59: 0.8798600849 | G59: 1.285134103 | H59: 1.130738201 | I59: 53 | J59: 1.680184236 | K59: 1.130738201
B60: 98.699997 | C60: 54 | D60: 1.139591223 | E60: 1.314639702 | F60: 0.8668468036 | G60: 1.291348941 | H60: 1.119401702 | I60: 54 | J60: 1.697658587 | K60: 1.119401702
B61: 95.580002 | C61: 55 | D61: 1.103567728 | E61: 1.32191164 | F61: 0.8348271504 | G61: 1.297593834 | H61: 1.083266563 | I61: 55 | J61: 1.715304394 | K61: 1.083266563
B62: 99.029999 | C62: 56 | D62: 1.14340143 | E62: 1.329299134 | F62: 0.8601535955 | G62: 1.303868928 | H62: 1.121527546 | I62: 56 | J62: 1.733231837 | K62: 1.121527546
B63: 98.339996 | C63: 57 | D63: 1.135434648 | E63: 1.336231156 | F63: 0.8497292124 | G63: 1.310174367 | H63: 1.113293433 | I63: 57 | J63: 1.750695809 | K63: 1.113293433
B64: 94.230003 | C64: 58 | D64: 1.087980625 | E64: 1.34274391 | F64: 0.810266661 | G64: 1.316510298 | H64: 1.066724404 | I64: 58 | J64: 1.767736186 | K64: 1.066724404
B65: 93.989998 | C65: 59 | D65: 1.085209524 | E65: 1.349369708 | F65: 0.8042343905 | G65: 1.32287687 | H65: 1.063903074 | I65: 59 | J65: 1.785049976 | K65: 1.063903074
B66: 102.089996 | C66: 60 | D66: 1.178732188 | E66: 1.355946499 | F66: 0.8693058239 | G66: 1.329274231 | H66: 1.15554583 | I66: 60 | J66: 1.802424739 | K66: 1.15554583
B67: 103.940002 | C67: 61 | D67: 1.200092377 | E67: 1.362798672 | F67: 0.8806087075 | G67: 1.335702529 | H67: 1.176231277 | I67: 61 | J67: 1.820293632 | K67: 1.176231277
B68: 106.57 | C68: 62 | D68: 1.230458362 | E68: 1.369835941 | F68: 0.8982523571 | G68: 1.342161913 | H68: 1.205600102 | I68: 62 | J68: 1.838541627 | K68: 1.205600102
B69: 107.199997 | C69: 63 | D69: 1.237732315 | E69: 1.376442303 | F69: 0.8992257155 | G69: 1.348652535 | H69: 1.212743041 | I69: 63 | J69: 1.856342401 | K69: 1.212743041
B70: 107.669998 | C70: 64 | D70: 1.243158951 | E70: 1.383678618 | F70: 0.8984448663 | G70: 1.355174545 | H70: 1.217549613 | I70: 64 | J70: 1.875126042 | K70: 1.217549613
B71: 109.529999 | C71: 65 | D71: 1.264634543 | E71: 1.390650084 | F71: 0.9093837172 | G71: 1.361728095 | H71: 1.238333357 | I71: 65 | J71: 1.89368729 | K71: 1.238333357
B72: 107.139999 | C72: 66 | D72: 1.237039577 | E72: 1.397866605 | F72: =D72/E72 -> 0.8849482292 | G72: 1.368313338 | H72: 1.210886466 | I72: 66 | J72: 1.912719521 | K72: =H72 -> 1.210886466
B73: 107.389999 | C73: 67 | D73: 1.23992608 | E73: 1.404886577 | F73: 0.8825809146 | G73: =G72*(1+$G$2) -> 1.374930427 | H73: =G73*F73 -> 1.213487354 | I73: 67 | J73: =G73*E73 -> 1.931621301 | K73: 1.213487354
B74: 111.089996 | C74: 68 | D74: 1.282646285 | E74: 1.412296295 | F74: 0.9081991431 | G74: 1.381579516 | H74: 1.254749332 | I74: 68 | J74: 1.951199631 | K74: 1.254749332
B75: 110.550003 | C75: 69 | D75: 1.27641152 | E75: 1.420152918 | F75: 0.8987845627 | G75: 1.388260759 | H75: 1.247747339 | I75: 69 | J75: 1.971542568 | K75: 1.247747339
B76: 111.580002 | C76: 70 | D76: 1.288303899 | E76: 1.427716692 | F76: 0.9023526213 | G76: 1.394974312 | H76: 1.258758727 | I76: 70 | J76: 1.99162811 | K76: 1.258758727
B77: 116.669998 | C77: 71 | D77: 1.347073048 | E77: 1.435331702 | F77: 0.9385099245 | G77: 1.401720332 | H77: 1.315528443 | I77: 71 | J77: 2.01193363 | K77: 1.315528443
B78: 118.050003 | C78: 72 | D78: 1.3630066 | E78: 1.442834751 | F78: 0.9446727 | G78: 1.408498975 | H78: 1.33057053 | I78: 72 | J78: 2.032231268 | K78: 1.33057053
B79: 116.029999 | C79: 73 | D79: 1.339683612 | E79: 1.450750973 | F79: 0.9234414709 | G79: 1.415310399 | H79: 1.306956317 | I79: 73 | J79: 2.053262939 | K79: 1.306956317
B80: 111.68 | C80: 74 | D80: 1.289458477 | E80: 1.458932413 | F80: 0.8838370204 | G80: 1.422154763 | H80: 1.256953028 | I80: 74 | J80: 2.074827681 | K80: 1.256953028
B81: 111.519997 | C81: 75 | D81: 1.287611081 | E81: 1.466442118 | F81: 0.8780510768 | G81: 1.429032226 | H81: 1.254763285 | I81: 75 | J81: 2.095593045 | K81: 1.254763285
B82: 106.970001 | C82: 76 | D82: 1.235076778 | E82: 1.474749412 | F82: 0.8374824685 | G82: 1.435942948 | H82: 1.202577045 | I82: 76 | J82: 2.117656019 | K82: 1.202577045
B83: 104.949997 | C83: 77 | D83: 1.21175379 | E83: 1.483052453 | F83: 0.8170673853 | G83: 1.44288709 | H83: 1.178935982 | I83: 77 | J83: 2.139877239 | K83: 1.178935982
B84: 104.260002 | C84: 78 | D84: 1.203787101 | E84: 1.491743547 | F84: 0.8069665212 | G84: 1.449864813 | H84: 1.169992365 | I84: 78 | J84: 2.162826479 | K84: 1.169992365
B85: 108.220001 | C85: 79 | D85: 1.249509292 | E85: 1.500485573 | F85: 0.8327366248 | G85: 1.45687628 | H85: 1.213194237 | I85: 79 | J85: 2.186021841 | K85: 1.213194237
B86: 104.25 | C86: 80 | D86: 1.203671618 | E86: 1.509916022 | F86: 0.7971778562 | G86: 1.463921655 | H86: 1.167005926 | I86: 80 | J86: 2.210398762 | K86: 1.167005926
B87: 108.43 | C87: 81 | D87: 1.251933942 | E87: 1.519008199 | F87: 0.8241785288 | G87: 1.4710011 | H87: 1.212367522 | I87: 81 | J87: 2.234462731 | K87: 1.212367522
B88: 108.290001 | C88: 82 | D88: 1.250317512 | E88: 1.527485513 | F88: 0.8185462329 | G88: 1.478114781 | H88: 1.209905286 | I88: 82 | J88: 2.257798915 | K88: 1.209905286
B89: 95.959999 | C89: 83 | D89: 1.107955177 | E89: 1.536216453 | F89: 0.7212233505 | G89: 1.485262864 | H89: 1.071206259 | I89: 83 | J89: 2.281685248 | K89: 1.071206259
B90: 97.550003 | C90: 84 | D90: 1.12631338 | E90: 1.544726671 | F90: 0.7291344168 | G90: 1.492445514 | H90: 1.088193389 | I90: 84 | J90: 2.30542039 | K90: 1.088193389
B91: 96.57 | C91: 85 | D91: 1.114998255 | E91: 1.553897269 | F91: 0.7175495302 | G91: 1.499662899 | H91: 1.076082409 | I91: 85 | J91: 2.330322083 | K91: 1.076082409
B92: 96.220001 | C92: 86 | D92: 1.110957163 | E92: 1.563082717 | F92: 0.7107475188 | G92: 1.506915187 | H92: 1.07103623 | I92: 86 | J92: 2.355433086 | K92: 1.07103623
B93: 93.980003 | C93: 87 | D93: 1.085094122 | E93: 1.571728064 | F93: 0.690382864 | G93: 1.514202547 | H93: 1.045379491 | I93: 87 | J93: 2.379914637 | K93: 1.045379491
B94: 90.309998 | C94: 88 | D94: 1.042720205 | E94: 1.581753105 | F94: 0.6592180547 | G94: 1.521525148 | H94: 1.003016848 | I94: 88 | J94: 2.406677127 | K94: 1.003016848
B95: 87.279999 | C95: 89 | D95: 1.007735804 | E95: 1.591607644 | F95: 0.6331559214 | G95: 1.52888316 | H95: 0.9680214262 | I95: 89 | J95: 2.433382124 | K95: 0.9680214262
B96: 86 | C96: 90 | D96: 0.9929569219 | E96: 1.601800037 | F96: 0.6199006735 | G96: 1.536276756 | H96: 0.9523389958 | I96: 90 | J96: 2.460808165 | K96: 0.9523389958
B97: 79.309998 | C97: 91 | D97: 0.9157140871 | E97: 1.612082277 | F97: 0.5680318555 | G97: 1.543706107 | H97: 0.8768742442 | I97: 91 | J97: 2.488581256 | K97: 0.8768742442
B98: 72.150002 | C98: 92 | D98: 0.8330446965 | E98: 1.62309037 | F98: 0.5132460349 | G98: 1.551171385 | H98: 0.7961325629 | I98: 92 | J98: 2.517691337 | K98: 0.7961325629
B99: 63.540001 | C99: 93 | D99: 0.7336335327 | E99: 1.634173631 | F99: 0.4489324259 | G99: 1.558672766 | H99: 0.6997387459 | I99: 93 | J99: 2.547141933 | K99: 0.6997387459
B100: 73.900002 | C100: 94 | D100: 0.8532502153 | E100: 1.644784567 | F100: 0.5187610782 | G100: 1.566210422 | H100: 0.8124890072 | I100: 94 | J100: 2.576078731 | K100: 0.8124890072
B101: 69.970001 | C101: 95 | D101: 0.8078743816 | E101: 1.655513069 | F101: 0.4879903378 | G101: 1.57378453 | H101: 0.7679916447 | I101: 95 | J101: 2.605420857 | K101: 0.7679916447
B102: 68.559998 | C102: 96 | D102: 0.7915944719 | E102: 1.665623037 | F102: 0.4752542767 | G102: 1.581395267 | H102: 0.7515648636 | I102: 96 | J102: 2.634008387 | K102: 0.7515648636
B103: 76.980003 | C103: 97 | D103: 0.8888119399 | E103: 1.676232828 | F103: 0.5302437257 | G103: 1.589042808 | H103: 0.8425799788 | I103: 97 | J103: 2.66360572 | K103: 0.8425799788
B104: 81.589996 | C104: 98 | D104: 0.9420389685 | E104: 1.6867536 | F104: 0.558492342 | G104: 1.596727332 | H104: 0.8917599874 | I104: 98 | J104: 2.693285576 | K104: 0.8917599874
B105: 83.360001 | C105: 99 | D105: 0.9624754652 | E105: 1.696755818 | F105: 0.5672445352 | G105: 1.604449019 | H105: 0.9101149378 | I105: 99 | J105: 2.722358207 | K105: 0.9101149378
B106: 87.300003 | C106: 100 | D106: 1.00796677 | E106: 1.708615909 | F106: 0.5899317485 | G106: 1.612208047 | H106: 0.9510927119 | I106: 100 | J106: 2.754644316 | K106: 0.9510927119
B107: 91.150002 | C107: 101 | D107: 1.0524189 | E107: 1.719934904 | F107: 0.6118946118 | G107: 1.620004597 | H107: 0.9912720839 | I107: 101 | J107: 2.78630245 | K107: 0.9912720839
B108: 95.190002 | C108: 102 | D108: 1.099064784 | E108: 1.731416529 | F108: 0.6347778047 | G108: 1.627838851 | H108: 1.033315972 | I108: 102 | J108: 2.818467094 | K108: 1.033315972
B109: 88.75 | C109: 103 | D109: 1.024708451 | E109: 1.742886571 | F109: 0.5879375448 | G109: 1.635710991 | H109: 0.9616959038 | I109: 103 | J109: 2.85085872 | K109: 0.9616959038
B110: 86.879997 | C110: 104 | D110: 1.003117377 | E110: 1.755320754 | F110: 0.5714724073 | G110: 1.6436212 | H110: 0.9392841639 | I110: 104 | J110: 2.885082403 | K110: 0.9392841639
B111: 83.870003 | C111: 105 | D111: 0.9683639537 | E111: 1.767888369 | F111: 0.5477517532 | G111: 1.651569662 | H111: 0.9046501781 | I111: 105 | J111: 2.919790797 | K111: 0.9046501781
B112: 89.040001 | C112: 106 | D112: 1.028056806 | E112: 1.779716269 | F112: 0.5776520808 | G112: 1.659556563 | H112: 0.958646302 | I112: 106 | J112: 2.953539815 | K112: 0.958646302
B113: 91.239998 | C113: 107 | D113: 1.053457995 | E113: 1.791884165 | F113: 0.587905187 | G113: 1.667582088 | H113: 0.9803801595 | I113: 107 | J113: 2.988113938 | K113: 0.9803801595
B114: 90.190002 | C114: 108 | D114: 1.04133473 | E114: 1.803666417 | F114: 0.5773433049 | G114: 1.675646424 | H114: 0.9674232445 | I114: 108 | J114: 3.022307182 | K114: 0.9674232445
B115: 100.860001 | C115: 109 | D115: 1.164530653 | E115: 1.815523176 | F115: 0.6414297917 | G115: 1.683749759 | H115: 1.080007257 | I115: 109 | J115: 3.056886711 | K115: 1.080007257
B116: 99.709999 | C116: 110 | D116: 1.151252717 | E116: 1.827534976 | F116: 0.6299483908 | G116: 1.691892281 | H116: 1.06580482 | I116: 110 | J116: 3.09199232 | K116: 1.06580482
B117: 102.769997 | C117: 111 | D117: 1.186583487 | E117: 1.838759045 | F117: 0.6453175528 | G117: 1.70007418 | H117: 1.097087709 | I117: 111 | J117: 3.126026776 | K117: 1.097087709
B118: 101.639999 | C118: 112 | D118: 1.173536518 | E118: 1.850565389 | F118: 0.6341502574 | G118: 1.708295646 | H118: 1.083316124 | I118: 112 | J118: 3.161312798 | K118: 1.083316124
B119: 100.18 | C119: 113 | D119: 1.156679354 | E119: 1.862581389 | F119: 0.6210087573 | G119: 1.716556871 | H119: 1.065996849 | I119: 113 | J119: 3.197226881 | K119: 1.065996849
B120: 104.279999 | C120: 114 | D120: 1.204017986 | E120: 1.875015268 | F120: 0.6421376971 | G120: 1.724858046 | H120: 1.107596374 | I120: 114 | J120: 3.234135172 | K120: 1.107596374
B121: 103.440002 | C121: 115 | D121: 1.194319372 | E121: 1.887082147 | F121: 0.6328920941 | G121: 1.733199366 | H121: 1.096928176 | I121: 115 | J121: 3.270689581 | K121: 1.096928176
B122: 102.910004 | C122: 116 | D122: 1.188200009 | E122: 1.899535338 | F122: 0.6255214027 | G122: 1.741581023 | H122: 1.089396205 | I122: 116 | J122: 3.308194699 | K122: 1.089396205
B123: 105.239998 | C123: 117 | D123: 1.215102145 | E123: 1.911780316 | F123: 0.6355867016 | G123: 1.750003214 | H123: 1.112278771 | I123: 117 | J123: 3.345621697 | K123: 1.112278771
B124: 102.900002 | C124: 118 | D124: 1.188084526 | E124: 1.923423843 | F124: 0.6176925227 | G124: 1.758466134 | H124: 1.086191383 | I124: 118 | J124: 3.382275691 | K124: 1.086191383
B125: 102.099998 | C125: 119 | D125: 1.178847671 | E125: 1.935332735 | F125: 0.609118861 | G125: 1.766969981 | H125: 1.076294742 | I125: 119 | J125: 3.419674846 | K125: 1.076294742
B126: 107.459999 | C126: 120 | D126: 1.2407343 | E126: 1.946260737 | F126: 0.6374964446 | G126: 1.775514951 | H126: 1.131884469 | I126: 120 | J126: 3.455615039 | K126: 1.131884469
B127: 102.029999 | C127: 121 | D127: 1.178039462 | E127: 1.958178785 | F127: 0.601599543 | G127: 1.784101245 | H127: 1.073314494 | I127: 121 | J127: 3.493589208 | K127: 1.073314494
B128: 99.82 | C128: 122 | D128: 1.15252279 | E128: 1.970469173 | F128: 0.5848976506 | G128: 1.792729061 | H128: 1.048563016 | I128: 122 | J128: 3.532517352 | K128: 1.048563016
B129: 98.419998 | C129: 123 | D129: 1.136358352 | E129: 1.981745656 | F129: 0.5734128134 | G129: 1.801398601 | H129: 1.03294504 | I129: 123 | J129: 3.569913852 | K129: 1.03294504
B130: 98.440002 | C130: 124 | D130: 1.136589318 | E130: 1.994150298 | F130: 0.5699617124 | G130: 1.810110067 | H130: 1.031693433 | I130: 124 | J130: 3.609631528 | K130: 1.031693433
B131: 96.120003 | C131: 125 | D131: 1.109802585 | E131: 2.006377444 | F131: 0.5531374909 | G131: 1.81886366 | H131: 1.006081681 | I131: 125 | J131: 3.649327021 | K131: 1.006081681
B132: 100.480003 | C132: 126 | D132: 1.160143192 | E132: 2.018782903 | F132: 0.5746745675 | G132: 1.827659586 | H132: 1.050309482 | I132: 126 | J132: 3.689647924 | K132: 1.050309482
B133: 98.849998 | C133: 127 | D133: 1.141323137 | E133: 2.030945379 | F133: 0.5619664362 | G133: 1.836498048 | H133: 1.032050263 | I133: 127 | J133: 3.729827223 | K133: 1.032050263
B134: 96.769997 | C134: 128 | D134: 1.117307423 | E134: 2.043709731 | F134: 0.5467055353 | G134: 1.845379252 | H134: 1.008879052 | I134: 128 | J134: 3.771419536 | K134: 1.008879052
B135: 96.529999 | C135: 129 | D135: 1.114536403 | E135: 2.056450162 | F135: 0.5419710256 | G135: 1.854303406 | H135: 1.004978719 | I135: 129 | J135: 3.813282539 | K135: 1.004978719
B136: 92.339996 | C136: 130 | D136: 1.066158584 | E136: 2.069160714 | F136: =D136/E136 -> 0.5152613697 | G136: 1.863270716 | H136: 0.9600714214 | I136: 130 | J136: 3.855406565 | K136: =H136 -> 0.9600714214
B137: 94.830002 | C137: 131 | D137: 1.09490822 | E137: 2.082481574 | F137: 0.525770904 | G137: =G136*(1+$G$2) -> 1.872281392 | H137: =G137*F137 -> 0.9843910799 | I137: 131 | J137: =G137*E137 -> 3.898991499 | K137: 0.9843910799
B138: 95.099998 | C138: 132 | D138: 1.098025596 | E138: 2.095643998 | F138: 0.5239561668 | G138: 1.881335642 | H138: 0.9857374116 | I138: 132 | J138: 3.942609748 | K138: 0.9857374116
B139: 89.25 | C139: 133 | D139: 1.030481457 | E139: 2.1098117 | F139: 0.488423425 | G139: 1.890433679 | H139: 0.9233320923 | I139: 133 | J139: 3.988459095 | K139: 0.9233320923
B140: 87.040001 | C140: 134 | D140: 1.004964785 | E140: 2.124200616 | F140: 0.4731025766 | G140: 1.899575713 | H140: 0.8986941644 | I140: 134 | J140: 4.0350799 | K140: 0.8986941644
B141: 89.209999 | C141: 135 | D141: 1.030019605 | E141: 2.137301987 | F141: 0.4819251613 | G141: 1.908761958 | H141: 0.9198804144 | I141: 135 | J141: 4.079600725 | K141: 0.9198804144
B142: 96.830002 | C142: 136 | D142: 1.118000241 | E142: 2.152096216 | F142: 0.5194936142 | G142: 1.917992627 | H142: 0.9963849216 | I142: 136 | J142: 4.127704674 | K142: 0.9963849216
B143: 97.239998 | C143: 137 | D143: 1.122734059 | E143: 2.166866082 | F143: 0.5181372623 | G143: 1.927267934 | H143: 0.9985893313 | I143: 137 | J143: 4.176131517 | K143: 0.9985893313
B144: 95.529999 | C144: 138 | D144: 1.102990393 | E144: 2.18243546 | F144: 0.5053942776 | G144: 1.936588097 | H144: 0.9787405424 | I144: 138 | J144: 4.226478534 | K144: 0.9787405424
B145: 100.68 | C145: 139 | D145: 1.162452359 | E145: 2.197933741 | F145: 0.5288841686 | G145: 1.945953332 | H145: 1.02918391 | I145: 139 | J145: 4.277076486 | K145: 1.02918391
B146: 103.290001 | C146: 140 | D146: 1.192587459 | E146: 2.21363301 | F146: 0.5387466909 | G146: 1.955363856 | H146: 1.053445807 | I146: 140 | J146: 4.328457977 | K146: 1.053445807
B147: 102.540001 | C147: 141 | D147: 1.183927951 | E147: 2.229463215 | F147: 0.5310372214 | G147: 1.964819889 | H147: 1.043392494 | I147: 141 | J147: 4.380493666 | K147: 1.043392494
B148: 93.150002 | C148: 142 | D148: 1.075510922 | E148: 2.245295458 | F148: 0.4790064123 | G148: 1.974321651 | H148: 0.9457127306 | I148: 142 | J148: 4.432935434 | K148: 0.9457127306
B149: 94.699997 | C149: 143 | D149: 1.093407181 | E149: 2.262095804 | F149: 0.4833602443 | G149: 1.983869363 | H149: 0.9589235799 | I149: 143 | J149: 4.487702561 | K149: 0.9589235799
B150: 96.110001 | C150: 144 | D150: 1.109687102 | E150: 2.278847708 | F150: 0.48695097 | G150: 1.993463247 | H150: 0.9707188616 | I150: 144 | J150: 4.542799151 | K150: 0.9707188616
B151: 99.93 | C151: 145 | D151: 1.153792851 | E151: 2.296460391 | F151: 0.5024222737 | G151: 2.003103526 | H151: 1.006403828 | I151: 145 | J151: 4.600047908 | K151: 1.006403828
B152: 96.279999 | C152: 146 | D152: 1.111649901 | E152: 2.314209199 | F152: 0.4803584314 | G152: 2.012790426 | H152: 0.9668608516 | I152: 146 | J152: 4.658018119 | K152: 0.9668608516
B153: 101.589996 | C153: 147 | D153: 1.172959183 | E153: 2.330399787 | F153: 0.5033295958 | G153: 2.022524171 | H153: 1.017996273 | I153: 147 | J153: 4.713289896 | K153: 1.017996273
B154: 101.760002 | C154: 148 | D154: 1.174922074 | E154: 2.348569244 | F154: 0.5002714215 | G154: 2.032304987 | H154: 1.016704105 | I154: 148 | J154: 4.773008987 | K154: 1.016704105
B155: 99.080002 | C155: 149 | D155: 1.143978765 | E155: 2.366424804 | F155: 0.4834207126 | G155: 2.042133103 | H155: 0.9872094401 | I155: 149 | J155: 4.832554429 | K155: 0.9872094401
B156: 102.910004 | C156: 150 | D156: 1.188200009 | E156: 2.384332481 | F156: 0.4983365445 | G156: 2.052008748 | H156: 1.022590949 | I156: 150 | J156: 4.892671108 | K156: 1.022590949
B157: 103.809998 | C157: 151 | D157: 1.19859135 | E157: 2.401872022 | F157: 0.4990238191 | G157: 2.06193215 | H157: 1.028953256 | I157: 151 | J157: 4.952497144 | K157: 1.028953256
B158: 109.32 | C158: 152 | D158: 1.262209892 | E158: 2.420292736 | F158: 0.5215112508 | G158: 2.071903542 | H158: 1.080521008 | I158: 152 | J158: 5.014613091 | K158: 1.080521008
B159: 109.32 | C159: 153 | D159: 1.262209892 | E159: 2.439471401 | F159: 0.5174112275 | G159: 2.081923154 | H159: 1.077210415 | I159: 153 | J159: 5.078791993 | K159: 1.077210415
B160: 101.82 | C160: 154 | D160: 1.175614812 | E160: 2.460123364 | F160: 0.4778682357 | G160: 2.091991221 | H160: 0.9996961539 | I160: 154 | J160: 5.14655648 | K160: 0.9996961539
B161: 106.160004 | C161: 155 | D161: 1.225724544 | E161: 2.482375685 | F161: 0.4937707662 | G161: 2.102107977 | H161: 1.037959466 | I161: 155 | J161: 5.218221729 | K161: 1.037959466
B162: 107.940002 | C162: 156 | D162: 1.24627642 | E162: 2.503574494 | F162: 0.4977988166 | G162: 2.112273656 | H162: 1.051487326 | I162: 156 | J162: 5.288234449 | K162: 1.051487326
B163: 114.160004 | C163: 157 | D163: 1.31809263 | E163: 2.526538788 | F163: 0.5216989489 | G163: 2.122488497 | H163: 1.107300018 | I163: 157 | J163: 5.362549513 | K163: 1.107300018
B164: 113.660004 | C164: 158 | D164: 1.312319625 | E164: 2.553168507 | F164: 0.5139964797 | G164: 2.132752735 | H164: 1.096227398 | I164: 158 | J164: 5.445277116 | K164: 1.096227398
B165: 102.089996 | C165: 159 | D165: 1.178732188 | E165: 2.579032453 | F165: 0.457044341 | G165: 2.143066611 | H165: 0.9794764671 | I165: 159 | J165: 5.52703834 | K165: 0.9794764671
B166: 106.290001 | C166: 160 | D166: 1.227225491 | E166: 2.604156469 | F166: 0.4712564339 | G166: 2.153430364 | H166: 1.014817914 | I166: 160 | J166: 5.607869614 | K166: 1.014817914
B167: 111.239998 | C167: 161 | D167: 1.284378209 | E167: 2.625945767 | F167: 0.4891107141 | G167: 2.163844236 | H167: 1.0583594 | I167: 161 | J167: 5.682137613 | K167: 1.0583594
B168: 114.239998 | C168: 162 | D168: 1.319016242 | E168: 2.647757664 | F168: 0.4981635062 | G168: 2.174308469 | H168: 1.083161131 | I168: 162 | J168: 5.757041913 | K168: 1.083161131
B169: 121.669998 | C169: 163 | D169: 1.404803101 | E169: 2.670064116 | F169: 0.5261308494 | G169: 2.184823306 | H169: 1.149502942 | I169: 163 | J169: 5.833618309 | K169: 1.149502942
B170: 122.379997 | C170: 164 | D170: 1.413000757 | E170: 2.695235871 | F170: 0.5242586642 | G170: 2.195388993 | H170: 1.150951701 | I170: 164 | J170: 5.917091164 | K170: 1.150951701
B171: 125.459999 | C171: 165 | D171: 1.448562493 | E171: 2.721583463 | F171: 0.532249888 | G171: 2.206005774 | H171: 1.174146326 | I171: 165 | J171: 6.003828834 | K171: 1.174146326
B172: 127.470001 | C172: 166 | D172: 1.471769998 | E172: 2.747867248 | F172: 0.5356044761 | G172: 2.216673898 | H172: 1.187260462 | I172: 166 | J172: 6.091125605 | K172: 1.187260462
B173: 140.520004 | C173: 167 | D173: 1.622445473 | E173: 2.777459897 | F173: 0.5841472183 | G173: 2.227393612 | H173: 1.301125783 | I173: 167 | J173: 6.186496431 | K173: 1.301125783
B174: 135.759995 | C174: 168 | D174: 1.567486358 | E174: 2.80677161 | F174: 0.5584659442 | G174: 2.238165166 | H174: 1.249939023 | I174: 168 | J174: 6.282018448 | K174: 1.249939023
B175: 129.550003 | C175: 169 | D175: 1.495785723 | E175: 2.836736396 | F175: 0.5272910536 | G175: 2.248988811 | H175: 1.18587168 | I175: 169 | J175: 6.379788415 | K175: 1.18587168
B176: 131.270004 | C176: 170 | D176: 1.515644873 | E176: 2.868514839 | F176: 0.5283726801 | G176: 2.259864798 | H176: 1.19405082 | I176: 170 | J176: 6.482455707 | K176: 1.19405082
B177: 136 | C177: 171 | D177: 1.570257458 | E177: 2.897385458 | F177: 0.5419566987 | G177: 2.270793381 | H177: 1.230671684 | I177: 171 | J177: 6.579363721 | K177: 1.230671684
B178: 132.809998 | C178: 172 | D178: 1.533425661 | E178: 2.931049108 | F178: 0.5231661443 | G178: 2.281774814 | H178: 1.193747332 | I178: 172 | J178: 6.687994034 | K178: 1.193747332
B179: 132.589996 | C179: 173 | D179: 1.530885515 | E179: 2.965017157 | F179: 0.5163159045 | G179: 2.292809353 | H179: 1.183813935 | I179: 173 | J179: 6.798219069 | K179: 1.183813935
B180: 131.210007 | C180: 174 | D180: 1.514952147 | E180: 2.998937765 | F180: 0.5051629163 | G180: 2.303897254 | H180: 1.163843456 | I180: 174 | J180: 6.909244482 | K180: 1.163843456
B181: 130.919998 | C181: 175 | D181: 1.5116037 | E181: 3.034136257 | F181: 0.4981990169 | G181: 2.315038775 | H181: 1.153350042 | I181: 175 | J181: 7.024143085 | K181: 1.153350042
B182: 122.790001 | C182: 176 | D182: 1.417734668 | E182: 3.072635705 | F182: 0.4614066892 | G182: 2.326234177 | H182: 1.07334001 | I182: 176 | J182: 7.14767019 | K182: 1.07334001
B183: 116.18 | C183: 177 | D183: 1.341415525 | E183: 3.112615326 | F183: 0.4309609075 | G183: 2.337483718 | H183: 1.007364104 | I183: 177 | J183: 7.275687646 | K183: 1.007364104
B184: 121.889999 | C184: 178 | D184: 1.407343235 | E184: 3.151373782 | F184: 0.4465808667 | G184: 2.348787662 | H184: 1.04892363 | I184: 178 | J184: 7.401907859 | K184: 1.04892363
B185: 126.349998 | C185: 179 | D185: 1.458838431 | E185: 3.187212241 | F185: 0.4577161234 | G185: 2.360146271 | H185: 1.080277002 | I185: 179 | J185: 7.522287087 | K185: 1.080277002
B186: 122.550003 | C186: 180 | D186: 1.414963648 | E186: 3.223153517 | F186: 0.4389997687 | G186: 2.37155981 | H186: 1.041114208 | I186: 180 | J186: 7.643901342 | K186: 1.041114208
B187: 120.400002 | C187: 181 | D187: 1.390139714 | E187: 3.263093246 | F187: 0.4260189977 | G187: 2.383028544 | H187: 1.015215432 | I187: 181 | J187: 7.776044346 | K187: 1.015215432
B188: 113.110001 | C188: 182 | D188: 1.305969284 | E188: 3.303084465 | F188: 0.3953787128 | G188: 2.39455274 | H188: 0.9467551802 | I188: 182 | J188: 7.909409956 | K188: 0.9467551802
B189: 111.959999 | C189: 183 | D189: 1.292691349 | E189: 3.338203945 | F189: 0.3872415736 | G189: 2.406132667 | H189: 0.9317546002 | I189: 183 | J189: 8.03216156 | K189: 0.9317546002
B190: 116.440002 | C190: 184 | D190: 1.344417511 | E190: 3.377527987 | F190: 0.3980477782 | G190: 2.417768593 | H190: 0.9623874168 | I190: 184 | J190: 8.16608109 | K190: 0.9623874168
B191: 111.879997 | C191: 185 | D191: 1.291767645 | E191: 3.415337794 | F191: 0.3782254414 | G191: 2.42946079 | H191: 0.9188838798 | I191: 185 | J191: 8.297429255 | K191: 0.9188838798
B192: 109.610001 | C192: 186 | D192: 1.265558247 | E192: 3.456817773 | F192: 0.366104993 | G192: 2.44120953 | H192: 0.8937389979 | I192: 186 | J192: 8.438816492 | K192: 0.8937389979
B193: 107.089996 | C193: 187 | D193: 1.236462242 | E193: 3.496452793 | F193: 0.3536333292 | G193: 2.453015086 | H193: 0.8674678917 | I193: 187 | J193: 8.576851451 | K193: 0.8674678917
B194: 119.510002 | C194: 188 | D194: 1.379863764 | E194: 3.535235639 | F194: 0.3903173381 | G194: 2.464877734 | H194: 0.9620845157 | I194: 188 | J194: 8.71392361 | K194: 0.9620845157
B195: 120.419998 | C195: 189 | D195: 1.390370588 | E195: 3.572286846 | F195: 0.3892102308 | G195: 2.476797748 | H195: 0.9639950232 | I195: 189 | J195: 8.847832015 | K195: 0.9639950232
B196: 133.720001 | C196: 190 | D196: 1.543932565 | E196: 3.604319982 | F196: 0.4283561317 | G196: 2.488775407 | H196: 1.066082206 | I196: 190 | J196: 8.970342931 | K196: 1.066082206
B197: 138.529999 | C197: 191 | D197: 1.599468853 | E197: 3.636615677 | F197: 0.43982345 | G197: 2.500810989 | H197: 1.099915317 | I197: 191 | J197: 9.094488448 | K197: 1.099915317
B198: 140.639999 | C198: 192 | D198: 1.623830936 | E198: 3.668119728 | F198: 0.4426875501 | G198: 2.512904775 | H198: 1.112431658 | I198: 192 | J198: 9.21763558 | K198: 1.112431658
B199: 145.300003 | C199: 193 | D199: 1.677635392 | E199: 3.700706701 | F199: 0.453328385 | G199: 2.525057045 | H199: 1.144680032 | I199: 193 | J199: 9.344495528 | K199: 1.144680032
B200: 148.059998 | C200: 194 | D200: 1.709502324 | E200: 3.734400368 | F200: =D200/E200 -> 0.4577715712 | G200: 2.537268083 | H200: 1.161489197 | I200: 194 | J200: 9.475174865 | K200: =H200 -> 1.161489197
B201: 152.960007 | C201: 195 | D201: 1.766077881 | E201: 3.764508843 | F201: 0.4691389911 | G201: =G200*(1+$G$2) -> 2.549538174 | H201: =G201*F201 -> 1.196087766 | I201: 195 | J201: =G201*E201 -> 9.597759001 | K201: 1.196087766
... 438 more rows

Sheet From 1993
A3: =IRR(A7:A327,0.001) -> 0.005947462029 | B3: Monthly | C3: =(C327/C7)^(1/320)-1 -> 0.005947462029 | D3: =(D327/D7)^(1/320)-1 -> 0.003460503158 | E3: =(1+E4)^(1/12)-1 -> 0.00483594549 | F3: =(F327/F7)^(1/320)-1 -> 0.008313183452
A4: =(1+A3)^12-1 -> 0.07375102432 | B4: Annual | C4: =(1+C3)^12-1 -> 0.07375102432 | D4: =(1+D3)^12-1 -> 0.04232558145 | E4: 0.0596 | F4: =(1+F3)^12-1 -> 0.1044481861 | H4: =(1+F4)/(1+D4)-1 -> 0.0596
C6: Stock Index | D6: Bonds | E6: 5.96% Prem | F6: Bonds + Prem
A7: -1 | B7: 1 | C7: 1 | D7: 1 | E7: 1 | F7: =D7*E7 -> 1
A8: 0 | B8: 2 | C8: 1.010483627 | D8: 1.005316712 | E8: =E7*(1+$E$3) -> 1.004835945 | F8: =D8*E8 -> 1.010178369
A9: 0 | B9: 3 | C9: 1.029376941 | D9: 1.009928499 | E9: =E8*(1+$E$3) -> 1.009695277 | F9: 1.019720036
A10: 0 | B10: 4 | C10: 1.003213462 | D10: 1.015049252 | E10: 1.014578109 | F10: 1.02984675
A11: 0 | B11: 5 | C11: 1.026003927 | D11: 1.020088346 | E11: 1.019484553 | F11: 1.039964311
A12: 0 | B12: 6 | C12: 1.026778796 | D12: 1.025251949 | E12: 1.024414725 | F12: 1.050283193
A13: 0 | B13: 7 | C13: 1.021309098 | D13: 1.030147878 | E13: 1.029368739 | F13: 1.060402022
A14: 0 | B14: 8 | C14: 1.056474769 | D14: 1.035117425 | E14: 1.03434671 | F14: 1.070670302
A15: 0 | B15: 9 | C15: 1.045922772 | D15: 1.039829619 | E15: 1.039348754 | F15: 1.080745619
A16: 0 | B16: 10 | C16: 1.066206272 | D16: 1.044384928 | E16: 1.044374988 | F16: 1.090729496
A17: 0 | B17: 11 | C17: 1.052440882 | D17: 1.049458636 | E17: 1.049425528 | F17: 1.101328683
A18: 0 | B18: 12 | C18: 1.063061245 | D18: 1.054435657 | E18: 1.054500493 | F18: 1.111902921
A19: 0 | B19: 13 | C19: 1.097611528 | D19: 1.059585059 | E19: 1.0596 | F19: 1.122736328
A20: 0 | B20: 14 | C20: 1.064633794 | D20: 1.064957591 | E20: 1.064724168 | F20: 1.133886084
A21: 0 | B21: 15 | C21: 1.015930512 | D21: 1.070251451 | E21: 1.069873116 | F21: 1.145033255
A22: 0 | B22: 16 | C22: 1.027644845 | D22: 1.076587046 | E22: 1.075046964 | F22: 1.157381636
A23: 0 | B23: 17 | C23: 1.040384705 | D23: 1.082940385 | E23: 1.080245832 | F23: 1.169841837
A24: 0 | B24: 18 | C24: 1.012511942 | D24: 1.089470664 | E24: 1.085469842 | F24: 1.182587549
A25: 0 | B25: 19 | C25: 1.04439585 | D25: 1.096007487 | E25: 1.090719115 | F25: 1.195436317
A26: 0 | B26: 20 | C26: 1.083663775 | D26: 1.102746883 | E26: 1.095993774 | F26: 1.208603717
A27: 0 | B27: 21 | C27: 1.054537563 | D27: 1.109733766 | E27: 1.10129394 | F27: 1.222143071
A28: 0 | B28: 22 | C28: 1.076507605 | D28: 1.116793497 | E28: 1.106619737 | F28: 1.235865726
A29: 0 | B29: 23 | C29: 1.033980589 | D29: 1.124343633 | E29: 1.11197129 | F29: 1.25023784
A30: 0 | B30: 24 | C30: 1.046697639 | D30: 1.131560995 | E30: 1.117348722 | F30: 1.264348232
A31: 0 | B31: 25 | C31: 1.072109062 | D31: 1.139037978 | E31: 1.12275216 | F31: 1.27885735
A32: 0 | B32: 26 | C32: 1.110784485 | D32: 1.146264472 | E32: 1.128181728 | F32: 1.293194633
A33: 0 | B33: 27 | C33: 1.141141329 | D33: 1.15259562 | E33: 1.133637554 | F33: 1.306625679
A34: 0 | B34: 28 | C34: 1.17304805 | D34: 1.159506773 | E34: 1.139119763 | F34: 1.32081708
A35: 0 | B35: 29 | C35: 1.215643432 | D35: 1.165825291 | E35: 1.144628484 | F35: 1.334436835
A36: 0 | B36: 30 | C36: 1.241510555 | D36: 1.171934535 | E36: 1.150163845 | F36: 1.347916731
A37: 0 | B37: 31 | C37: 1.280960844 | D37: 1.177983643 | E37: 1.155725975 | F37: 1.361426294
A38: 0 | B38: 32 | C38: 1.280550632 | D38: 1.184476754 | E38: 1.161315003 | F38: 1.375550624
A39: 0 | B39: 33 | C39: 1.331897476 | D39: 1.190713916 | E39: 1.166931059 | F39: 1.389481051
A40: 0 | B40: 34 | C40: 1.325265512 | D40: 1.196625077 | E40: 1.172574274 | F40: 1.40313178
A41: 0 | B41: 35 | C41: 1.379666339 | D41: 1.202651805 | E41: 1.178244779 | F41: 1.41701821
A42: 0 | B42: 36 | C42: 1.403733065 | D42: 1.208296031 | E42: 1.183942706 | F42: 1.430553274
A43: 0 | B43: 37 | C43: 1.44951917 | D43: 1.214094197 | E43: 1.189668189 | F43: 1.444369245
A44: 0 | B44: 38 | C44: 1.459569703 | D44: 1.22008517 | E44: 1.195421359 | F44: 1.458515872
A45: 0 | B45: 39 | C45: 1.471124485 | D45: 1.2261632 | E45: 1.201202352 | F45: 1.472870119
A46: 0 | B46: 40 | C46: 1.490883779 | D46: 1.232942706 | E46: 1.207011301 | F46: 1.48817578
A47: 0 | B47: 41 | C47: 1.524955551 | D47: 1.239772871 | E47: 1.212848342 | F47: 1.503656471
A48: 0 | B48: 42 | C48: 1.528396934 | D48: 1.247048809 | E48: 1.21871361 | F48: 1.519795357
A49: 0 | B49: 43 | C49: 1.458475804 | D49: 1.254090365 | E49: 1.224607243 | F49: 1.535768144
A50: 0 | B50: 44 | C50: 1.485915474 | D50: 1.261162747 | E50: 1.230529377 | F50: 1.551897809
A51: 0 | B51: 45 | C51: 1.566457037 | D51: 1.268478528 | E51: 1.23648015 | F51: 1.56844852
A52: 0 | B52: 46 | C52: 1.607343137 | D52: 1.275286608 | E52: 1.2424597 | F52: 1.584492217
A53: 0 | B53: 47 | C53: 1.725283791 | D53: 1.282001953 | E53: 1.248468168 | F53: 1.600538629
A54: 0 | B54: 48 | C54: 1.688180846 | D54: 1.288640264 | E54: 1.254505692 | F54: 1.616606546
A55: 0 | B55: 49 | C55: 1.791695097 | D55: 1.295841822 | E55: 1.260572413 | F55: 1.633502452
A56: 0 | B56: 50 | C56: 1.802315531 | D56: 1.302907532 | E56: 1.266668472 | F56: 1.650351894
A57: 0 | B57: 51 | C57: 1.725511638 | D57: 1.309594125 | E57: 1.272794012 | F57: 1.666843561
A58: 0 | B58: 52 | C58: 1.826291146 | D58: 1.317257583 | E58: 1.278949174 | F58: 1.684705498
A59: 0 | B59: 53 | C59: 1.933269591 | D59: 1.324522349 | E59: 1.285134103 | F59: 1.702188841
A60: 0 | B60: 54 | C60: 2.017275211 | D60: 1.331823189 | E60: 1.291348941 | F60: 1.719848465
A61: 0 | B61: 55 | C61: 2.174916815 | D61: 1.338631907 | E61: 1.297593834 | F61: 1.737000509
A62: 0 | B62: 56 | C62: 2.049933846 | D62: 1.345794504 | E62: 1.303868928 | F62: 1.754739637
A63: 0 | B63: 57 | C63: 2.158895189 | D63: 1.352892556 | E63: 1.310174367 | F63: 1.772525148
A64: 0 | B64: 58 | C64: 2.084461455 | D64: 1.359597714 | E64: 1.316510298 | F64: 1.789924392
A65: 0 | B65: 59 | C65: 2.177401035 | D65: 1.366387508 | E65: 1.32287687 | F65: 1.80756243
A66: 0 | B66: 60 | C66: 2.211655033 | D66: 1.372912476 | E66: 1.329274231 | F66: 1.824977176
A67: 0 | B67: 61 | C67: 2.234103722 | D67: 1.379372312 | E67: 1.335702529 | F67: 1.842431084
A68: 0 | B68: 62 | C68: 2.391494527 | D68: 1.385897687 | E68: 1.342161913 | F68: 1.860099092
A69: 0 | B69: 63 | C69: 2.510939429 | D69: 1.39190451 | E69: 1.348652535 | F69: 1.877195545
A70: 0 | B70: 64 | C70: 2.533729893 | D70: 1.398571923 | E70: 1.355174545 | F70: 1.89530907
A71: 0 | B71: 65 | C71: 2.486029328 | D71: 1.405066661 | E71: 1.361728095 | F71: 1.913318748
A72: 0 | B72: 66 | C72: 2.584073952 | D72: 1.411630055 | E72: 1.368313338 | F72: =D72*E72 -> 1.931552232
A73: 0 | B73: 67 | C73: 2.554059088 | D73: 1.417964986 | E73: =E72*(1+$E$3) -> 1.374930427 | F73: 1.949603204
A74: 0 | B74: 68 | C74: 2.181685654 | D74: 1.424395943 | E74: 1.381579516 | F74: 1.967916257
A75: 0 | B75: 69 | C75: 2.317813055 | D75: 1.430214893 | E75: 1.388260759 | F75: 1.985511213
A76: 0 | B76: 70 | C76: 2.503920066 | D76: 1.435539995 | E76: 1.394974312 | F76: 2.002541417
A77: 0 | B77: 71 | C77: 2.651966835 | D77: 1.441428855 | E77: 1.401720332 | F77: 2.020480133
A78: 0 | B78: 72 | C78: 2.801472225 | D78: 1.446937878 | E78: 1.408498975 | F78: 2.038010517
A79: 0 | B79: 73 | C79: 2.916359036 | D79: 1.452738315 | E79: 1.415310399 | F79: 2.056075644
A80: 0 | B80: 74 | C80: 2.822211493 | D80: 1.458907477 | E80: 1.422154763 | F80: 2.074792218
A81: 0 | B81: 75 | C81: 2.931696973 | D81: 1.464760694 | E81: 1.429032226 | F81: 2.093190235
A82: 0 | B82: 76 | C82: 3.042937365 | D82: 1.471204838 | E82: 1.435942948 | F82: 2.112566213
A83: 0 | B83: 77 | C83: 2.966953756 | D83: 1.477903859 | E83: 1.44288709 | F83: 2.132448398
A84: 0 | B84: 78 | C84: 3.128469766 | D84: 1.485309574 | E84: 1.449864813 | F84: 2.153498089
A85: 0 | B85: 79 | C85: 3.028214536 | D85: 1.49237802 | E85: 1.45687628 | F85: 2.174210139
A86: 0 | B86: 80 | C86: 3.009275803 | D86: 1.499906965 | E86: 1.463921655 | F86: 2.195746286
A87: 0 | B87: 81 | C87: 2.923355586 | D87: 1.507448415 | E87: 1.4710011 | F87: 2.217458277
A88: 0 | B88: 82 | C88: 3.106180904 | D88: 1.515018697 | E88: 1.478114781 | F88: 2.23937153
A89: 0 | B89: 83 | C89: 3.165390485 | D89: 1.522777668 | E89: 1.485262864 | F89: 2.26172512
A90: 0 | B90: 84 | C90: 3.348489 | D90: 1.530637704 | E90: 1.492445514 | F90: 2.284393375
A91: 0 | B91: 85 | C91: 3.178039027 | D91: 1.539295662 | E91: 1.499662899 | F91: 2.308424595
A92: 0 | B92: 86 | C92: 3.114134753 | D92: 1.547819564 | E92: 1.506915187 | F92: 2.332432809
A93: 0 | B93: 87 | C93: 3.415333332 | D93: 1.555517953 | E93: 1.514202547 | F93: 2.355369245
A94: 0 | B94: 88 | C94: 3.310155562 | D94: 1.56343149 | E94: 1.521525148 | F94: 2.378800329
A95: 0 | B95: 89 | C95: 3.237613335 | D95: 1.571706969 | E95: 1.52888316 | F95: 2.402956318
A96: 0 | B96: 90 | C96: 3.315100915 | D96: 1.579849703 | E96: 1.536276756 | F96: 2.427086376
A97: 0 | B97: 91 | C97: 3.260927935 | D97: 1.587705668 | E97: 1.543706107 | F97: 2.450950935
A98: 0 | B98: 92 | C98: 3.458863343 | D98: 1.595567203 | E98: 1.551171385 | F98: 2.474998189
A99: 0 | B99: 93 | C99: 3.273873042 | D99: 1.603427011 | E99: 1.558672766 | F99: 2.499218013
A100: 0 | B100: 94 | C100: 3.257669053 | D100: 1.610991672 | E100: 1.566210422 | F100: 2.523151947
A101: 0 | B101: 95 | C101: 2.996832021 | D101: 1.618818002 | E101: 1.57378453 | F101: 2.547670729
A102: 0 | B102: 96 | C102: 3.008979516 | D102: 1.625790007 | E102: 1.581395267 | F102: 2.571016622
A103: 0 | B103: 97 | C103: 3.113200267 | D103: 1.632914976 | E103: 1.589042808 | F103: 2.594771799
A104: 0 | B104: 98 | C104: 2.825880723 | D104: 1.639987959 | E104: 1.596727332 | F104: 2.618613598
A105: 0 | B105: 99 | C105: 2.64444587 | D105: 1.646139935 | E105: 1.604449019 | F105: 2.641147604
A106: 0 | B106: 100 | C106: 2.847577291 | D106: 1.653326125 | E106: 1.612208047 | F106: 2.665505683
A107: 0 | B107: 101 | C107: 2.862071992 | D107: 1.660650587 | E107: 1.620004597 | F107: 2.690261584
A108: 0 | B108: 102 | C108: 2.790418906 | D108: 1.668097581 | E108: 1.627838851 | F108: 2.715394049
A109: 0 | B109: 103 | C109: 2.760449389 | D109: 1.675281826 | E109: 1.635710991 | F109: 2.740276895
A110: 0 | B110: 104 | C110: 2.583481377 | D110: 1.682353351 | E110: 1.6436212 | F110: 2.765151633
A111: 0 | B111: 105 | C111: 2.372350479 | D111: 1.689111802 | E111: 1.651569662 | F111: 2.789685809
A112: 0 | B112: 106 | C112: 2.415287915 | D112: 1.695456384 | E112: 1.659556563 | F112: 2.81370577
A113: 0 | B113: 107 | C113: 2.596859368 | D113: 1.702152275 | E113: 1.667582088 | F113: 2.838478646
A114: 0 | B114: 108 | C114: 2.616527551 | D114: 1.709273334 | E114: 1.675646424 | F114: 2.864137751
A115: 0 | B115: 109 | C115: 2.575778189 | D115: 1.716589961 | E115: 1.683749759 | F115: 2.890307933
A116: 0 | B116: 110 | C116: 2.522289034 | D116: 1.723748376 | E116: 1.691892281 | F116: 2.916396572
A117: 0 | B117: 111 | C117: 2.614955143 | D117: 1.730730265 | E117: 1.70007418 | F117: 2.942369837
A118: 0 | B118: 112 | C118: 2.454350806 | D118: 1.738388628 | E118: 1.708295646 | F118: 2.969681725
A119: 0 | B119: 113 | C119: 2.432061665 | D119: 1.745761301 | E119: 1.716556871 | F119: 2.996698556
A120: 0 | B120: 114 | C120: 2.255845775 | D120: 1.753071019 | E120: 1.724858046 | F120: 3.023798653
A121: 0 | B121: 115 | C121: 2.077624315 | D121: 1.759771112 | E121: 1.733199366 | F121: 3.050034176
A122: 0 | B122: 116 | C122: 2.087766099 | D122: 1.766138109 | E122: 1.741581023 | F122: 3.075872615
A123: 0 | B123: 117 | C123: 1.858061058 | D123: 1.771943139 | E123: 1.750003214 | F123: 3.100906188
A124: 0 | B124: 118 | C124: 2.018688208 | D124: 1.777681322 | E124: 1.758466134 | F124: 3.125992402
A125: 0 | B125: 119 | C125: 2.133893979 | D125: 1.783796058 | E125: 1.766969981 | F125: 3.151914087
A126: 0 | B126: 120 | C126: 2.005150665 | D126: 1.789704577 | E126: 1.775514951 | F126: 3.177647235
A127: 0 | B127: 121 | C127: 1.950180076 | D127: 1.795860671 | E127: 1.784101245 | F127: 3.203997258
A128: 0 | B128: 122 | C128: 1.917019978 | D128: 1.801809152 | E128: 1.792729061 | F128: 3.230155629
A129: 0 | B129: 123 | C129: 1.933041604 | D129: 1.807075371 | E129: 1.801398601 | F129: 3.255263045
A130: 0 | B130: 124 | C130: 2.089703234 | D130: 1.813153085 | E130: 1.810110067 | F130: 3.282006652
A131: 0 | B131: 125 | C131: 2.196066432 | D131: 1.818473323 | E131: 1.81886366 | F131: 3.307555045
A132: 0 | B132: 126 | C132: 2.220930768 | D132: 1.823616364 | E132: 1.827659586 | F132: 3.332949929
A133: 0 | B133: 127 | C133: 2.256962487 | D133: 1.829581838 | E133: 1.836498048 | F133: 3.360023475
A134: 0 | B134: 128 | C134: 2.297301637 | D134: 1.836496655 | E134: 1.845379252 | F134: 3.389032824
A135: 0 | B135: 129 | C135: 2.269861829 | D135: 1.843156849 | E135: 1.854303406 | F135: 3.417772022
A136: 0 | B136: 130 | C136: 2.394616809 | D136: 1.84965587 | E136: 1.863270716 | F136: =D136*E136 -> 3.446409618
A137: 0 | B137: 131 | C137: 2.411686844 | D137: 1.856410915 | E137: =E136*(1+$E$3) -> 1.872281392 | F137: 3.475723611
A138: 0 | B138: 132 | C138: 2.534117431 | D138: 1.862926154 | E138: 1.881335642 | F138: 3.504789373
A139: 0 | B139: 133 | C139: 2.577897825 | D139: 1.869492331 | E139: 1.890433679 | F139: 3.534151265
A140: 0 | B140: 134 | C140: 2.60937131 | D140: 1.875970506 | E140: 1.899575713 | F140: 3.563548012
A141: 0 | B141: 135 | C141: 2.566684816 | D141: 1.88167911 | E141: 1.908761958 | F141: 3.591677502
A142: 0 | B142: 136 | C142: 2.523588248 | D142: 1.888631012 | E142: 1.917992627 | F142: 3.622380356
A143: 0 | B143: 137 | C143: 2.554081901 | D143: 1.895957865 | E143: 1.927267934 | F143: 3.654018799
A144: 0 | B144: 138 | C144: 2.600027277 | D144: 1.903574422 | E144: 1.936588097 | F144: 3.686439567
A145: 0 | B145: 139 | C145: 2.510870991 | D145: 1.910615039 | E145: 1.945953332 | F145: 3.717967701
A146: 0 | B146: 140 | C146: 2.516614232 | D146: 1.917560256 | E146: 1.955363856 | F146: 3.749528016
A147: 0 | B147: 141 | C147: 2.540179494 | D147: 1.924286427 | E147: 1.964819889 | F147: 3.780876243
A148: 0 | B148: 142 | C148: 2.575778189 | D148: 1.930771009 | E148: 1.974321651 | F148: 3.811963005
A149: 0 | B149: 143 | C149: 2.675190183 | D149: 1.937641908 | E149: 1.983869363 | F149: 3.844028418
A150: 0 | B150: 144 | C150: 2.762022077 | D150: 1.944378532 | E150: 1.993463247 | F150: 3.876047141
A151: 0 | B151: 145 | C151: 2.692169248 | D151: 1.951347398 | E151: 2.003103526 | F151: 3.908750853
A152: 0 | B152: 146 | C152: 2.743060255 | D152: 1.958258375 | E152: 2.012790426 | F152: 3.941563709
A153: 0 | B153: 147 | C153: 2.690619373 | D153: 1.96501839 | E153: 2.022524171 | F153: 3.97429719
A154: 0 | B154: 148 | C154: 2.636514833 | D154: 1.972261502 | E154: 2.032304987 | F154: 4.008236887
A155: 0 | B155: 149 | C155: 2.715483848 | D155: 1.978972595 | E155: 2.042133103 | F155: 4.041325446
A156: 0 | B156: 150 | C156: 2.71509631 | D156: 1.98569568 | E156: 2.052008748 | F156: 4.074664905
A157: 0 | B157: 151 | C157: 2.812753673 | D157: 1.992517768 | E157: 2.06193215 | F157: 4.108436446
A158: 0 | B158: 152 | C158: 2.781188657 | D158: 1.999726861 | E158: 2.071903542 | F158: 4.143241166
A159: 0 | B159: 153 | C159: 2.800515205 | D159: 2.006860134 | E159: 2.081923154 | F159: 4.178128579
A160: 0 | B160: 154 | C160: 2.750831881 | D160: 2.014216788 | E160: 2.091991221 | F160: 4.213723838
A161: 0 | B161: 155 | C161: 2.847622915 | D161: 2.021983387 | E161: 2.102107977 | F161: 4.250427407
A162: 0 | B162: 156 | C162: 2.844910985 | D162: 2.029412099 | E162: 2.112273656 | F162: 4.286673714
A163: 0 | B163: 157 | C163: 2.917361682 | D163: 2.037030456 | E163: 2.122488497 | F163: 4.32357371
A164: 0 | B164: 158 | C164: 2.918683707 | D164: 2.044936925 | E164: 2.132752735 | F164: 4.36134482
A165: 0 | B165: 159 | C165: 2.951068868 | D165: 2.052341277 | E165: 2.143066611 | F165: 4.398304066
A166: 0 | B166: 160 | C166: 2.986941036 | D166: 2.061039268 | E166: 2.153430364 | F166: 4.438304543
A167: 0 | B167: 161 | C167: 2.894594031 | D167: 2.069695633 | E167: 2.163844236 | F167: 4.478498967
A168: 0 | B168: 162 | C168: 2.894844692 | D168: 2.078678112 | E168: 2.174308469 | F168: 4.519687424
A169: 0 | B169: 163 | C169: 2.909567521 | D169: 2.08737439 | E169: 2.184823306 | F169: 4.560544217
A170: 0 | B170: 164 | C170: 2.971466222 | D170: 2.096025842 | E170: 2.195388993 | F170: 4.601592063
A171: 0 | B171: 165 | C171: 3.044464148 | D171: 2.104428322 | E171: 2.206005774 | F171: 4.642381029
A172: 0 | B172: 166 | C172: 3.140389134 | D172: 2.112609647 | E172: 2.216673898 | F172: 4.682966661
A173: 0 | B173: 167 | C173: 3.192100844 | D173: 2.120863295 | E173: 2.227393612 | F173: 4.723997355
A174: 0 | B174: 168 | C174: 3.232371695 | D174: 2.128812174 | E174: 2.238165166 | F174: 4.764633253
A175: 0 | B175: 169 | C175: 3.277815747 | D175: 2.137418408 | E175: 2.248988811 | F175: 4.807030083
A176: 0 | B176: 170 | C176: 3.206208007 | D176: 2.14598682 | E176: 2.259864798 | F176: 4.849640073
A177: 0 | B177: 171 | C177: 3.238205908 | D177: 2.153493659 | E177: 2.270793381 | F177: 4.890139146
A178: 0 | B178: 172 | C178: 3.378390078 | D178: 2.162071643 | E178: 2.281774814 | F178: 4.933360622
A179: 0 | B179: 173 | C179: 3.488354069 | D179: 2.170512608 | E179: 2.292809353 | F179: 4.976571608
A180: 0 | B180: 174 | C180: 3.426204429 | D180: 2.179914198 | E180: 2.303897254 | F180: 5.022298335
A181: 0 | B181: 175 | C181: 3.316627976 | D181: 2.18887275 | E181: 2.315038775 | F181: 5.06732529
A182: 0 | B182: 176 | C182: 3.359291657 | D182: 2.197554479 | E182: 2.326234177 | F182: 5.112026334
A183: 0 | B183: 177 | C183: 3.479534171 | D183: 2.20599068 | E183: 2.337483718 | F183: 5.156467297
A184: 0 | B184: 178 | C184: 3.531109003 | D184: 2.214204218 | E184: 2.348787662 | F184: 5.200695548
A185: 0 | B185: 179 | C185: 3.375586896 | D185: 2.222008529 | E185: 2.360146271 | F185: 5.244265145
A186: 0 | B186: 180 | C186: 3.346460614 | D186: 2.229496393 | E186: 2.37155981 | F186: 5.287384043
A187: 0 | B187: 181 | C187: 3.141779598 | D187: 2.236578251 | E187: 2.383028544 | F187: 5.329829814
A188: 0 | B188: 182 | C188: 3.032567592 | D188: 2.243682604 | E188: 2.39455274 | F188: 5.372616328
A189: 0 | B189: 183 | C189: 3.014494631 | D189: 2.249939713 | E189: 2.406132667 | F189: 5.41365344
A190: 0 | B190: 184 | C190: 3.157823896 | D190: 2.256971853 | E190: 2.417768593 | F190: 5.456835661
A191: 0 | B191: 185 | C191: 3.191531082 | D191: 2.264169429 | E191: 2.42946079 | F191: 5.50071085
A192: 0 | B192: 186 | C192: 2.917179459 | D192: 2.272053701 | E192: 2.44120953 | F192: 5.546559148
A193: 0 | B193: 187 | C193: 2.888417904 | D193: 2.279542141 | E193: 2.453015086 | F193: 5.591751262
A194: 0 | B194: 188 | C194: 2.92362906 | D194: 2.287073374 | E194: 2.464877734 | F194: 5.637356234
A195: 0 | B195: 189 | C195: 2.658188586 | D195: 2.294240999 | E195: 2.476797748 | F195: 5.682370939
A196: 0 | B196: 190 | C196: 2.207826251 | D196: 2.30142543 | E196: 2.488775407 | F196: 5.727731012
A197: 0 | B197: 191 | C197: 2.042572569 | D197: 2.308325293 | E197: 2.500810989 | F197: 5.772685259
A198: 0 | B198: 192 | C198: 2.058548708 | D198: 2.312916647 | E198: 2.512904775 | F198: 5.812139285
A199: 0 | B199: 193 | C199: 1.882218895 | D199: 2.317866922 | E199: 2.525057045 | F199: 5.852746201
A200: 0 | B200: 194 | C200: 1.675304318 | D200: 2.323516802 | E200: 2.537268083 | F200: =D200*E200 -> 5.895385023
A201: 0 | B201: 195 | C201: 1.818382781 | D201: 2.328543237 | E201: =E200*(1+$E$3) -> 2.549538174 | F201: 5.936709872
A202: 0 | B202: 196 | C202: 1.989174529 | D202: 2.334337801 | E202: 2.561867601 | F202: 5.980264383
A203: 0 | B203: 197 | C203: 2.09476279 | D203: 2.340650106 | E203: 2.574256653 | F203: 6.02543411
... 124 more rows
